Workbook

Sheet Notes
B1: Scottish Burden of Disease study - Local area Burden of Disease profiles
B3: Note: Click on the link below to be taken to the relevant Microsoft Excel worksheet
B5: DALYs, YLD, YLL and deaths by disease group and age-group, 2016
B7: DALYs, YLD, YLL and deaths by local authority and age-group, 2016

Sheet by local authority
D1: Scottish Burden of Disease study - Local area Burden of Disease profiles | AA1: DALYs
D2: Local area burden of disease profile by disease group and age-group (years) | AA2: Both sexes | AB2: =VLOOKUP(AA2,Lookups!Q2:R4,2,FALSE) -> 3
AA3: Age-standardised rate per 100,000 population | AB3: =IF(AA3="Number",VLOOKUP(AA1,Lookups!N3:O6,2,FALSE),IF(AA3="Age-standardised rate per 100,000 population",VLOOKUP(AA1,Lookups!N7:O10,2,FALSE),"-")) -> 9
D5: Measure: | F5: Local area (reference area):
A7: Scotland | B7: =VLOOKUP(A7,Lookups!B2:C34,2,FALSE) -> Scot | D7: Gender:
A9: No comparator area chosen | B9: =VLOOKUP(A9,Lookups!B1:C34,2,FALSE) -> 0 | D9: Unit: | F9: Local area (comparator area):
H10: 1 - Under15 | I10: 2 - 15-24 | J10: 3 - 25-44 | K10: 4 - 45-64 | L10: 5 - 65 and over | O10: 1 - Under15 | P10: 2 - 15-24 | Q10: 3 - 25-44 | R10: 4 - 45-64 | S10: 5 - 65 and over
G11: ALL | H11: 1 - Under15 | I11: 2 - 15-24 | J11: 3 - 25-44 | K11: 4 - 45-64 | L11: 5 - 65 and over
D12: Disease group | G12: =A7 -> Scotland | N12: =A9 -> No comparator area chosen
G13: =AA1&" | " &AA3&" "&"by age-group (years)" -> DALYs | Age-standardised rate per 100,000 population by age-group (years) | N13: =AA1&" | " &AA3&" "&"by age-group (years)" -> DALYs | Age-standardised rate per 100,000 population by age-group (years)
G14: All ages | H14: < 15 | I14: 15-24 | J14: 25-44 | K14: 45-64 | L14: 65 + | N14: All ages | O14: < 15 | P14: 15-24 | Q14: 25-44 | R14: 45-64 | S14: 65 +
D15: All causes of disease and injury | G15: =IF(ISNA(VLOOKUP($B$7&$D15&$AB$2&G$11,data!$F:$O,'by local authority'!$AB$3,FALSE)),"-",VLOOKUP($B$7&$D15&$AB$2&G$11,data!$F:$O,'by local authority'!$AB$3,FALSE)) -> 24753.39917 | H15: =IF(ISNA(VLOOKUP($B$7&$D15&$AB$2&H$11,data!$F:$O,'by local authority'!$AB$3,FALSE)),"-",VLOOKUP($B$7&$D15&$AB$2&H$11,data!$F:$O,'by local authority'!$AB$3,FALSE)) -> 4903.990675 | I15: =IF(ISNA(VLOOKUP($B$7&$D15&$AB$2&I$11,data!$F:$O,'by local authority'!$AB$3,FALSE)),"-",VLOOKUP($B$7&$D15&$AB$2&I$11,data!$F:$O,'by local authority'!$AB$3,FALSE)) -> 9210.534047 | J15: =IF(ISNA(VLOOKUP($B$7&$D15&$AB$2&J$11,data!$F:$O,'by local authority'!$AB$3,FALSE)),"-",VLOOKUP($B$7&$D15&$AB$2&J$11,data!$F:$O,'by local authority'!$AB$3,FALSE)) -> 16733.5595 | K15: =IF(ISNA(VLOOKUP($B$7&$D15&$AB$2&K$11,data!$F:$O,'by local authority'!$AB$3,FALSE)),"-",VLOOKUP($B$7&$D15&$AB$2&K$11,data!$F:$O,'by local authority'!$AB$3,FALSE)) -> 27247.59302 | L15: =IF(ISNA(VLOOKUP($B$7&$D15&$AB$2&L$11,data!$F:$O,'by local authority'!$AB$3,FALSE)),"-",VLOOKUP($B$7&$D15&$AB$2&L$11,data!$F:$O,'by local authority'!$AB$3,FALSE)) -> 57715.6094 | M15: =SUM(M17:M37) -> 0 | N15: =IF(ISNA(VLOOKUP($B$9&$D15&$AB$2&G$11,data!$F:$O,'by local authority'!$AB$3,FALSE)),"-",VLOOKUP($B$9&$D15&$AB$2&G$11,data!$F:$O,'by local authority'!$AB$3,FALSE)) -> - | O15: =IF(ISNA(VLOOKUP($B$9&$D15&$AB$2&H$11,data!$F:$O,'by local authority'!$AB$3,FALSE)),"-",VLOOKUP($B$9&$D15&$AB$2&H$11,data!$F:$O,'by local authority'!$AB$3,FALSE)) -> - | P15: =IF(ISNA(VLOOKUP($B$9&$D15&$AB$2&I$11,data!$F:$O,'by local authority'!$AB$3,FALSE)),"-",VLOOKUP($B$9&$D15&$AB$2&I$11,data!$F:$O,'by local authority'!$AB$3,FALSE)) -> - | Q15: =IF(ISNA(VLOOKUP($B$9&$D15&$AB$2&J$11,data!$F:$O,'by local authority'!$AB$3,FALSE)),"-",VLOOKUP($B$9&$D15&$AB$2&J$11,data!$F:$O,'by local authority'!$AB$3,FALSE)) -> - | R15: =IF(ISNA(VLOOKUP($B$9&$D15&$AB$2&K$11,data!$F:$O,'by local authority'!$AB$3,FALSE)),"-",VLOOKUP($B$9&$D15&$AB$2&K$11,data!$F:$O,'by local authority'!$AB$3,FALSE)) -> - | S15: =IF(ISNA(VLOOKUP($B$9&$D15&$AB$2&L$11,data!$F:$O,'by local authority'!$AB$3,FALSE)),"-",VLOOKUP($B$9&$D15&$AB$2&L$11,data!$F:$O,'by local authority'!$AB$3,FALSE)) -> -
G16: =IF(ISNA(VLOOKUP($B$7&$D16&$AB$2&G$11,data!$F:$O,'by local authority'!$AB$3,FALSE)),"-",VLOOKUP($B$7&$D16&$AB$2&G$11,data!$F:$O,'by local authority'!$AB$3,FALSE)) -> - | H16: =IF(ISNA(VLOOKUP($B$7&$D16&$AB$2&H$11,data!$F$2:$O$10881,'by local authority'!$AB$3,FALSE)),"-",VLOOKUP($B$7&$D16&$AB$2&H$11,data!$F$2:$O$10881,'by local authority'!$AB$3,FALSE)) -> - | N16: =IF(ISNA(VLOOKUP($B$9&$D16&$AB$2&G$11,data!$F:$O,'by local authority'!$AB$3,FALSE)),"-",VLOOKUP($B$9&$D16&$AB$2&G$11,data!$F:$O,'by local authority'!$AB$3,FALSE)) -> -
C17: =VLOOKUP(D17,Lookups!$K$3:$L$23,2,FALSE) -> 8 | D17: Cancer | G17: =IF(ISNA(VLOOKUP($B$7&$D17&$AB$2&G$11,data!$F:$O,'by local authority'!$AB$3,FALSE)),"-",VLOOKUP($B$7&$D17&$AB$2&G$11,data!$F:$O,'by local authority'!$AB$3,FALSE)) -> 4390.778329 | H17: =IF(ISNA(VLOOKUP($B$7&$D17&$AB$2&H$11,data!$F:$O,'by local authority'!$AB$3,FALSE)),"-",VLOOKUP($B$7&$D17&$AB$2&H$11,data!$F:$O,'by local authority'!$AB$3,FALSE)) -> 175.0863622 | I17: =IF(ISNA(VLOOKUP($B$7&$D17&$AB$2&I$11,data!$F:$O,'by local authority'!$AB$3,FALSE)),"-",VLOOKUP($B$7&$D17&$AB$2&I$11,data!$F:$O,'by local authority'!$AB$3,FALSE)) -> 216.8660993 | J17: =IF(ISNA(VLOOKUP($B$7&$D17&$AB$2&J$11,data!$F:$O,'by local authority'!$AB$3,FALSE)),"-",VLOOKUP($B$7&$D17&$AB$2&J$11,data!$F:$O,'by local authority'!$AB$3,FALSE)) -> 1030.583732 | K17: =IF(ISNA(VLOOKUP($B$7&$D17&$AB$2&K$11,data!$F:$O,'by local authority'!$AB$3,FALSE)),"-",VLOOKUP($B$7&$D17&$AB$2&K$11,data!$F:$O,'by local authority'!$AB$3,FALSE)) -> 5473.198361 | L17: =IF(ISNA(VLOOKUP($B$7&$D17&$AB$2&L$11,data!$F:$O,'by local authority'!$AB$3,FALSE)),"-",VLOOKUP($B$7&$D17&$AB$2&L$11,data!$F:$O,'by local authority'!$AB$3,FALSE)) -> 13406.78285 | N17: =IF(ISNA(VLOOKUP($B$9&$D17&$AB$2&G$11,data!$F:$O,'by local authority'!$AB$3,FALSE)),"-",VLOOKUP($B$9&$D17&$AB$2&G$11,data!$F:$O,'by local authority'!$AB$3,FALSE)) -> - | O17: =IF(ISNA(VLOOKUP($B$9&$D17&$AB$2&H$11,data!$F:$O,'by local authority'!$AB$3,FALSE)),"-",VLOOKUP($B$9&$D17&$AB$2&H$11,data!$F:$O,'by local authority'!$AB$3,FALSE)) -> - | P17: =IF(ISNA(VLOOKUP($B$9&$D17&$AB$2&I$11,data!$F:$O,'by local authority'!$AB$3,FALSE)),"-",VLOOKUP($B$9&$D17&$AB$2&I$11,data!$F:$O,'by local authority'!$AB$3,FALSE)) -> - | Q17: =IF(ISNA(VLOOKUP($B$9&$D17&$AB$2&J$11,data!$F:$O,'by local authority'!$AB$3,FALSE)),"-",VLOOKUP($B$9&$D17&$AB$2&J$11,data!$F:$O,'by local authority'!$AB$3,FALSE)) -> - | R17: =IF(ISNA(VLOOKUP($B$9&$D17&$AB$2&K$11,data!$F:$O,'by local authority'!$AB$3,FALSE)),"-",VLOOKUP($B$9&$D17&$AB$2&K$11,data!$F:$O,'by local authority'!$AB$3,FALSE)) -> - | S17: =IF(ISNA(VLOOKUP($B$9&$D17&$AB$2&L$11,data!$F:$O,'by local authority'!$AB$3,FALSE)),"-",VLOOKUP($B$9&$D17&$AB$2&L$11,data!$F:$O,'by local authority'!$AB$3,FALSE)) -> -
C18: =VLOOKUP(D18,Lookups!$K$3:$L$23,2,FALSE) -> 9 | D18: Cardiovascular diseases | G18: =IF(ISNA(VLOOKUP($B$7&$D18&$AB$2&G$11,data!$F:$O,'by local authority'!$AB$3,FALSE)),"-",VLOOKUP($B$7&$D18&$AB$2&G$11,data!$F:$O,'by local authority'!$AB$3,FALSE)) -> 3909.095181 | H18: =IF(ISNA(VLOOKUP($B$7&$D18&$AB$2&H$11,data!$F:$O,'by local authority'!$AB$3,FALSE)),"-",VLOOKUP($B$7&$D18&$AB$2&H$11,data!$F:$O,'by local authority'!$AB$3,FALSE)) -> 65.11020329 | I18: =IF(ISNA(VLOOKUP($B$7&$D18&$AB$2&I$11,data!$F:$O,'by local authority'!$AB$3,FALSE)),"-",VLOOKUP($B$7&$D18&$AB$2&I$11,data!$F:$O,'by local authority'!$AB$3,FALSE)) -> 134.3503914 | J18: =IF(ISNA(VLOOKUP($B$7&$D18&$AB$2&J$11,data!$F:$O,'by local authority'!$AB$3,FALSE)),"-",VLOOKUP($B$7&$D18&$AB$2&J$11,data!$F:$O,'by local authority'!$AB$3,FALSE)) -> 800.6760808 | K18: =IF(ISNA(VLOOKUP($B$7&$D18&$AB$2&K$11,data!$F:$O,'by local authority'!$AB$3,FALSE)),"-",VLOOKUP($B$7&$D18&$AB$2&K$11,data!$F:$O,'by local authority'!$AB$3,FALSE)) -> 3582.104597 | L18: =IF(ISNA(VLOOKUP($B$7&$D18&$AB$2&L$11,data!$F:$O,'by local authority'!$AB$3,FALSE)),"-",VLOOKUP($B$7&$D18&$AB$2&L$11,data!$F:$O,'by local authority'!$AB$3,FALSE)) -> 13957.89935 | N18: =IF(ISNA(VLOOKUP($B$9&$D18&$AB$2&G$11,data!$F:$O,'by local authority'!$AB$3,FALSE)),"-",VLOOKUP($B$9&$D18&$AB$2&G$11,data!$F:$O,'by local authority'!$AB$3,FALSE)) -> - | O18: =IF(ISNA(VLOOKUP($B$9&$D18&$AB$2&H$11,data!$F:$O,'by local authority'!$AB$3,FALSE)),"-",VLOOKUP($B$9&$D18&$AB$2&H$11,data!$F:$O,'by local authority'!$AB$3,FALSE)) -> - | P18: =IF(ISNA(VLOOKUP($B$9&$D18&$AB$2&I$11,data!$F:$O,'by local authority'!$AB$3,FALSE)),"-",VLOOKUP($B$9&$D18&$AB$2&I$11,data!$F:$O,'by local authority'!$AB$3,FALSE)) -> - | Q18: =IF(ISNA(VLOOKUP($B$9&$D18&$AB$2&J$11,data!$F:$O,'by local authority'!$AB$3,FALSE)),"-",VLOOKUP($B$9&$D18&$AB$2&J$11,data!$F:$O,'by local authority'!$AB$3,FALSE)) -> - | R18: =IF(ISNA(VLOOKUP($B$9&$D18&$AB$2&K$11,data!$F:$O,'by local authority'!$AB$3,FALSE)),"-",VLOOKUP($B$9&$D18&$AB$2&K$11,data!$F:$O,'by local authority'!$AB$3,FALSE)) -> - | S18: =IF(ISNA(VLOOKUP($B$9&$D18&$AB$2&L$11,data!$F:$O,'by local authority'!$AB$3,FALSE)),"-",VLOOKUP($B$9&$D18&$AB$2&L$11,data!$F:$O,'by local authority'!$AB$3,FALSE)) -> -
C19: =VLOOKUP(D19,Lookups!$K$3:$L$23,2,FALSE) -> 13 | D19: Neurological disorders | G19: =IF(ISNA(VLOOKUP($B$7&$D19&$AB$2&G$11,data!$F:$O,'by local authority'!$AB$3,FALSE)),"-",VLOOKUP($B$7&$D19&$AB$2&G$11,data!$F:$O,'by local authority'!$AB$3,FALSE)) -> 2591.895235 | H19: =IF(ISNA(VLOOKUP($B$7&$D19&$AB$2&H$11,data!$F:$O,'by local authority'!$AB$3,FALSE)),"-",VLOOKUP($B$7&$D19&$AB$2&H$11,data!$F:$O,'by local authority'!$AB$3,FALSE)) -> 439.3298471 | I19: =IF(ISNA(VLOOKUP($B$7&$D19&$AB$2&I$11,data!$F:$O,'by local authority'!$AB$3,FALSE)),"-",VLOOKUP($B$7&$D19&$AB$2&I$11,data!$F:$O,'by local authority'!$AB$3,FALSE)) -> 1400.845233 | J19: =IF(ISNA(VLOOKUP($B$7&$D19&$AB$2&J$11,data!$F:$O,'by local authority'!$AB$3,FALSE)),"-",VLOOKUP($B$7&$D19&$AB$2&J$11,data!$F:$O,'by local authority'!$AB$3,FALSE)) -> 1911.894744 | K19: =IF(ISNA(VLOOKUP($B$7&$D19&$AB$2&K$11,data!$F:$O,'by local authority'!$AB$3,FALSE)),"-",VLOOKUP($B$7&$D19&$AB$2&K$11,data!$F:$O,'by local authority'!$AB$3,FALSE)) -> 2100.774142 | L19: =IF(ISNA(VLOOKUP($B$7&$D19&$AB$2&L$11,data!$F:$O,'by local authority'!$AB$3,FALSE)),"-",VLOOKUP($B$7&$D19&$AB$2&L$11,data!$F:$O,'by local authority'!$AB$3,FALSE)) -> 6652.041039 | N19: =IF(ISNA(VLOOKUP($B$9&$D19&$AB$2&G$11,data!$F:$O,'by local authority'!$AB$3,FALSE)),"-",VLOOKUP($B$9&$D19&$AB$2&G$11,data!$F:$O,'by local authority'!$AB$3,FALSE)) -> - | O19: =IF(ISNA(VLOOKUP($B$9&$D19&$AB$2&H$11,data!$F:$O,'by local authority'!$AB$3,FALSE)),"-",VLOOKUP($B$9&$D19&$AB$2&H$11,data!$F:$O,'by local authority'!$AB$3,FALSE)) -> - | P19: =IF(ISNA(VLOOKUP($B$9&$D19&$AB$2&I$11,data!$F:$O,'by local authority'!$AB$3,FALSE)),"-",VLOOKUP($B$9&$D19&$AB$2&I$11,data!$F:$O,'by local authority'!$AB$3,FALSE)) -> - | Q19: =IF(ISNA(VLOOKUP($B$9&$D19&$AB$2&J$11,data!$F:$O,'by local authority'!$AB$3,FALSE)),"-",VLOOKUP($B$9&$D19&$AB$2&J$11,data!$F:$O,'by local authority'!$AB$3,FALSE)) -> - | R19: =IF(ISNA(VLOOKUP($B$9&$D19&$AB$2&K$11,data!$F:$O,'by local authority'!$AB$3,FALSE)),"-",VLOOKUP($B$9&$D19&$AB$2&K$11,data!$F:$O,'by local authority'!$AB$3,FALSE)) -> - | S19: =IF(ISNA(VLOOKUP($B$9&$D19&$AB$2&L$11,data!$F:$O,'by local authority'!$AB$3,FALSE)),"-",VLOOKUP($B$9&$D19&$AB$2&L$11,data!$F:$O,'by local authority'!$AB$3,FALSE)) -> -
C20: =VLOOKUP(D20,Lookups!$K$3:$L$23,2,FALSE) -> 14 | D20: Mental health disorders | G20: =IF(ISNA(VLOOKUP($B$7&$D20&$AB$2&G$11,data!$F:$O,'by local authority'!$AB$3,FALSE)),"-",VLOOKUP($B$7&$D20&$AB$2&G$11,data!$F:$O,'by local authority'!$AB$3,FALSE)) -> 2495.086019 | H20: =IF(ISNA(VLOOKUP($B$7&$D20&$AB$2&H$11,data!$F:$O,'by local authority'!$AB$3,FALSE)),"-",VLOOKUP($B$7&$D20&$AB$2&H$11,data!$F:$O,'by local authority'!$AB$3,FALSE)) -> 172.1543963 | I20: =IF(ISNA(VLOOKUP($B$7&$D20&$AB$2&I$11,data!$F:$O,'by local authority'!$AB$3,FALSE)),"-",VLOOKUP($B$7&$D20&$AB$2&I$11,data!$F:$O,'by local authority'!$AB$3,FALSE)) -> 1518.429808 | J20: =IF(ISNA(VLOOKUP($B$7&$D20&$AB$2&J$11,data!$F:$O,'by local authority'!$AB$3,FALSE)),"-",VLOOKUP($B$7&$D20&$AB$2&J$11,data!$F:$O,'by local authority'!$AB$3,FALSE)) -> 3262.012148 | K20: =IF(ISNA(VLOOKUP($B$7&$D20&$AB$2&K$11,data!$F:$O,'by local authority'!$AB$3,FALSE)),"-",VLOOKUP($B$7&$D20&$AB$2&K$11,data!$F:$O,'by local authority'!$AB$3,FALSE)) -> 3548.573034 | L20: =IF(ISNA(VLOOKUP($B$7&$D20&$AB$2&L$11,data!$F:$O,'by local authority'!$AB$3,FALSE)),"-",VLOOKUP($B$7&$D20&$AB$2&L$11,data!$F:$O,'by local authority'!$AB$3,FALSE)) -> 2503.163149 | N20: =IF(ISNA(VLOOKUP($B$9&$D20&$AB$2&G$11,data!$F:$O,'by local authority'!$AB$3,FALSE)),"-",VLOOKUP($B$9&$D20&$AB$2&G$11,data!$F:$O,'by local authority'!$AB$3,FALSE)) -> - | O20: =IF(ISNA(VLOOKUP($B$9&$D20&$AB$2&H$11,data!$F:$O,'by local authority'!$AB$3,FALSE)),"-",VLOOKUP($B$9&$D20&$AB$2&H$11,data!$F:$O,'by local authority'!$AB$3,FALSE)) -> - | P20: =IF(ISNA(VLOOKUP($B$9&$D20&$AB$2&I$11,data!$F:$O,'by local authority'!$AB$3,FALSE)),"-",VLOOKUP($B$9&$D20&$AB$2&I$11,data!$F:$O,'by local authority'!$AB$3,FALSE)) -> - | Q20: =IF(ISNA(VLOOKUP($B$9&$D20&$AB$2&J$11,data!$F:$O,'by local authority'!$AB$3,FALSE)),"-",VLOOKUP($B$9&$D20&$AB$2&J$11,data!$F:$O,'by local authority'!$AB$3,FALSE)) -> - | R20: =IF(ISNA(VLOOKUP($B$9&$D20&$AB$2&K$11,data!$F:$O,'by local authority'!$AB$3,FALSE)),"-",VLOOKUP($B$9&$D20&$AB$2&K$11,data!$F:$O,'by local authority'!$AB$3,FALSE)) -> - | S20: =IF(ISNA(VLOOKUP($B$9&$D20&$AB$2&L$11,data!$F:$O,'by local authority'!$AB$3,FALSE)),"-",VLOOKUP($B$9&$D20&$AB$2&L$11,data!$F:$O,'by local authority'!$AB$3,FALSE)) -> -
C21: =VLOOKUP(D21,Lookups!$K$3:$L$23,2,FALSE) -> 16 | D21: Musculoskeletal disorders | G21: =IF(ISNA(VLOOKUP($B$7&$D21&$AB$2&G$11,data!$F:$O,'by local authority'!$AB$3,FALSE)),"-",VLOOKUP($B$7&$D21&$AB$2&G$11,data!$F:$O,'by local authority'!$AB$3,FALSE)) -> 2231.405818 | H21: =IF(ISNA(VLOOKUP($B$7&$D21&$AB$2&H$11,data!$F:$O,'by local authority'!$AB$3,FALSE)),"-",VLOOKUP($B$7&$D21&$AB$2&H$11,data!$F:$O,'by local authority'!$AB$3,FALSE)) -> 256.3641684 | I21: =IF(ISNA(VLOOKUP($B$7&$D21&$AB$2&I$11,data!$F:$O,'by local authority'!$AB$3,FALSE)),"-",VLOOKUP($B$7&$D21&$AB$2&I$11,data!$F:$O,'by local authority'!$AB$3,FALSE)) -> 1144.334406 | J21: =IF(ISNA(VLOOKUP($B$7&$D21&$AB$2&J$11,data!$F:$O,'by local authority'!$AB$3,FALSE)),"-",VLOOKUP($B$7&$D21&$AB$2&J$11,data!$F:$O,'by local authority'!$AB$3,FALSE)) -> 2002.229036 | K21: =IF(ISNA(VLOOKUP($B$7&$D21&$AB$2&K$11,data!$F:$O,'by local authority'!$AB$3,FALSE)),"-",VLOOKUP($B$7&$D21&$AB$2&K$11,data!$F:$O,'by local authority'!$AB$3,FALSE)) -> 3071.519106 | L21: =IF(ISNA(VLOOKUP($B$7&$D21&$AB$2&L$11,data!$F:$O,'by local authority'!$AB$3,FALSE)),"-",VLOOKUP($B$7&$D21&$AB$2&L$11,data!$F:$O,'by local authority'!$AB$3,FALSE)) -> 3662.799164 | N21: =IF(ISNA(VLOOKUP($B$9&$D21&$AB$2&G$11,data!$F:$O,'by local authority'!$AB$3,FALSE)),"-",VLOOKUP($B$9&$D21&$AB$2&G$11,data!$F:$O,'by local authority'!$AB$3,FALSE)) -> - | O21: =IF(ISNA(VLOOKUP($B$9&$D21&$AB$2&H$11,data!$F:$O,'by local authority'!$AB$3,FALSE)),"-",VLOOKUP($B$9&$D21&$AB$2&H$11,data!$F:$O,'by local authority'!$AB$3,FALSE)) -> - | P21: =IF(ISNA(VLOOKUP($B$9&$D21&$AB$2&I$11,data!$F:$O,'by local authority'!$AB$3,FALSE)),"-",VLOOKUP($B$9&$D21&$AB$2&I$11,data!$F:$O,'by local authority'!$AB$3,FALSE)) -> - | Q21: =IF(ISNA(VLOOKUP($B$9&$D21&$AB$2&J$11,data!$F:$O,'by local authority'!$AB$3,FALSE)),"-",VLOOKUP($B$9&$D21&$AB$2&J$11,data!$F:$O,'by local authority'!$AB$3,FALSE)) -> - | R21: =IF(ISNA(VLOOKUP($B$9&$D21&$AB$2&K$11,data!$F:$O,'by local authority'!$AB$3,FALSE)),"-",VLOOKUP($B$9&$D21&$AB$2&K$11,data!$F:$O,'by local authority'!$AB$3,FALSE)) -> - | S21: =IF(ISNA(VLOOKUP($B$9&$D21&$AB$2&L$11,data!$F:$O,'by local authority'!$AB$3,FALSE)),"-",VLOOKUP($B$9&$D21&$AB$2&L$11,data!$F:$O,'by local authority'!$AB$3,FALSE)) -> -
C22: =VLOOKUP(D22,Lookups!$K$3:$L$23,2,FALSE) -> 17 | D22: Other non-communicable diseases | G22: =IF(ISNA(VLOOKUP($B$7&$D22&$AB$2&G$11,data!$F:$O,'by local authority'!$AB$3,FALSE)),"-",VLOOKUP($B$7&$D22&$AB$2&G$11,data!$F:$O,'by local authority'!$AB$3,FALSE)) -> 1640.137586 | H22: =IF(ISNA(VLOOKUP($B$7&$D22&$AB$2&H$11,data!$F:$O,'by local authority'!$AB$3,FALSE)),"-",VLOOKUP($B$7&$D22&$AB$2&H$11,data!$F:$O,'by local authority'!$AB$3,FALSE)) -> 1818.697949 | I22: =IF(ISNA(VLOOKUP($B$7&$D22&$AB$2&I$11,data!$F:$O,'by local authority'!$AB$3,FALSE)),"-",VLOOKUP($B$7&$D22&$AB$2&I$11,data!$F:$O,'by local authority'!$AB$3,FALSE)) -> 1289.386032 | J22: =IF(ISNA(VLOOKUP($B$7&$D22&$AB$2&J$11,data!$F:$O,'by local authority'!$AB$3,FALSE)),"-",VLOOKUP($B$7&$D22&$AB$2&J$11,data!$F:$O,'by local authority'!$AB$3,FALSE)) -> 1089.36657 | K22: =IF(ISNA(VLOOKUP($B$7&$D22&$AB$2&K$11,data!$F:$O,'by local authority'!$AB$3,FALSE)),"-",VLOOKUP($B$7&$D22&$AB$2&K$11,data!$F:$O,'by local authority'!$AB$3,FALSE)) -> 1473.968238 | L22: =IF(ISNA(VLOOKUP($B$7&$D22&$AB$2&L$11,data!$F:$O,'by local authority'!$AB$3,FALSE)),"-",VLOOKUP($B$7&$D22&$AB$2&L$11,data!$F:$O,'by local authority'!$AB$3,FALSE)) -> 2674.78357 | N22: =IF(ISNA(VLOOKUP($B$9&$D22&$AB$2&G$11,data!$F:$O,'by local authority'!$AB$3,FALSE)),"-",VLOOKUP($B$9&$D22&$AB$2&G$11,data!$F:$O,'by local authority'!$AB$3,FALSE)) -> - | O22: =IF(ISNA(VLOOKUP($B$9&$D22&$AB$2&H$11,data!$F:$O,'by local authority'!$AB$3,FALSE)),"-",VLOOKUP($B$9&$D22&$AB$2&H$11,data!$F:$O,'by local authority'!$AB$3,FALSE)) -> - | P22: =IF(ISNA(VLOOKUP($B$9&$D22&$AB$2&I$11,data!$F:$O,'by local authority'!$AB$3,FALSE)),"-",VLOOKUP($B$9&$D22&$AB$2&I$11,data!$F:$O,'by local authority'!$AB$3,FALSE)) -> - | Q22: =IF(ISNA(VLOOKUP($B$9&$D22&$AB$2&J$11,data!$F:$O,'by local authority'!$AB$3,FALSE)),"-",VLOOKUP($B$9&$D22&$AB$2&J$11,data!$F:$O,'by local authority'!$AB$3,FALSE)) -> - | R22: =IF(ISNA(VLOOKUP($B$9&$D22&$AB$2&K$11,data!$F:$O,'by local authority'!$AB$3,FALSE)),"-",VLOOKUP($B$9&$D22&$AB$2&K$11,data!$F:$O,'by local authority'!$AB$3,FALSE)) -> - | S22: =IF(ISNA(VLOOKUP($B$9&$D22&$AB$2&L$11,data!$F:$O,'by local authority'!$AB$3,FALSE)),"-",VLOOKUP($B$9&$D22&$AB$2&L$11,data!$F:$O,'by local authority'!$AB$3,FALSE)) -> -
C23: =VLOOKUP(D23,Lookups!$K$3:$L$23,2,FALSE) -> 15 | D23: Diabetes, urogenital, blood, and endocrine diseases | G23: =IF(ISNA(VLOOKUP($B$7&$D23&$AB$2&G$11,data!$F:$O,'by local authority'!$AB$3,FALSE)),"-",VLOOKUP($B$7&$D23&$AB$2&G$11,data!$F:$O,'by local authority'!$AB$3,FALSE)) -> 1472.999948 | H23: =IF(ISNA(VLOOKUP($B$7&$D23&$AB$2&H$11,data!$F:$O,'by local authority'!$AB$3,FALSE)),"-",VLOOKUP($B$7&$D23&$AB$2&H$11,data!$F:$O,'by local authority'!$AB$3,FALSE)) -> 134.7914541 | I23: =IF(ISNA(VLOOKUP($B$7&$D23&$AB$2&I$11,data!$F:$O,'by local authority'!$AB$3,FALSE)),"-",VLOOKUP($B$7&$D23&$AB$2&I$11,data!$F:$O,'by local authority'!$AB$3,FALSE)) -> 445.1706575 | J23: =IF(ISNA(VLOOKUP($B$7&$D23&$AB$2&J$11,data!$F:$O,'by local authority'!$AB$3,FALSE)),"-",VLOOKUP($B$7&$D23&$AB$2&J$11,data!$F:$O,'by local authority'!$AB$3,FALSE)) -> 750.731448 | K23: =IF(ISNA(VLOOKUP($B$7&$D23&$AB$2&K$11,data!$F:$O,'by local authority'!$AB$3,FALSE)),"-",VLOOKUP($B$7&$D23&$AB$2&K$11,data!$F:$O,'by local authority'!$AB$3,FALSE)) -> 1592.977055 | L23: =IF(ISNA(VLOOKUP($B$7&$D23&$AB$2&L$11,data!$F:$O,'by local authority'!$AB$3,FALSE)),"-",VLOOKUP($B$7&$D23&$AB$2&L$11,data!$F:$O,'by local authority'!$AB$3,FALSE)) -> 3995.671469 | N23: =IF(ISNA(VLOOKUP($B$9&$D23&$AB$2&G$11,data!$F:$O,'by local authority'!$AB$3,FALSE)),"-",VLOOKUP($B$9&$D23&$AB$2&G$11,data!$F:$O,'by local authority'!$AB$3,FALSE)) -> - | O23: =IF(ISNA(VLOOKUP($B$9&$D23&$AB$2&H$11,data!$F:$O,'by local authority'!$AB$3,FALSE)),"-",VLOOKUP($B$9&$D23&$AB$2&H$11,data!$F:$O,'by local authority'!$AB$3,FALSE)) -> - | P23: =IF(ISNA(VLOOKUP($B$9&$D23&$AB$2&I$11,data!$F:$O,'by local authority'!$AB$3,FALSE)),"-",VLOOKUP($B$9&$D23&$AB$2&I$11,data!$F:$O,'by local authority'!$AB$3,FALSE)) -> - | Q23: =IF(ISNA(VLOOKUP($B$9&$D23&$AB$2&J$11,data!$F:$O,'by local authority'!$AB$3,FALSE)),"-",VLOOKUP($B$9&$D23&$AB$2&J$11,data!$F:$O,'by local authority'!$AB$3,FALSE)) -> - | R23: =IF(ISNA(VLOOKUP($B$9&$D23&$AB$2&K$11,data!$F:$O,'by local authority'!$AB$3,FALSE)),"-",VLOOKUP($B$9&$D23&$AB$2&K$11,data!$F:$O,'by local authority'!$AB$3,FALSE)) -> - | S23: =IF(ISNA(VLOOKUP($B$9&$D23&$AB$2&L$11,data!$F:$O,'by local authority'!$AB$3,FALSE)),"-",VLOOKUP($B$9&$D23&$AB$2&L$11,data!$F:$O,'by local authority'!$AB$3,FALSE)) -> -
C24: =VLOOKUP(D24,Lookups!$K$3:$L$23,2,FALSE) -> XX | D24: Substance use disorders | G24: =IF(ISNA(VLOOKUP($B$7&$D24&$AB$2&G$11,data!$F:$O,'by local authority'!$AB$3,FALSE)),"-",VLOOKUP($B$7&$D24&$AB$2&G$11,data!$F:$O,'by local authority'!$AB$3,FALSE)) -> 1434.009655 | H24: =IF(ISNA(VLOOKUP($B$7&$D24&$AB$2&H$11,data!$F:$O,'by local authority'!$AB$3,FALSE)),"-",VLOOKUP($B$7&$D24&$AB$2&H$11,data!$F:$O,'by local authority'!$AB$3,FALSE)) -> 1.063185334 | I24: =IF(ISNA(VLOOKUP($B$7&$D24&$AB$2&I$11,data!$F:$O,'by local authority'!$AB$3,FALSE)),"-",VLOOKUP($B$7&$D24&$AB$2&I$11,data!$F:$O,'by local authority'!$AB$3,FALSE)) -> 1095.915803 | J24: =IF(ISNA(VLOOKUP($B$7&$D24&$AB$2&J$11,data!$F:$O,'by local authority'!$AB$3,FALSE)),"-",VLOOKUP($B$7&$D24&$AB$2&J$11,data!$F:$O,'by local authority'!$AB$3,FALSE)) -> 2829.018617 | K24: =IF(ISNA(VLOOKUP($B$7&$D24&$AB$2&K$11,data!$F:$O,'by local authority'!$AB$3,FALSE)),"-",VLOOKUP($B$7&$D24&$AB$2&K$11,data!$F:$O,'by local authority'!$AB$3,FALSE)) -> 1691.942976 | L24: =IF(ISNA(VLOOKUP($B$7&$D24&$AB$2&L$11,data!$F:$O,'by local authority'!$AB$3,FALSE)),"-",VLOOKUP($B$7&$D24&$AB$2&L$11,data!$F:$O,'by local authority'!$AB$3,FALSE)) -> 562.8431059 | N24: =IF(ISNA(VLOOKUP($B$9&$D24&$AB$2&G$11,data!$F:$O,'by local authority'!$AB$3,FALSE)),"-",VLOOKUP($B$9&$D24&$AB$2&G$11,data!$F:$O,'by local authority'!$AB$3,FALSE)) -> - | O24: =IF(ISNA(VLOOKUP($B$9&$D24&$AB$2&H$11,data!$F:$O,'by local authority'!$AB$3,FALSE)),"-",VLOOKUP($B$9&$D24&$AB$2&H$11,data!$F:$O,'by local authority'!$AB$3,FALSE)) -> - | P24: =IF(ISNA(VLOOKUP($B$9&$D24&$AB$2&I$11,data!$F:$O,'by local authority'!$AB$3,FALSE)),"-",VLOOKUP($B$9&$D24&$AB$2&I$11,data!$F:$O,'by local authority'!$AB$3,FALSE)) -> - | Q24: =IF(ISNA(VLOOKUP($B$9&$D24&$AB$2&J$11,data!$F:$O,'by local authority'!$AB$3,FALSE)),"-",VLOOKUP($B$9&$D24&$AB$2&J$11,data!$F:$O,'by local authority'!$AB$3,FALSE)) -> - | R24: =IF(ISNA(VLOOKUP($B$9&$D24&$AB$2&K$11,data!$F:$O,'by local authority'!$AB$3,FALSE)),"-",VLOOKUP($B$9&$D24&$AB$2&K$11,data!$F:$O,'by local authority'!$AB$3,FALSE)) -> - | S24: =IF(ISNA(VLOOKUP($B$9&$D24&$AB$2&L$11,data!$F:$O,'by local authority'!$AB$3,FALSE)),"-",VLOOKUP($B$9&$D24&$AB$2&L$11,data!$F:$O,'by local authority'!$AB$3,FALSE)) -> -
C25: =VLOOKUP(D25,Lookups!$K$3:$L$23,2,FALSE) -> 10 | D25: Chronic respiratory diseases | G25: =IF(ISNA(VLOOKUP($B$7&$D25&$AB$2&G$11,data!$F:$O,'by local authority'!$AB$3,FALSE)),"-",VLOOKUP($B$7&$D25&$AB$2&G$11,data!$F:$O,'by local authority'!$AB$3,FALSE)) -> 1381.275636 | H25: =IF(ISNA(VLOOKUP($B$7&$D25&$AB$2&H$11,data!$F:$O,'by local authority'!$AB$3,FALSE)),"-",VLOOKUP($B$7&$D25&$AB$2&H$11,data!$F:$O,'by local authority'!$AB$3,FALSE)) -> 377.3761257 | I25: =IF(ISNA(VLOOKUP($B$7&$D25&$AB$2&I$11,data!$F:$O,'by local authority'!$AB$3,FALSE)),"-",VLOOKUP($B$7&$D25&$AB$2&I$11,data!$F:$O,'by local authority'!$AB$3,FALSE)) -> 362.1994181 | J25: =IF(ISNA(VLOOKUP($B$7&$D25&$AB$2&J$11,data!$F:$O,'by local authority'!$AB$3,FALSE)),"-",VLOOKUP($B$7&$D25&$AB$2&J$11,data!$F:$O,'by local authority'!$AB$3,FALSE)) -> 422.0831189 | K25: =IF(ISNA(VLOOKUP($B$7&$D25&$AB$2&K$11,data!$F:$O,'by local authority'!$AB$3,FALSE)),"-",VLOOKUP($B$7&$D25&$AB$2&K$11,data!$F:$O,'by local authority'!$AB$3,FALSE)) -> 1215.34597 | L25: =IF(ISNA(VLOOKUP($B$7&$D25&$AB$2&L$11,data!$F:$O,'by local authority'!$AB$3,FALSE)),"-",VLOOKUP($B$7&$D25&$AB$2&L$11,data!$F:$O,'by local authority'!$AB$3,FALSE)) -> 4334.993919 | N25: =IF(ISNA(VLOOKUP($B$9&$D25&$AB$2&G$11,data!$F:$O,'by local authority'!$AB$3,FALSE)),"-",VLOOKUP($B$9&$D25&$AB$2&G$11,data!$F:$O,'by local authority'!$AB$3,FALSE)) -> - | O25: =IF(ISNA(VLOOKUP($B$9&$D25&$AB$2&H$11,data!$F:$O,'by local authority'!$AB$3,FALSE)),"-",VLOOKUP($B$9&$D25&$AB$2&H$11,data!$F:$O,'by local authority'!$AB$3,FALSE)) -> - | P25: =IF(ISNA(VLOOKUP($B$9&$D25&$AB$2&I$11,data!$F:$O,'by local authority'!$AB$3,FALSE)),"-",VLOOKUP($B$9&$D25&$AB$2&I$11,data!$F:$O,'by local authority'!$AB$3,FALSE)) -> - | Q25: =IF(ISNA(VLOOKUP($B$9&$D25&$AB$2&J$11,data!$F:$O,'by local authority'!$AB$3,FALSE)),"-",VLOOKUP($B$9&$D25&$AB$2&J$11,data!$F:$O,'by local authority'!$AB$3,FALSE)) -> - | R25: =IF(ISNA(VLOOKUP($B$9&$D25&$AB$2&K$11,data!$F:$O,'by local authority'!$AB$3,FALSE)),"-",VLOOKUP($B$9&$D25&$AB$2&K$11,data!$F:$O,'by local authority'!$AB$3,FALSE)) -> - | S25: =IF(ISNA(VLOOKUP($B$9&$D25&$AB$2&L$11,data!$F:$O,'by local authority'!$AB$3,FALSE)),"-",VLOOKUP($B$9&$D25&$AB$2&L$11,data!$F:$O,'by local authority'!$AB$3,FALSE)) -> -
C26: =VLOOKUP(D26,Lookups!$K$3:$L$23,2,FALSE) -> 12 | D26: Digestive diseases | G26: =IF(ISNA(VLOOKUP($B$7&$D26&$AB$2&G$11,data!$F:$O,'by local authority'!$AB$3,FALSE)),"-",VLOOKUP($B$7&$D26&$AB$2&G$11,data!$F:$O,'by local authority'!$AB$3,FALSE)) -> 661.6008768 | H26: =IF(ISNA(VLOOKUP($B$7&$D26&$AB$2&H$11,data!$F:$O,'by local authority'!$AB$3,FALSE)),"-",VLOOKUP($B$7&$D26&$AB$2&H$11,data!$F:$O,'by local authority'!$AB$3,FALSE)) -> 43.77467758 | I26: =IF(ISNA(VLOOKUP($B$7&$D26&$AB$2&I$11,data!$F:$O,'by local authority'!$AB$3,FALSE)),"-",VLOOKUP($B$7&$D26&$AB$2&I$11,data!$F:$O,'by local authority'!$AB$3,FALSE)) -> 95.2871227 | J26: =IF(ISNA(VLOOKUP($B$7&$D26&$AB$2&J$11,data!$F:$O,'by local authority'!$AB$3,FALSE)),"-",VLOOKUP($B$7&$D26&$AB$2&J$11,data!$F:$O,'by local authority'!$AB$3,FALSE)) -> 304.5240802 | K26: =IF(ISNA(VLOOKUP($B$7&$D26&$AB$2&K$11,data!$F:$O,'by local authority'!$AB$3,FALSE)),"-",VLOOKUP($B$7&$D26&$AB$2&K$11,data!$F:$O,'by local authority'!$AB$3,FALSE)) -> 710.0221517 | L26: =IF(ISNA(VLOOKUP($B$7&$D26&$AB$2&L$11,data!$F:$O,'by local authority'!$AB$3,FALSE)),"-",VLOOKUP($B$7&$D26&$AB$2&L$11,data!$F:$O,'by local authority'!$AB$3,FALSE)) -> 1921.97004 | N26: =IF(ISNA(VLOOKUP($B$9&$D26&$AB$2&G$11,data!$F:$O,'by local authority'!$AB$3,FALSE)),"-",VLOOKUP($B$9&$D26&$AB$2&G$11,data!$F:$O,'by local authority'!$AB$3,FALSE)) -> - | O26: =IF(ISNA(VLOOKUP($B$9&$D26&$AB$2&H$11,data!$F:$O,'by local authority'!$AB$3,FALSE)),"-",VLOOKUP($B$9&$D26&$AB$2&H$11,data!$F:$O,'by local authority'!$AB$3,FALSE)) -> - | P26: =IF(ISNA(VLOOKUP($B$9&$D26&$AB$2&I$11,data!$F:$O,'by local authority'!$AB$3,FALSE)),"-",VLOOKUP($B$9&$D26&$AB$2&I$11,data!$F:$O,'by local authority'!$AB$3,FALSE)) -> - | Q26: =IF(ISNA(VLOOKUP($B$9&$D26&$AB$2&J$11,data!$F:$O,'by local authority'!$AB$3,FALSE)),"-",VLOOKUP($B$9&$D26&$AB$2&J$11,data!$F:$O,'by local authority'!$AB$3,FALSE)) -> - | R26: =IF(ISNA(VLOOKUP($B$9&$D26&$AB$2&K$11,data!$F:$O,'by local authority'!$AB$3,FALSE)),"-",VLOOKUP($B$9&$D26&$AB$2&K$11,data!$F:$O,'by local authority'!$AB$3,FALSE)) -> - | S26: =IF(ISNA(VLOOKUP($B$9&$D26&$AB$2&L$11,data!$F:$O,'by local authority'!$AB$3,FALSE)),"-",VLOOKUP($B$9&$D26&$AB$2&L$11,data!$F:$O,'by local authority'!$AB$3,FALSE)) -> -
C27: =VLOOKUP(D27,Lookups!$K$3:$L$23,2,FALSE) -> 2 | D27: Diarrhoea, lower respiratory, and other common infectious diseases | G27: =IF(ISNA(VLOOKUP($B$7&$D27&$AB$2&G$11,data!$F:$O,'by local authority'!$AB$3,FALSE)),"-",VLOOKUP($B$7&$D27&$AB$2&G$11,data!$F:$O,'by local authority'!$AB$3,FALSE)) -> 562.214636 | H27: =IF(ISNA(VLOOKUP($B$7&$D27&$AB$2&H$11,data!$F:$O,'by local authority'!$AB$3,FALSE)),"-",VLOOKUP($B$7&$D27&$AB$2&H$11,data!$F:$O,'by local authority'!$AB$3,FALSE)) -> 265.3617471 | I27: =IF(ISNA(VLOOKUP($B$7&$D27&$AB$2&I$11,data!$F:$O,'by local authority'!$AB$3,FALSE)),"-",VLOOKUP($B$7&$D27&$AB$2&I$11,data!$F:$O,'by local authority'!$AB$3,FALSE)) -> 144.4714892 | J27: =IF(ISNA(VLOOKUP($B$7&$D27&$AB$2&J$11,data!$F:$O,'by local authority'!$AB$3,FALSE)),"-",VLOOKUP($B$7&$D27&$AB$2&J$11,data!$F:$O,'by local authority'!$AB$3,FALSE)) -> 208.1825697 | K27: =IF(ISNA(VLOOKUP($B$7&$D27&$AB$2&K$11,data!$F:$O,'by local authority'!$AB$3,FALSE)),"-",VLOOKUP($B$7&$D27&$AB$2&K$11,data!$F:$O,'by local authority'!$AB$3,FALSE)) -> 406.550838 | L27: =IF(ISNA(VLOOKUP($B$7&$D27&$AB$2&L$11,data!$F:$O,'by local authority'!$AB$3,FALSE)),"-",VLOOKUP($B$7&$D27&$AB$2&L$11,data!$F:$O,'by local authority'!$AB$3,FALSE)) -> 1744.811191 | N27: =IF(ISNA(VLOOKUP($B$9&$D27&$AB$2&G$11,data!$F:$O,'by local authority'!$AB$3,FALSE)),"-",VLOOKUP($B$9&$D27&$AB$2&G$11,data!$F:$O,'by local authority'!$AB$3,FALSE)) -> - | O27: =IF(ISNA(VLOOKUP($B$9&$D27&$AB$2&H$11,data!$F:$O,'by local authority'!$AB$3,FALSE)),"-",VLOOKUP($B$9&$D27&$AB$2&H$11,data!$F:$O,'by local authority'!$AB$3,FALSE)) -> - | P27: =IF(ISNA(VLOOKUP($B$9&$D27&$AB$2&I$11,data!$F:$O,'by local authority'!$AB$3,FALSE)),"-",VLOOKUP($B$9&$D27&$AB$2&I$11,data!$F:$O,'by local authority'!$AB$3,FALSE)) -> - | Q27: =IF(ISNA(VLOOKUP($B$9&$D27&$AB$2&J$11,data!$F:$O,'by local authority'!$AB$3,FALSE)),"-",VLOOKUP($B$9&$D27&$AB$2&J$11,data!$F:$O,'by local authority'!$AB$3,FALSE)) -> - | R27: =IF(ISNA(VLOOKUP($B$9&$D27&$AB$2&K$11,data!$F:$O,'by local authority'!$AB$3,FALSE)),"-",VLOOKUP($B$9&$D27&$AB$2&K$11,data!$F:$O,'by local authority'!$AB$3,FALSE)) -> - | S27: =IF(ISNA(VLOOKUP($B$9&$D27&$AB$2&L$11,data!$F:$O,'by local authority'!$AB$3,FALSE)),"-",VLOOKUP($B$9&$D27&$AB$2&L$11,data!$F:$O,'by local authority'!$AB$3,FALSE)) -> -
C28: =VLOOKUP(D28,Lookups!$K$3:$L$23,2,FALSE) -> 20 | D28: Suicide, self-harm and interpersonal violence injuries | G28: =IF(ISNA(VLOOKUP($B$7&$D28&$AB$2&G$11,data!$F:$O,'by local authority'!$AB$3,FALSE)),"-",VLOOKUP($B$7&$D28&$AB$2&G$11,data!$F:$O,'by local authority'!$AB$3,FALSE)) -> 519.7857749 | H28: =IF(ISNA(VLOOKUP($B$7&$D28&$AB$2&H$11,data!$F:$O,'by local authority'!$AB$3,FALSE)),"-",VLOOKUP($B$7&$D28&$AB$2&H$11,data!$F:$O,'by local authority'!$AB$3,FALSE)) -> 40.45223846 | I28: =IF(ISNA(VLOOKUP($B$7&$D28&$AB$2&I$11,data!$F:$O,'by local authority'!$AB$3,FALSE)),"-",VLOOKUP($B$7&$D28&$AB$2&I$11,data!$F:$O,'by local authority'!$AB$3,FALSE)) -> 612.7321906 | J28: =IF(ISNA(VLOOKUP($B$7&$D28&$AB$2&J$11,data!$F:$O,'by local authority'!$AB$3,FALSE)),"-",VLOOKUP($B$7&$D28&$AB$2&J$11,data!$F:$O,'by local authority'!$AB$3,FALSE)) -> 998.2354056 | K28: =IF(ISNA(VLOOKUP($B$7&$D28&$AB$2&K$11,data!$F:$O,'by local authority'!$AB$3,FALSE)),"-",VLOOKUP($B$7&$D28&$AB$2&K$11,data!$F:$O,'by local authority'!$AB$3,FALSE)) -> 579.9977664 | L28: =IF(ISNA(VLOOKUP($B$7&$D28&$AB$2&L$11,data!$F:$O,'by local authority'!$AB$3,FALSE)),"-",VLOOKUP($B$7&$D28&$AB$2&L$11,data!$F:$O,'by local authority'!$AB$3,FALSE)) -> 126.2432012 | N28: =IF(ISNA(VLOOKUP($B$9&$D28&$AB$2&G$11,data!$F:$O,'by local authority'!$AB$3,FALSE)),"-",VLOOKUP($B$9&$D28&$AB$2&G$11,data!$F:$O,'by local authority'!$AB$3,FALSE)) -> - | O28: =IF(ISNA(VLOOKUP($B$9&$D28&$AB$2&H$11,data!$F:$O,'by local authority'!$AB$3,FALSE)),"-",VLOOKUP($B$9&$D28&$AB$2&H$11,data!$F:$O,'by local authority'!$AB$3,FALSE)) -> - | P28: =IF(ISNA(VLOOKUP($B$9&$D28&$AB$2&I$11,data!$F:$O,'by local authority'!$AB$3,FALSE)),"-",VLOOKUP($B$9&$D28&$AB$2&I$11,data!$F:$O,'by local authority'!$AB$3,FALSE)) -> - | Q28: =IF(ISNA(VLOOKUP($B$9&$D28&$AB$2&J$11,data!$F:$O,'by local authority'!$AB$3,FALSE)),"-",VLOOKUP($B$9&$D28&$AB$2&J$11,data!$F:$O,'by local authority'!$AB$3,FALSE)) -> - | R28: =IF(ISNA(VLOOKUP($B$9&$D28&$AB$2&K$11,data!$F:$O,'by local authority'!$AB$3,FALSE)),"-",VLOOKUP($B$9&$D28&$AB$2&K$11,data!$F:$O,'by local authority'!$AB$3,FALSE)) -> - | S28: =IF(ISNA(VLOOKUP($B$9&$D28&$AB$2&L$11,data!$F:$O,'by local authority'!$AB$3,FALSE)),"-",VLOOKUP($B$9&$D28&$AB$2&L$11,data!$F:$O,'by local authority'!$AB$3,FALSE)) -> -
C29: =VLOOKUP(D29,Lookups!$K$3:$L$23,2,FALSE) -> 11 | D29: Cirrhosis and other chronic liver diseases | G29: =IF(ISNA(VLOOKUP($B$7&$D29&$AB$2&G$11,data!$F:$O,'by local authority'!$AB$3,FALSE)),"-",VLOOKUP($B$7&$D29&$AB$2&G$11,data!$F:$O,'by local authority'!$AB$3,FALSE)) -> 509.8677002 | H29: =IF(ISNA(VLOOKUP($B$7&$D29&$AB$2&H$11,data!$F:$O,'by local authority'!$AB$3,FALSE)),"-",VLOOKUP($B$7&$D29&$AB$2&H$11,data!$F:$O,'by local authority'!$AB$3,FALSE)) -> 1.575499175 | I29: =IF(ISNA(VLOOKUP($B$7&$D29&$AB$2&I$11,data!$F:$O,'by local authority'!$AB$3,FALSE)),"-",VLOOKUP($B$7&$D29&$AB$2&I$11,data!$F:$O,'by local authority'!$AB$3,FALSE)) -> 7.768158522 | J29: =IF(ISNA(VLOOKUP($B$7&$D29&$AB$2&J$11,data!$F:$O,'by local authority'!$AB$3,FALSE)),"-",VLOOKUP($B$7&$D29&$AB$2&J$11,data!$F:$O,'by local authority'!$AB$3,FALSE)) -> 411.0269978 | K29: =IF(ISNA(VLOOKUP($B$7&$D29&$AB$2&K$11,data!$F:$O,'by local authority'!$AB$3,FALSE)),"-",VLOOKUP($B$7&$D29&$AB$2&K$11,data!$F:$O,'by local authority'!$AB$3,FALSE)) -> 1076.67059 | L29: =IF(ISNA(VLOOKUP($B$7&$D29&$AB$2&L$11,data!$F:$O,'by local authority'!$AB$3,FALSE)),"-",VLOOKUP($B$7&$D29&$AB$2&L$11,data!$F:$O,'by local authority'!$AB$3,FALSE)) -> 587.0893401 | N29: =IF(ISNA(VLOOKUP($B$9&$D29&$AB$2&G$11,data!$F:$O,'by local authority'!$AB$3,FALSE)),"-",VLOOKUP($B$9&$D29&$AB$2&G$11,data!$F:$O,'by local authority'!$AB$3,FALSE)) -> - | O29: =IF(ISNA(VLOOKUP($B$9&$D29&$AB$2&H$11,data!$F:$O,'by local authority'!$AB$3,FALSE)),"-",VLOOKUP($B$9&$D29&$AB$2&H$11,data!$F:$O,'by local authority'!$AB$3,FALSE)) -> - | P29: =IF(ISNA(VLOOKUP($B$9&$D29&$AB$2&I$11,data!$F:$O,'by local authority'!$AB$3,FALSE)),"-",VLOOKUP($B$9&$D29&$AB$2&I$11,data!$F:$O,'by local authority'!$AB$3,FALSE)) -> - | Q29: =IF(ISNA(VLOOKUP($B$9&$D29&$AB$2&J$11,data!$F:$O,'by local authority'!$AB$3,FALSE)),"-",VLOOKUP($B$9&$D29&$AB$2&J$11,data!$F:$O,'by local authority'!$AB$3,FALSE)) -> - | R29: =IF(ISNA(VLOOKUP($B$9&$D29&$AB$2&K$11,data!$F:$O,'by local authority'!$AB$3,FALSE)),"-",VLOOKUP($B$9&$D29&$AB$2&K$11,data!$F:$O,'by local authority'!$AB$3,FALSE)) -> - | S29: =IF(ISNA(VLOOKUP($B$9&$D29&$AB$2&L$11,data!$F:$O,'by local authority'!$AB$3,FALSE)),"-",VLOOKUP($B$9&$D29&$AB$2&L$11,data!$F:$O,'by local authority'!$AB$3,FALSE)) -> -
C30: =VLOOKUP(D30,Lookups!$K$3:$L$23,2,FALSE) -> 19 | D30: Unintentional injuries | G30: =IF(ISNA(VLOOKUP($B$7&$D30&$AB$2&G$11,data!$F:$O,'by local authority'!$AB$3,FALSE)),"-",VLOOKUP($B$7&$D30&$AB$2&G$11,data!$F:$O,'by local authority'!$AB$3,FALSE)) -> 474.9629622 | H30: =IF(ISNA(VLOOKUP($B$7&$D30&$AB$2&H$11,data!$F:$O,'by local authority'!$AB$3,FALSE)),"-",VLOOKUP($B$7&$D30&$AB$2&H$11,data!$F:$O,'by local authority'!$AB$3,FALSE)) -> 222.5962426 | I30: =IF(ISNA(VLOOKUP($B$7&$D30&$AB$2&I$11,data!$F:$O,'by local authority'!$AB$3,FALSE)),"-",VLOOKUP($B$7&$D30&$AB$2&I$11,data!$F:$O,'by local authority'!$AB$3,FALSE)) -> 273.2104351 | J30: =IF(ISNA(VLOOKUP($B$7&$D30&$AB$2&J$11,data!$F:$O,'by local authority'!$AB$3,FALSE)),"-",VLOOKUP($B$7&$D30&$AB$2&J$11,data!$F:$O,'by local authority'!$AB$3,FALSE)) -> 301.595194 | K30: =IF(ISNA(VLOOKUP($B$7&$D30&$AB$2&K$11,data!$F:$O,'by local authority'!$AB$3,FALSE)),"-",VLOOKUP($B$7&$D30&$AB$2&K$11,data!$F:$O,'by local authority'!$AB$3,FALSE)) -> 386.5178017 | L30: =IF(ISNA(VLOOKUP($B$7&$D30&$AB$2&L$11,data!$F:$O,'by local authority'!$AB$3,FALSE)),"-",VLOOKUP($B$7&$D30&$AB$2&L$11,data!$F:$O,'by local authority'!$AB$3,FALSE)) -> 1156.812408 | N30: =IF(ISNA(VLOOKUP($B$9&$D30&$AB$2&G$11,data!$F:$O,'by local authority'!$AB$3,FALSE)),"-",VLOOKUP($B$9&$D30&$AB$2&G$11,data!$F:$O,'by local authority'!$AB$3,FALSE)) -> - | O30: =IF(ISNA(VLOOKUP($B$9&$D30&$AB$2&H$11,data!$F:$O,'by local authority'!$AB$3,FALSE)),"-",VLOOKUP($B$9&$D30&$AB$2&H$11,data!$F:$O,'by local authority'!$AB$3,FALSE)) -> - | P30: =IF(ISNA(VLOOKUP($B$9&$D30&$AB$2&I$11,data!$F:$O,'by local authority'!$AB$3,FALSE)),"-",VLOOKUP($B$9&$D30&$AB$2&I$11,data!$F:$O,'by local authority'!$AB$3,FALSE)) -> - | Q30: =IF(ISNA(VLOOKUP($B$9&$D30&$AB$2&J$11,data!$F:$O,'by local authority'!$AB$3,FALSE)),"-",VLOOKUP($B$9&$D30&$AB$2&J$11,data!$F:$O,'by local authority'!$AB$3,FALSE)) -> - | R30: =IF(ISNA(VLOOKUP($B$9&$D30&$AB$2&K$11,data!$F:$O,'by local authority'!$AB$3,FALSE)),"-",VLOOKUP($B$9&$D30&$AB$2&K$11,data!$F:$O,'by local authority'!$AB$3,FALSE)) -> - | S30: =IF(ISNA(VLOOKUP($B$9&$D30&$AB$2&L$11,data!$F:$O,'by local authority'!$AB$3,FALSE)),"-",VLOOKUP($B$9&$D30&$AB$2&L$11,data!$F:$O,'by local authority'!$AB$3,FALSE)) -> -
C31: =VLOOKUP(D31,Lookups!$K$3:$L$23,2,FALSE) -> 18 | D31: Transport injuries | G31: =IF(ISNA(VLOOKUP($B$7&$D31&$AB$2&G$11,data!$F:$O,'by local authority'!$AB$3,FALSE)),"-",VLOOKUP($B$7&$D31&$AB$2&G$11,data!$F:$O,'by local authority'!$AB$3,FALSE)) -> 151.5770136 | H31: =IF(ISNA(VLOOKUP($B$7&$D31&$AB$2&H$11,data!$F:$O,'by local authority'!$AB$3,FALSE)),"-",VLOOKUP($B$7&$D31&$AB$2&H$11,data!$F:$O,'by local authority'!$AB$3,FALSE)) -> 74.72115528 | I31: =IF(ISNA(VLOOKUP($B$7&$D31&$AB$2&I$11,data!$F:$O,'by local authority'!$AB$3,FALSE)),"-",VLOOKUP($B$7&$D31&$AB$2&I$11,data!$F:$O,'by local authority'!$AB$3,FALSE)) -> 303.5159167 | J31: =IF(ISNA(VLOOKUP($B$7&$D31&$AB$2&J$11,data!$F:$O,'by local authority'!$AB$3,FALSE)),"-",VLOOKUP($B$7&$D31&$AB$2&J$11,data!$F:$O,'by local authority'!$AB$3,FALSE)) -> 203.7106508 | K31: =IF(ISNA(VLOOKUP($B$7&$D31&$AB$2&K$11,data!$F:$O,'by local authority'!$AB$3,FALSE)),"-",VLOOKUP($B$7&$D31&$AB$2&K$11,data!$F:$O,'by local authority'!$AB$3,FALSE)) -> 135.2634349 | L31: =IF(ISNA(VLOOKUP($B$7&$D31&$AB$2&L$11,data!$F:$O,'by local authority'!$AB$3,FALSE)),"-",VLOOKUP($B$7&$D31&$AB$2&L$11,data!$F:$O,'by local authority'!$AB$3,FALSE)) -> 76.35469555 | N31: =IF(ISNA(VLOOKUP($B$9&$D31&$AB$2&G$11,data!$F:$O,'by local authority'!$AB$3,FALSE)),"-",VLOOKUP($B$9&$D31&$AB$2&G$11,data!$F:$O,'by local authority'!$AB$3,FALSE)) -> - | O31: =IF(ISNA(VLOOKUP($B$9&$D31&$AB$2&H$11,data!$F:$O,'by local authority'!$AB$3,FALSE)),"-",VLOOKUP($B$9&$D31&$AB$2&H$11,data!$F:$O,'by local authority'!$AB$3,FALSE)) -> - | P31: =IF(ISNA(VLOOKUP($B$9&$D31&$AB$2&I$11,data!$F:$O,'by local authority'!$AB$3,FALSE)),"-",VLOOKUP($B$9&$D31&$AB$2&I$11,data!$F:$O,'by local authority'!$AB$3,FALSE)) -> - | Q31: =IF(ISNA(VLOOKUP($B$9&$D31&$AB$2&J$11,data!$F:$O,'by local authority'!$AB$3,FALSE)),"-",VLOOKUP($B$9&$D31&$AB$2&J$11,data!$F:$O,'by local authority'!$AB$3,FALSE)) -> - | R31: =IF(ISNA(VLOOKUP($B$9&$D31&$AB$2&K$11,data!$F:$O,'by local authority'!$AB$3,FALSE)),"-",VLOOKUP($B$9&$D31&$AB$2&K$11,data!$F:$O,'by local authority'!$AB$3,FALSE)) -> - | S31: =IF(ISNA(VLOOKUP($B$9&$D31&$AB$2&L$11,data!$F:$O,'by local authority'!$AB$3,FALSE)),"-",VLOOKUP($B$9&$D31&$AB$2&L$11,data!$F:$O,'by local authority'!$AB$3,FALSE)) -> -
C32: =VLOOKUP(D32,Lookups!$K$3:$L$23,2,FALSE) -> 5 | D32: Neonatal disorders | G32: =IF(ISNA(VLOOKUP($B$7&$D32&$AB$2&G$11,data!$F:$O,'by local authority'!$AB$3,FALSE)),"-",VLOOKUP($B$7&$D32&$AB$2&G$11,data!$F:$O,'by local authority'!$AB$3,FALSE)) -> 119.8698131 | H32: =IF(ISNA(VLOOKUP($B$7&$D32&$AB$2&H$11,data!$F:$O,'by local authority'!$AB$3,FALSE)),"-",VLOOKUP($B$7&$D32&$AB$2&H$11,data!$F:$O,'by local authority'!$AB$3,FALSE)) -> 736.8340964 | I32: =IF(ISNA(VLOOKUP($B$7&$D32&$AB$2&I$11,data!$F:$O,'by local authority'!$AB$3,FALSE)),"-",VLOOKUP($B$7&$D32&$AB$2&I$11,data!$F:$O,'by local authority'!$AB$3,FALSE)) -> 15.35143803 | J32: =IF(ISNA(VLOOKUP($B$7&$D32&$AB$2&J$11,data!$F:$O,'by local authority'!$AB$3,FALSE)),"-",VLOOKUP($B$7&$D32&$AB$2&J$11,data!$F:$O,'by local authority'!$AB$3,FALSE)) -> 0.0678583639 | K32: =IF(ISNA(VLOOKUP($B$7&$D32&$AB$2&K$11,data!$F:$O,'by local authority'!$AB$3,FALSE)),"-",VLOOKUP($B$7&$D32&$AB$2&K$11,data!$F:$O,'by local authority'!$AB$3,FALSE)) -> 0.676530169 | L32: =IF(ISNA(VLOOKUP($B$7&$D32&$AB$2&L$11,data!$F:$O,'by local authority'!$AB$3,FALSE)),"-",VLOOKUP($B$7&$D32&$AB$2&L$11,data!$F:$O,'by local authority'!$AB$3,FALSE)) -> 0.07015034321 | N32: =IF(ISNA(VLOOKUP($B$9&$D32&$AB$2&G$11,data!$F:$O,'by local authority'!$AB$3,FALSE)),"-",VLOOKUP($B$9&$D32&$AB$2&G$11,data!$F:$O,'by local authority'!$AB$3,FALSE)) -> - | O32: =IF(ISNA(VLOOKUP($B$9&$D32&$AB$2&H$11,data!$F:$O,'by local authority'!$AB$3,FALSE)),"-",VLOOKUP($B$9&$D32&$AB$2&H$11,data!$F:$O,'by local authority'!$AB$3,FALSE)) -> - | P32: =IF(ISNA(VLOOKUP($B$9&$D32&$AB$2&I$11,data!$F:$O,'by local authority'!$AB$3,FALSE)),"-",VLOOKUP($B$9&$D32&$AB$2&I$11,data!$F:$O,'by local authority'!$AB$3,FALSE)) -> - | Q32: =IF(ISNA(VLOOKUP($B$9&$D32&$AB$2&J$11,data!$F:$O,'by local authority'!$AB$3,FALSE)),"-",VLOOKUP($B$9&$D32&$AB$2&J$11,data!$F:$O,'by local authority'!$AB$3,FALSE)) -> - | R32: =IF(ISNA(VLOOKUP($B$9&$D32&$AB$2&K$11,data!$F:$O,'by local authority'!$AB$3,FALSE)),"-",VLOOKUP($B$9&$D32&$AB$2&K$11,data!$F:$O,'by local authority'!$AB$3,FALSE)) -> - | S32: =IF(ISNA(VLOOKUP($B$9&$D32&$AB$2&L$11,data!$F:$O,'by local authority'!$AB$3,FALSE)),"-",VLOOKUP($B$9&$D32&$AB$2&L$11,data!$F:$O,'by local authority'!$AB$3,FALSE)) -> -
C33: =VLOOKUP(D33,Lookups!$K$3:$L$23,2,FALSE) -> 6 | D33: Nutritional deficiencies | G33: =IF(ISNA(VLOOKUP($B$7&$D33&$AB$2&G$11,data!$F:$O,'by local authority'!$AB$3,FALSE)),"-",VLOOKUP($B$7&$D33&$AB$2&G$11,data!$F:$O,'by local authority'!$AB$3,FALSE)) -> 80.41290931 | H33: =IF(ISNA(VLOOKUP($B$7&$D33&$AB$2&H$11,data!$F:$O,'by local authority'!$AB$3,FALSE)),"-",VLOOKUP($B$7&$D33&$AB$2&H$11,data!$F:$O,'by local authority'!$AB$3,FALSE)) -> 27.64066699 | I33: =IF(ISNA(VLOOKUP($B$7&$D33&$AB$2&I$11,data!$F:$O,'by local authority'!$AB$3,FALSE)),"-",VLOOKUP($B$7&$D33&$AB$2&I$11,data!$F:$O,'by local authority'!$AB$3,FALSE)) -> 52.60067137 | J33: =IF(ISNA(VLOOKUP($B$7&$D33&$AB$2&J$11,data!$F:$O,'by local authority'!$AB$3,FALSE)),"-",VLOOKUP($B$7&$D33&$AB$2&J$11,data!$F:$O,'by local authority'!$AB$3,FALSE)) -> 56.28042076 | K33: =IF(ISNA(VLOOKUP($B$7&$D33&$AB$2&K$11,data!$F:$O,'by local authority'!$AB$3,FALSE)),"-",VLOOKUP($B$7&$D33&$AB$2&K$11,data!$F:$O,'by local authority'!$AB$3,FALSE)) -> 67.02191337 | L33: =IF(ISNA(VLOOKUP($B$7&$D33&$AB$2&L$11,data!$F:$O,'by local authority'!$AB$3,FALSE)),"-",VLOOKUP($B$7&$D33&$AB$2&L$11,data!$F:$O,'by local authority'!$AB$3,FALSE)) -> 191.108753 | N33: =IF(ISNA(VLOOKUP($B$9&$D33&$AB$2&G$11,data!$F:$O,'by local authority'!$AB$3,FALSE)),"-",VLOOKUP($B$9&$D33&$AB$2&G$11,data!$F:$O,'by local authority'!$AB$3,FALSE)) -> - | O33: =IF(ISNA(VLOOKUP($B$9&$D33&$AB$2&H$11,data!$F:$O,'by local authority'!$AB$3,FALSE)),"-",VLOOKUP($B$9&$D33&$AB$2&H$11,data!$F:$O,'by local authority'!$AB$3,FALSE)) -> - | P33: =IF(ISNA(VLOOKUP($B$9&$D33&$AB$2&I$11,data!$F:$O,'by local authority'!$AB$3,FALSE)),"-",VLOOKUP($B$9&$D33&$AB$2&I$11,data!$F:$O,'by local authority'!$AB$3,FALSE)) -> - | Q33: =IF(ISNA(VLOOKUP($B$9&$D33&$AB$2&J$11,data!$F:$O,'by local authority'!$AB$3,FALSE)),"-",VLOOKUP($B$9&$D33&$AB$2&J$11,data!$F:$O,'by local authority'!$AB$3,FALSE)) -> - | R33: =IF(ISNA(VLOOKUP($B$9&$D33&$AB$2&K$11,data!$F:$O,'by local authority'!$AB$3,FALSE)),"-",VLOOKUP($B$9&$D33&$AB$2&K$11,data!$F:$O,'by local authority'!$AB$3,FALSE)) -> - | S33: =IF(ISNA(VLOOKUP($B$9&$D33&$AB$2&L$11,data!$F:$O,'by local authority'!$AB$3,FALSE)),"-",VLOOKUP($B$9&$D33&$AB$2&L$11,data!$F:$O,'by local authority'!$AB$3,FALSE)) -> -
C34: =VLOOKUP(D34,Lookups!$K$3:$L$23,2,FALSE) -> 22 | D34: Unknown and other causes of injury | G34: =IF(ISNA(VLOOKUP($B$7&$D34&$AB$2&G$11,data!$F:$O,'by local authority'!$AB$3,FALSE)),"-",VLOOKUP($B$7&$D34&$AB$2&G$11,data!$F:$O,'by local authority'!$AB$3,FALSE)) -> 59.12543501 | H34: =IF(ISNA(VLOOKUP($B$7&$D34&$AB$2&H$11,data!$F:$O,'by local authority'!$AB$3,FALSE)),"-",VLOOKUP($B$7&$D34&$AB$2&H$11,data!$F:$O,'by local authority'!$AB$3,FALSE)) -> 34.54181179 | I34: =IF(ISNA(VLOOKUP($B$7&$D34&$AB$2&I$11,data!$F:$O,'by local authority'!$AB$3,FALSE)),"-",VLOOKUP($B$7&$D34&$AB$2&I$11,data!$F:$O,'by local authority'!$AB$3,FALSE)) -> 43.38640596 | J34: =IF(ISNA(VLOOKUP($B$7&$D34&$AB$2&J$11,data!$F:$O,'by local authority'!$AB$3,FALSE)),"-",VLOOKUP($B$7&$D34&$AB$2&J$11,data!$F:$O,'by local authority'!$AB$3,FALSE)) -> 61.10964678 | K34: =IF(ISNA(VLOOKUP($B$7&$D34&$AB$2&K$11,data!$F:$O,'by local authority'!$AB$3,FALSE)),"-",VLOOKUP($B$7&$D34&$AB$2&K$11,data!$F:$O,'by local authority'!$AB$3,FALSE)) -> 63.86355619 | L34: =IF(ISNA(VLOOKUP($B$7&$D34&$AB$2&L$11,data!$F:$O,'by local authority'!$AB$3,FALSE)),"-",VLOOKUP($B$7&$D34&$AB$2&L$11,data!$F:$O,'by local authority'!$AB$3,FALSE)) -> 79.44312638 | N34: =IF(ISNA(VLOOKUP($B$9&$D34&$AB$2&G$11,data!$F:$O,'by local authority'!$AB$3,FALSE)),"-",VLOOKUP($B$9&$D34&$AB$2&G$11,data!$F:$O,'by local authority'!$AB$3,FALSE)) -> - | O34: =IF(ISNA(VLOOKUP($B$9&$D34&$AB$2&H$11,data!$F:$O,'by local authority'!$AB$3,FALSE)),"-",VLOOKUP($B$9&$D34&$AB$2&H$11,data!$F:$O,'by local authority'!$AB$3,FALSE)) -> - | P34: =IF(ISNA(VLOOKUP($B$9&$D34&$AB$2&I$11,data!$F:$O,'by local authority'!$AB$3,FALSE)),"-",VLOOKUP($B$9&$D34&$AB$2&I$11,data!$F:$O,'by local authority'!$AB$3,FALSE)) -> - | Q34: =IF(ISNA(VLOOKUP($B$9&$D34&$AB$2&J$11,data!$F:$O,'by local authority'!$AB$3,FALSE)),"-",VLOOKUP($B$9&$D34&$AB$2&J$11,data!$F:$O,'by local authority'!$AB$3,FALSE)) -> - | R34: =IF(ISNA(VLOOKUP($B$9&$D34&$AB$2&K$11,data!$F:$O,'by local authority'!$AB$3,FALSE)),"-",VLOOKUP($B$9&$D34&$AB$2&K$11,data!$F:$O,'by local authority'!$AB$3,FALSE)) -> - | S34: =IF(ISNA(VLOOKUP($B$9&$D34&$AB$2&L$11,data!$F:$O,'by local authority'!$AB$3,FALSE)),"-",VLOOKUP($B$9&$D34&$AB$2&L$11,data!$F:$O,'by local authority'!$AB$3,FALSE)) -> -
C35: =VLOOKUP(D35,Lookups!$K$3:$L$23,2,FALSE) -> 1 | D35: HIV/AIDS and tuberculosis | G35: =IF(ISNA(VLOOKUP($B$7&$D35&$AB$2&G$11,data!$F:$O,'by local authority'!$AB$3,FALSE)),"-",VLOOKUP($B$7&$D35&$AB$2&G$11,data!$F:$O,'by local authority'!$AB$3,FALSE)) -> 27.48557783 | H35: =IF(ISNA(VLOOKUP($B$7&$D35&$AB$2&H$11,data!$F:$O,'by local authority'!$AB$3,FALSE)),"-",VLOOKUP($B$7&$D35&$AB$2&H$11,data!$F:$O,'by local authority'!$AB$3,FALSE)) -> 4.053518595 | I35: =IF(ISNA(VLOOKUP($B$7&$D35&$AB$2&I$11,data!$F:$O,'by local authority'!$AB$3,FALSE)),"-",VLOOKUP($B$7&$D35&$AB$2&I$11,data!$F:$O,'by local authority'!$AB$3,FALSE)) -> 3.335640987 | J35: =IF(ISNA(VLOOKUP($B$7&$D35&$AB$2&J$11,data!$F:$O,'by local authority'!$AB$3,FALSE)),"-",VLOOKUP($B$7&$D35&$AB$2&J$11,data!$F:$O,'by local authority'!$AB$3,FALSE)) -> 38.65672433 | K35: =IF(ISNA(VLOOKUP($B$7&$D35&$AB$2&K$11,data!$F:$O,'by local authority'!$AB$3,FALSE)),"-",VLOOKUP($B$7&$D35&$AB$2&K$11,data!$F:$O,'by local authority'!$AB$3,FALSE)) -> 41.46965829 | L35: =IF(ISNA(VLOOKUP($B$7&$D35&$AB$2&L$11,data!$F:$O,'by local authority'!$AB$3,FALSE)),"-",VLOOKUP($B$7&$D35&$AB$2&L$11,data!$F:$O,'by local authority'!$AB$3,FALSE)) -> 26.76884483 | N35: =IF(ISNA(VLOOKUP($B$9&$D35&$AB$2&G$11,data!$F:$O,'by local authority'!$AB$3,FALSE)),"-",VLOOKUP($B$9&$D35&$AB$2&G$11,data!$F:$O,'by local authority'!$AB$3,FALSE)) -> - | O35: =IF(ISNA(VLOOKUP($B$9&$D35&$AB$2&H$11,data!$F:$O,'by local authority'!$AB$3,FALSE)),"-",VLOOKUP($B$9&$D35&$AB$2&H$11,data!$F:$O,'by local authority'!$AB$3,FALSE)) -> - | P35: =IF(ISNA(VLOOKUP($B$9&$D35&$AB$2&I$11,data!$F:$O,'by local authority'!$AB$3,FALSE)),"-",VLOOKUP($B$9&$D35&$AB$2&I$11,data!$F:$O,'by local authority'!$AB$3,FALSE)) -> - | Q35: =IF(ISNA(VLOOKUP($B$9&$D35&$AB$2&J$11,data!$F:$O,'by local authority'!$AB$3,FALSE)),"-",VLOOKUP($B$9&$D35&$AB$2&J$11,data!$F:$O,'by local authority'!$AB$3,FALSE)) -> - | R35: =IF(ISNA(VLOOKUP($B$9&$D35&$AB$2&K$11,data!$F:$O,'by local authority'!$AB$3,FALSE)),"-",VLOOKUP($B$9&$D35&$AB$2&K$11,data!$F:$O,'by local authority'!$AB$3,FALSE)) -> - | S35: =IF(ISNA(VLOOKUP($B$9&$D35&$AB$2&L$11,data!$F:$O,'by local authority'!$AB$3,FALSE)),"-",VLOOKUP($B$9&$D35&$AB$2&L$11,data!$F:$O,'by local authority'!$AB$3,FALSE)) -> -
C36: =VLOOKUP(D36,Lookups!$K$3:$L$23,2,FALSE) -> 7 | D36: Other communicable, maternal, neonatal, and nutritional diseases | G36: =IF(ISNA(VLOOKUP($B$7&$D36&$AB$2&G$11,data!$F:$O,'by local authority'!$AB$3,FALSE)),"-",VLOOKUP($B$7&$D36&$AB$2&G$11,data!$F:$O,'by local authority'!$AB$3,FALSE)) -> 23.18753119 | H36: =IF(ISNA(VLOOKUP($B$7&$D36&$AB$2&H$11,data!$F:$O,'by local authority'!$AB$3,FALSE)),"-",VLOOKUP($B$7&$D36&$AB$2&H$11,data!$F:$O,'by local authority'!$AB$3,FALSE)) -> 12.45465584 | I36: =IF(ISNA(VLOOKUP($B$7&$D36&$AB$2&I$11,data!$F:$O,'by local authority'!$AB$3,FALSE)),"-",VLOOKUP($B$7&$D36&$AB$2&I$11,data!$F:$O,'by local authority'!$AB$3,FALSE)) -> 2.546236222 | J36: =IF(ISNA(VLOOKUP($B$7&$D36&$AB$2&J$11,data!$F:$O,'by local authority'!$AB$3,FALSE)),"-",VLOOKUP($B$7&$D36&$AB$2&J$11,data!$F:$O,'by local authority'!$AB$3,FALSE)) -> 10.18162132 | K36: =IF(ISNA(VLOOKUP($B$7&$D36&$AB$2&K$11,data!$F:$O,'by local authority'!$AB$3,FALSE)),"-",VLOOKUP($B$7&$D36&$AB$2&K$11,data!$F:$O,'by local authority'!$AB$3,FALSE)) -> 28.98729224 | L36: =IF(ISNA(VLOOKUP($B$7&$D36&$AB$2&L$11,data!$F:$O,'by local authority'!$AB$3,FALSE)),"-",VLOOKUP($B$7&$D36&$AB$2&L$11,data!$F:$O,'by local authority'!$AB$3,FALSE)) -> 53.96003586 | N36: =IF(ISNA(VLOOKUP($B$9&$D36&$AB$2&G$11,data!$F:$O,'by local authority'!$AB$3,FALSE)),"-",VLOOKUP($B$9&$D36&$AB$2&G$11,data!$F:$O,'by local authority'!$AB$3,FALSE)) -> - | O36: =IF(ISNA(VLOOKUP($B$9&$D36&$AB$2&H$11,data!$F:$O,'by local authority'!$AB$3,FALSE)),"-",VLOOKUP($B$9&$D36&$AB$2&H$11,data!$F:$O,'by local authority'!$AB$3,FALSE)) -> - | P36: =IF(ISNA(VLOOKUP($B$9&$D36&$AB$2&I$11,data!$F:$O,'by local authority'!$AB$3,FALSE)),"-",VLOOKUP($B$9&$D36&$AB$2&I$11,data!$F:$O,'by local authority'!$AB$3,FALSE)) -> - | Q36: =IF(ISNA(VLOOKUP($B$9&$D36&$AB$2&J$11,data!$F:$O,'by local authority'!$AB$3,FALSE)),"-",VLOOKUP($B$9&$D36&$AB$2&J$11,data!$F:$O,'by local authority'!$AB$3,FALSE)) -> - | R36: =IF(ISNA(VLOOKUP($B$9&$D36&$AB$2&K$11,data!$F:$O,'by local authority'!$AB$3,FALSE)),"-",VLOOKUP($B$9&$D36&$AB$2&K$11,data!$F:$O,'by local authority'!$AB$3,FALSE)) -> - | S36: =IF(ISNA(VLOOKUP($B$9&$D36&$AB$2&L$11,data!$F:$O,'by local authority'!$AB$3,FALSE)),"-",VLOOKUP($B$9&$D36&$AB$2&L$11,data!$F:$O,'by local authority'!$AB$3,FALSE)) -> -
C37: =VLOOKUP(D37,Lookups!$K$3:$L$23,2,FALSE) -> 4 | D37: Maternal disorders | G37: =IF(ISNA(VLOOKUP($B$7&$D37&$AB$2&G$11,data!$F:$O,'by local authority'!$AB$3,FALSE)),"-",VLOOKUP($B$7&$D37&$AB$2&G$11,data!$F:$O,'by local authority'!$AB$3,FALSE)) -> 16.62553767 | H37: =IF(ISNA(VLOOKUP($B$7&$D37&$AB$2&H$11,data!$F:$O,'by local authority'!$AB$3,FALSE)),"-",VLOOKUP($B$7&$D37&$AB$2&H$11,data!$F:$O,'by local authority'!$AB$3,FALSE)) -> 0.01067409269 | I37: =IF(ISNA(VLOOKUP($B$7&$D37&$AB$2&I$11,data!$F:$O,'by local authority'!$AB$3,FALSE)),"-",VLOOKUP($B$7&$D37&$AB$2&I$11,data!$F:$O,'by local authority'!$AB$3,FALSE)) -> 48.83049344 | J37: =IF(ISNA(VLOOKUP($B$7&$D37&$AB$2&J$11,data!$F:$O,'by local authority'!$AB$3,FALSE)),"-",VLOOKUP($B$7&$D37&$AB$2&J$11,data!$F:$O,'by local authority'!$AB$3,FALSE)) -> 41.3928323 | K37: =IF(ISNA(VLOOKUP($B$7&$D37&$AB$2&K$11,data!$F:$O,'by local authority'!$AB$3,FALSE)),"-",VLOOKUP($B$7&$D37&$AB$2&K$11,data!$F:$O,'by local authority'!$AB$3,FALSE)) -> 0.1480094706 | L37: =IF(ISNA(VLOOKUP($B$7&$D37&$AB$2&L$11,data!$F:$O,'by local authority'!$AB$3,FALSE)),"-",VLOOKUP($B$7&$D37&$AB$2&L$11,data!$F:$O,'by local authority'!$AB$3,FALSE)) -> 0 | N37: =IF(ISNA(VLOOKUP($B$9&$D37&$AB$2&G$11,data!$F:$O,'by local authority'!$AB$3,FALSE)),"-",VLOOKUP($B$9&$D37&$AB$2&G$11,data!$F:$O,'by local authority'!$AB$3,FALSE)) -> - | O37: =IF(ISNA(VLOOKUP($B$9&$D37&$AB$2&H$11,data!$F:$O,'by local authority'!$AB$3,FALSE)),"-",VLOOKUP($B$9&$D37&$AB$2&H$11,data!$F:$O,'by local authority'!$AB$3,FALSE)) -> - | P37: =IF(ISNA(VLOOKUP($B$9&$D37&$AB$2&I$11,data!$F:$O,'by local authority'!$AB$3,FALSE)),"-",VLOOKUP($B$9&$D37&$AB$2&I$11,data!$F:$O,'by local authority'!$AB$3,FALSE)) -> - | Q37: =IF(ISNA(VLOOKUP($B$9&$D37&$AB$2&J$11,data!$F:$O,'by local authority'!$AB$3,FALSE)),"-",VLOOKUP($B$9&$D37&$AB$2&J$11,data!$F:$O,'by local authority'!$AB$3,FALSE)) -> - | R37: =IF(ISNA(VLOOKUP($B$9&$D37&$AB$2&K$11,data!$F:$O,'by local authority'!$AB$3,FALSE)),"-",VLOOKUP($B$9&$D37&$AB$2&K$11,data!$F:$O,'by local authority'!$AB$3,FALSE)) -> - | S37: =IF(ISNA(VLOOKUP($B$9&$D37&$AB$2&L$11,data!$F:$O,'by local authority'!$AB$3,FALSE)),"-",VLOOKUP($B$9&$D37&$AB$2&L$11,data!$F:$O,'by local authority'!$AB$3,FALSE)) -> -
D39: Source reference: Scottish Burden of Disease study 2016
D40: http://www.scotpho.org.uk/comparative-health/burden-of-disease/overview/
D42: All causes of disease and injury | G42: =IF(ISNA(VLOOKUP($B$7&$D15&$AB$2&G$11,data!$F:$O,6,FALSE)),"-",VLOOKUP($B$7&$D15&$AB$2&G$11,data!$F:$O,6,FALSE)) -> 55867 | H42: =IF(ISNA(VLOOKUP($B$7&$D15&$AB$2&H$11,data!$F:$O,6,FALSE)),"-",VLOOKUP($B$7&$D15&$AB$2&H$11,data!$F:$O,6,FALSE)) -> 246.6666667 | I42: =IF(ISNA(VLOOKUP($B$7&$D15&$AB$2&I$11,data!$F:$O,6,FALSE)),"-",VLOOKUP($B$7&$D15&$AB$2&I$11,data!$F:$O,6,FALSE)) -> 232 | J42: =IF(ISNA(VLOOKUP($B$7&$D15&$AB$2&J$11,data!$F:$O,6,FALSE)),"-",VLOOKUP($B$7&$D15&$AB$2&J$11,data!$F:$O,6,FALSE)) -> 1748.333333 | K42: =IF(ISNA(VLOOKUP($B$7&$D15&$AB$2&K$11,data!$F:$O,6,FALSE)),"-",VLOOKUP($B$7&$D15&$AB$2&K$11,data!$F:$O,6,FALSE)) -> 7907.666667 | L42: =IF(ISNA(VLOOKUP($B$7&$D15&$AB$2&L$11,data!$F:$O,6,FALSE)),"-",VLOOKUP($B$7&$D15&$AB$2&L$11,data!$F:$O,6,FALSE)) -> 45732.33333 | N42: =IF(ISNA(VLOOKUP($B$9&$D15&$AB$2&G$11,data!$F:$O,6,FALSE)),"-",VLOOKUP($B$9&$D15&$AB$2&G$11,data!$F:$O,6,FALSE)) -> - | O42: =IF(ISNA(VLOOKUP($B$9&$D15&$AB$2&H$11,data!$F:$O,6,FALSE)),"-",VLOOKUP($B$9&$D15&$AB$2&H$11,data!$F:$O,6,FALSE)) -> - | P42: =IF(ISNA(VLOOKUP($B$9&$D15&$AB$2&I$11,data!$F:$O,6,FALSE)),"-",VLOOKUP($B$9&$D15&$AB$2&I$11,data!$F:$O,6,FALSE)) -> - | Q42: =IF(ISNA(VLOOKUP($B$9&$D15&$AB$2&J$11,data!$F:$O,6,FALSE)),"-",VLOOKUP($B$9&$D15&$AB$2&J$11,data!$F:$O,6,FALSE)) -> - | R42: =IF(ISNA(VLOOKUP($B$9&$D15&$AB$2&K$11,data!$F:$O,6,FALSE)),"-",VLOOKUP($B$9&$D15&$AB$2&K$11,data!$F:$O,6,FALSE)) -> - | S42: =IF(ISNA(VLOOKUP($B$9&$D15&$AB$2&L$11,data!$F:$O,6,FALSE)),"-",VLOOKUP($B$9&$D15&$AB$2&L$11,data!$F:$O,6,FALSE)) -> -
D44: Cancer | G44: =IF(ISNA(VLOOKUP($B$7&$D17&$AB$2&G$11,data!$F:$O,6,FALSE)),"-",VLOOKUP($B$7&$D17&$AB$2&G$11,data!$F:$O,6,FALSE)) -> 15867.4682 | H44: =IF(ISNA(VLOOKUP($B$7&$D17&$AB$2&H$11,data!$F:$O,6,FALSE)),"-",VLOOKUP($B$7&$D17&$AB$2&H$11,data!$F:$O,6,FALSE)) -> 19.46447007 | I44: =IF(ISNA(VLOOKUP($B$7&$D17&$AB$2&I$11,data!$F:$O,6,FALSE)),"-",VLOOKUP($B$7&$D17&$AB$2&I$11,data!$F:$O,6,FALSE)) -> 20.85201453 | J44: =IF(ISNA(VLOOKUP($B$7&$D17&$AB$2&J$11,data!$F:$O,6,FALSE)),"-",VLOOKUP($B$7&$D17&$AB$2&J$11,data!$F:$O,6,FALSE)) -> 288.8880154 | K44: =IF(ISNA(VLOOKUP($B$7&$D17&$AB$2&K$11,data!$F:$O,6,FALSE)),"-",VLOOKUP($B$7&$D17&$AB$2&K$11,data!$F:$O,6,FALSE)) -> 3048.524767 | L44: =IF(ISNA(VLOOKUP($B$7&$D17&$AB$2&L$11,data!$F:$O,6,FALSE)),"-",VLOOKUP($B$7&$D17&$AB$2&L$11,data!$F:$O,6,FALSE)) -> 12489.73893 | N44: =IF(ISNA(VLOOKUP($B$9&$D17&$AB$2&G$11,data!$F:$O,6,FALSE)),"-",VLOOKUP($B$9&$D17&$AB$2&G$11,data!$F:$O,6,FALSE)) -> - | O44: =IF(ISNA(VLOOKUP($B$9&$D17&$AB$2&H$11,data!$F:$O,6,FALSE)),"-",VLOOKUP($B$9&$D17&$AB$2&H$11,data!$F:$O,6,FALSE)) -> - | P44: =IF(ISNA(VLOOKUP($B$9&$D17&$AB$2&I$11,data!$F:$O,6,FALSE)),"-",VLOOKUP($B$9&$D17&$AB$2&I$11,data!$F:$O,6,FALSE)) -> - | Q44: =IF(ISNA(VLOOKUP($B$9&$D17&$AB$2&J$11,data!$F:$O,6,FALSE)),"-",VLOOKUP($B$9&$D17&$AB$2&J$11,data!$F:$O,6,FALSE)) -> - | R44: =IF(ISNA(VLOOKUP($B$9&$D17&$AB$2&K$11,data!$F:$O,6,FALSE)),"-",VLOOKUP($B$9&$D17&$AB$2&K$11,data!$F:$O,6,FALSE)) -> - | S44: =IF(ISNA(VLOOKUP($B$9&$D17&$AB$2&L$11,data!$F:$O,6,FALSE)),"-",VLOOKUP($B$9&$D17&$AB$2&L$11,data!$F:$O,6,FALSE)) -> -
D45: Cardiovascular diseases | G45: =IF(ISNA(VLOOKUP($B$7&$D18&$AB$2&G$11,data!$F:$O,6,FALSE)),"-",VLOOKUP($B$7&$D18&$AB$2&G$11,data!$F:$O,6,FALSE)) -> 15267.32437 | H45: =IF(ISNA(VLOOKUP($B$7&$D18&$AB$2&H$11,data!$F:$O,6,FALSE)),"-",VLOOKUP($B$7&$D18&$AB$2&H$11,data!$F:$O,6,FALSE)) -> 3.270260398 | I45: =IF(ISNA(VLOOKUP($B$7&$D18&$AB$2&I$11,data!$F:$O,6,FALSE)),"-",VLOOKUP($B$7&$D18&$AB$2&I$11,data!$F:$O,6,FALSE)) -> 9.097365685 | J45: =IF(ISNA(VLOOKUP($B$7&$D18&$AB$2&J$11,data!$F:$O,6,FALSE)),"-",VLOOKUP($B$7&$D18&$AB$2&J$11,data!$F:$O,6,FALSE)) -> 200.5040544 | K45: =IF(ISNA(VLOOKUP($B$7&$D18&$AB$2&K$11,data!$F:$O,6,FALSE)),"-",VLOOKUP($B$7&$D18&$AB$2&K$11,data!$F:$O,6,FALSE)) -> 1655.857446 | L45: =IF(ISNA(VLOOKUP($B$7&$D18&$AB$2&L$11,data!$F:$O,6,FALSE)),"-",VLOOKUP($B$7&$D18&$AB$2&L$11,data!$F:$O,6,FALSE)) -> 13398.59524 | N45: =IF(ISNA(VLOOKUP($B$9&$D18&$AB$2&G$11,data!$F:$O,6,FALSE)),"-",VLOOKUP($B$9&$D18&$AB$2&G$11,data!$F:$O,6,FALSE)) -> - | O45: =IF(ISNA(VLOOKUP($B$9&$D18&$AB$2&H$11,data!$F:$O,6,FALSE)),"-",VLOOKUP($B$9&$D18&$AB$2&H$11,data!$F:$O,6,FALSE)) -> - | P45: =IF(ISNA(VLOOKUP($B$9&$D18&$AB$2&I$11,data!$F:$O,6,FALSE)),"-",VLOOKUP($B$9&$D18&$AB$2&I$11,data!$F:$O,6,FALSE)) -> - | Q45: =IF(ISNA(VLOOKUP($B$9&$D18&$AB$2&J$11,data!$F:$O,6,FALSE)),"-",VLOOKUP($B$9&$D18&$AB$2&J$11,data!$F:$O,6,FALSE)) -> - | R45: =IF(ISNA(VLOOKUP($B$9&$D18&$AB$2&K$11,data!$F:$O,6,FALSE)),"-",VLOOKUP($B$9&$D18&$AB$2&K$11,data!$F:$O,6,FALSE)) -> - | S45: =IF(ISNA(VLOOKUP($B$9&$D18&$AB$2&L$11,data!$F:$O,6,FALSE)),"-",VLOOKUP($B$9&$D18&$AB$2&L$11,data!$F:$O,6,FALSE)) -> -
D46: Neurological disorders | G46: =IF(ISNA(VLOOKUP($B$7&$D19&$AB$2&G$11,data!$F:$O,6,FALSE)),"-",VLOOKUP($B$7&$D19&$AB$2&G$11,data!$F:$O,6,FALSE)) -> 7412.666481 | H46: =IF(ISNA(VLOOKUP($B$7&$D19&$AB$2&H$11,data!$F:$O,6,FALSE)),"-",VLOOKUP($B$7&$D19&$AB$2&H$11,data!$F:$O,6,FALSE)) -> 8.950893689 | I46: =IF(ISNA(VLOOKUP($B$7&$D19&$AB$2&I$11,data!$F:$O,6,FALSE)),"-",VLOOKUP($B$7&$D19&$AB$2&I$11,data!$F:$O,6,FALSE)) -> 13.15624007 | J46: =IF(ISNA(VLOOKUP($B$7&$D19&$AB$2&J$11,data!$F:$O,6,FALSE)),"-",VLOOKUP($B$7&$D19&$AB$2&J$11,data!$F:$O,6,FALSE)) -> 55.76737333 | K46: =IF(ISNA(VLOOKUP($B$7&$D19&$AB$2&K$11,data!$F:$O,6,FALSE)),"-",VLOOKUP($B$7&$D19&$AB$2&K$11,data!$F:$O,6,FALSE)) -> 318.0578392 | L46: =IF(ISNA(VLOOKUP($B$7&$D19&$AB$2&L$11,data!$F:$O,6,FALSE)),"-",VLOOKUP($B$7&$D19&$AB$2&L$11,data!$F:$O,6,FALSE)) -> 7016.734135 | N46: =IF(ISNA(VLOOKUP($B$9&$D19&$AB$2&G$11,data!$F:$O,6,FALSE)),"-",VLOOKUP($B$9&$D19&$AB$2&G$11,data!$F:$O,6,FALSE)) -> - | O46: =IF(ISNA(VLOOKUP($B$9&$D19&$AB$2&H$11,data!$F:$O,6,FALSE)),"-",VLOOKUP($B$9&$D19&$AB$2&H$11,data!$F:$O,6,FALSE)) -> - | P46: =IF(ISNA(VLOOKUP($B$9&$D19&$AB$2&I$11,data!$F:$O,6,FALSE)),"-",VLOOKUP($B$9&$D19&$AB$2&I$11,data!$F:$O,6,FALSE)) -> - | Q46: =IF(ISNA(VLOOKUP($B$9&$D19&$AB$2&J$11,data!$F:$O,6,FALSE)),"-",VLOOKUP($B$9&$D19&$AB$2&J$11,data!$F:$O,6,FALSE)) -> - | R46: =IF(ISNA(VLOOKUP($B$9&$D19&$AB$2&K$11,data!$F:$O,6,FALSE)),"-",VLOOKUP($B$9&$D19&$AB$2&K$11,data!$F:$O,6,FALSE)) -> - | S46: =IF(ISNA(VLOOKUP($B$9&$D19&$AB$2&L$11,data!$F:$O,6,FALSE)),"-",VLOOKUP($B$9&$D19&$AB$2&L$11,data!$F:$O,6,FALSE)) -> -
D47: Mental health disorders | G47: =IF(ISNA(VLOOKUP($B$7&$D20&$AB$2&G$11,data!$F:$O,6,FALSE)),"-",VLOOKUP($B$7&$D20&$AB$2&G$11,data!$F:$O,6,FALSE)) -> 46.48712374 | H47: =IF(ISNA(VLOOKUP($B$7&$D20&$AB$2&H$11,data!$F:$O,6,FALSE)),"-",VLOOKUP($B$7&$D20&$AB$2&H$11,data!$F:$O,6,FALSE)) -> 0 | I47: =IF(ISNA(VLOOKUP($B$7&$D20&$AB$2&I$11,data!$F:$O,6,FALSE)),"-",VLOOKUP($B$7&$D20&$AB$2&I$11,data!$F:$O,6,FALSE)) -> 0.168321934 | J47: =IF(ISNA(VLOOKUP($B$7&$D20&$AB$2&J$11,data!$F:$O,6,FALSE)),"-",VLOOKUP($B$7&$D20&$AB$2&J$11,data!$F:$O,6,FALSE)) -> 4.676558266 | K47: =IF(ISNA(VLOOKUP($B$7&$D20&$AB$2&K$11,data!$F:$O,6,FALSE)),"-",VLOOKUP($B$7&$D20&$AB$2&K$11,data!$F:$O,6,FALSE)) -> 9.14054359 | L47: =IF(ISNA(VLOOKUP($B$7&$D20&$AB$2&L$11,data!$F:$O,6,FALSE)),"-",VLOOKUP($B$7&$D20&$AB$2&L$11,data!$F:$O,6,FALSE)) -> 32.50169995 | N47: =IF(ISNA(VLOOKUP($B$9&$D20&$AB$2&G$11,data!$F:$O,6,FALSE)),"-",VLOOKUP($B$9&$D20&$AB$2&G$11,data!$F:$O,6,FALSE)) -> - | O47: =IF(ISNA(VLOOKUP($B$9&$D20&$AB$2&H$11,data!$F:$O,6,FALSE)),"-",VLOOKUP($B$9&$D20&$AB$2&H$11,data!$F:$O,6,FALSE)) -> - | P47: =IF(ISNA(VLOOKUP($B$9&$D20&$AB$2&I$11,data!$F:$O,6,FALSE)),"-",VLOOKUP($B$9&$D20&$AB$2&I$11,data!$F:$O,6,FALSE)) -> - | Q47: =IF(ISNA(VLOOKUP($B$9&$D20&$AB$2&J$11,data!$F:$O,6,FALSE)),"-",VLOOKUP($B$9&$D20&$AB$2&J$11,data!$F:$O,6,FALSE)) -> - | R47: =IF(ISNA(VLOOKUP($B$9&$D20&$AB$2&K$11,data!$F:$O,6,FALSE)),"-",VLOOKUP($B$9&$D20&$AB$2&K$11,data!$F:$O,6,FALSE)) -> - | S47: =IF(ISNA(VLOOKUP($B$9&$D20&$AB$2&L$11,data!$F:$O,6,FALSE)),"-",VLOOKUP($B$9&$D20&$AB$2&L$11,data!$F:$O,6,FALSE)) -> -
D48: Musculoskeletal disorders | G48: =IF(ISNA(VLOOKUP($B$7&$D21&$AB$2&G$11,data!$F:$O,6,FALSE)),"-",VLOOKUP($B$7&$D21&$AB$2&G$11,data!$F:$O,6,FALSE)) -> 372.1320062 | H48: =IF(ISNA(VLOOKUP($B$7&$D21&$AB$2&H$11,data!$F:$O,6,FALSE)),"-",VLOOKUP($B$7&$D21&$AB$2&H$11,data!$F:$O,6,FALSE)) -> 0.0284317775 | I48: =IF(ISNA(VLOOKUP($B$7&$D21&$AB$2&I$11,data!$F:$O,6,FALSE)),"-",VLOOKUP($B$7&$D21&$AB$2&I$11,data!$F:$O,6,FALSE)) -> 1.184060454 | J48: =IF(ISNA(VLOOKUP($B$7&$D21&$AB$2&J$11,data!$F:$O,6,FALSE)),"-",VLOOKUP($B$7&$D21&$AB$2&J$11,data!$F:$O,6,FALSE)) -> 3.623609824 | K48: =IF(ISNA(VLOOKUP($B$7&$D21&$AB$2&K$11,data!$F:$O,6,FALSE)),"-",VLOOKUP($B$7&$D21&$AB$2&K$11,data!$F:$O,6,FALSE)) -> 41.45180664 | L48: =IF(ISNA(VLOOKUP($B$7&$D21&$AB$2&L$11,data!$F:$O,6,FALSE)),"-",VLOOKUP($B$7&$D21&$AB$2&L$11,data!$F:$O,6,FALSE)) -> 325.8440975 | N48: =IF(ISNA(VLOOKUP($B$9&$D21&$AB$2&G$11,data!$F:$O,6,FALSE)),"-",VLOOKUP($B$9&$D21&$AB$2&G$11,data!$F:$O,6,FALSE)) -> - | O48: =IF(ISNA(VLOOKUP($B$9&$D21&$AB$2&H$11,data!$F:$O,6,FALSE)),"-",VLOOKUP($B$9&$D21&$AB$2&H$11,data!$F:$O,6,FALSE)) -> - | P48: =IF(ISNA(VLOOKUP($B$9&$D21&$AB$2&I$11,data!$F:$O,6,FALSE)),"-",VLOOKUP($B$9&$D21&$AB$2&I$11,data!$F:$O,6,FALSE)) -> - | Q48: =IF(ISNA(VLOOKUP($B$9&$D21&$AB$2&J$11,data!$F:$O,6,FALSE)),"-",VLOOKUP($B$9&$D21&$AB$2&J$11,data!$F:$O,6,FALSE)) -> - | R48: =IF(ISNA(VLOOKUP($B$9&$D21&$AB$2&K$11,data!$F:$O,6,FALSE)),"-",VLOOKUP($B$9&$D21&$AB$2&K$11,data!$F:$O,6,FALSE)) -> - | S48: =IF(ISNA(VLOOKUP($B$9&$D21&$AB$2&L$11,data!$F:$O,6,FALSE)),"-",VLOOKUP($B$9&$D21&$AB$2&L$11,data!$F:$O,6,FALSE)) -> -
D49: Other non-communicable diseases | G49: =IF(ISNA(VLOOKUP($B$7&$D22&$AB$2&G$11,data!$F:$O,6,FALSE)),"-",VLOOKUP($B$7&$D22&$AB$2&G$11,data!$F:$O,6,FALSE)) -> 414.9487448 | H49: =IF(ISNA(VLOOKUP($B$7&$D22&$AB$2&H$11,data!$F:$O,6,FALSE)),"-",VLOOKUP($B$7&$D22&$AB$2&H$11,data!$F:$O,6,FALSE)) -> 75.0238856 | I49: =IF(ISNA(VLOOKUP($B$7&$D22&$AB$2&I$11,data!$F:$O,6,FALSE)),"-",VLOOKUP($B$7&$D22&$AB$2&I$11,data!$F:$O,6,FALSE)) -> 12.30645688 | J49: =IF(ISNA(VLOOKUP($B$7&$D22&$AB$2&J$11,data!$F:$O,6,FALSE)),"-",VLOOKUP($B$7&$D22&$AB$2&J$11,data!$F:$O,6,FALSE)) -> 24.8733841 | K49: =IF(ISNA(VLOOKUP($B$7&$D22&$AB$2&K$11,data!$F:$O,6,FALSE)),"-",VLOOKUP($B$7&$D22&$AB$2&K$11,data!$F:$O,6,FALSE)) -> 92.78573295 | L49: =IF(ISNA(VLOOKUP($B$7&$D22&$AB$2&L$11,data!$F:$O,6,FALSE)),"-",VLOOKUP($B$7&$D22&$AB$2&L$11,data!$F:$O,6,FALSE)) -> 209.9592853 | N49: =IF(ISNA(VLOOKUP($B$9&$D22&$AB$2&G$11,data!$F:$O,6,FALSE)),"-",VLOOKUP($B$9&$D22&$AB$2&G$11,data!$F:$O,6,FALSE)) -> - | O49: =IF(ISNA(VLOOKUP($B$9&$D22&$AB$2&H$11,data!$F:$O,6,FALSE)),"-",VLOOKUP($B$9&$D22&$AB$2&H$11,data!$F:$O,6,FALSE)) -> - | P49: =IF(ISNA(VLOOKUP($B$9&$D22&$AB$2&I$11,data!$F:$O,6,FALSE)),"-",VLOOKUP($B$9&$D22&$AB$2&I$11,data!$F:$O,6,FALSE)) -> - | Q49: =IF(ISNA(VLOOKUP($B$9&$D22&$AB$2&J$11,data!$F:$O,6,FALSE)),"-",VLOOKUP($B$9&$D22&$AB$2&J$11,data!$F:$O,6,FALSE)) -> - | R49: =IF(ISNA(VLOOKUP($B$9&$D22&$AB$2&K$11,data!$F:$O,6,FALSE)),"-",VLOOKUP($B$9&$D22&$AB$2&K$11,data!$F:$O,6,FALSE)) -> - | S49: =IF(ISNA(VLOOKUP($B$9&$D22&$AB$2&L$11,data!$F:$O,6,FALSE)),"-",VLOOKUP($B$9&$D22&$AB$2&L$11,data!$F:$O,6,FALSE)) -> -
D50: Diabetes, urogenital, blood, and endocrine diseases | G50: =IF(ISNA(VLOOKUP($B$7&$D23&$AB$2&G$11,data!$F:$O,6,FALSE)),"-",VLOOKUP($B$7&$D23&$AB$2&G$11,data!$F:$O,6,FALSE)) -> 2803.461053 | H50: =IF(ISNA(VLOOKUP($B$7&$D23&$AB$2&H$11,data!$F:$O,6,FALSE)),"-",VLOOKUP($B$7&$D23&$AB$2&H$11,data!$F:$O,6,FALSE)) -> 8.563032724 | I50: =IF(ISNA(VLOOKUP($B$7&$D23&$AB$2&I$11,data!$F:$O,6,FALSE)),"-",VLOOKUP($B$7&$D23&$AB$2&I$11,data!$F:$O,6,FALSE)) -> 12.102203 | J50: =IF(ISNA(VLOOKUP($B$7&$D23&$AB$2&J$11,data!$F:$O,6,FALSE)),"-",VLOOKUP($B$7&$D23&$AB$2&J$11,data!$F:$O,6,FALSE)) -> 61.48759012 | K50: =IF(ISNA(VLOOKUP($B$7&$D23&$AB$2&K$11,data!$F:$O,6,FALSE)),"-",VLOOKUP($B$7&$D23&$AB$2&K$11,data!$F:$O,6,FALSE)) -> 317.1324773 | L50: =IF(ISNA(VLOOKUP($B$7&$D23&$AB$2&L$11,data!$F:$O,6,FALSE)),"-",VLOOKUP($B$7&$D23&$AB$2&L$11,data!$F:$O,6,FALSE)) -> 2404.17575 | N50: =IF(ISNA(VLOOKUP($B$9&$D23&$AB$2&G$11,data!$F:$O,6,FALSE)),"-",VLOOKUP($B$9&$D23&$AB$2&G$11,data!$F:$O,6,FALSE)) -> - | O50: =IF(ISNA(VLOOKUP($B$9&$D23&$AB$2&H$11,data!$F:$O,6,FALSE)),"-",VLOOKUP($B$9&$D23&$AB$2&H$11,data!$F:$O,6,FALSE)) -> - | P50: =IF(ISNA(VLOOKUP($B$9&$D23&$AB$2&I$11,data!$F:$O,6,FALSE)),"-",VLOOKUP($B$9&$D23&$AB$2&I$11,data!$F:$O,6,FALSE)) -> - | Q50: =IF(ISNA(VLOOKUP($B$9&$D23&$AB$2&J$11,data!$F:$O,6,FALSE)),"-",VLOOKUP($B$9&$D23&$AB$2&J$11,data!$F:$O,6,FALSE)) -> - | R50: =IF(ISNA(VLOOKUP($B$9&$D23&$AB$2&K$11,data!$F:$O,6,FALSE)),"-",VLOOKUP($B$9&$D23&$AB$2&K$11,data!$F:$O,6,FALSE)) -> - | S50: =IF(ISNA(VLOOKUP($B$9&$D23&$AB$2&L$11,data!$F:$O,6,FALSE)),"-",VLOOKUP($B$9&$D23&$AB$2&L$11,data!$F:$O,6,FALSE)) -> -
D51: Substance use disorders | G51: =IF(ISNA(VLOOKUP($B$7&$D24&$AB$2&G$11,data!$F:$O,6,FALSE)),"-",VLOOKUP($B$7&$D24&$AB$2&G$11,data!$F:$O,6,FALSE)) -> 1189.340579 | H51: =IF(ISNA(VLOOKUP($B$7&$D24&$AB$2&H$11,data!$F:$O,6,FALSE)),"-",VLOOKUP($B$7&$D24&$AB$2&H$11,data!$F:$O,6,FALSE)) -> 0.07884295245 | I51: =IF(ISNA(VLOOKUP($B$7&$D24&$AB$2&I$11,data!$F:$O,6,FALSE)),"-",VLOOKUP($B$7&$D24&$AB$2&I$11,data!$F:$O,6,FALSE)) -> 40.67226911 | J51: =IF(ISNA(VLOOKUP($B$7&$D24&$AB$2&J$11,data!$F:$O,6,FALSE)),"-",VLOOKUP($B$7&$D24&$AB$2&J$11,data!$F:$O,6,FALSE)) -> 498.9118788 | K51: =IF(ISNA(VLOOKUP($B$7&$D24&$AB$2&K$11,data!$F:$O,6,FALSE)),"-",VLOOKUP($B$7&$D24&$AB$2&K$11,data!$F:$O,6,FALSE)) -> 482.4399267 | L51: =IF(ISNA(VLOOKUP($B$7&$D24&$AB$2&L$11,data!$F:$O,6,FALSE)),"-",VLOOKUP($B$7&$D24&$AB$2&L$11,data!$F:$O,6,FALSE)) -> 167.2376615 | N51: =IF(ISNA(VLOOKUP($B$9&$D24&$AB$2&G$11,data!$F:$O,6,FALSE)),"-",VLOOKUP($B$9&$D24&$AB$2&G$11,data!$F:$O,6,FALSE)) -> - | O51: =IF(ISNA(VLOOKUP($B$9&$D24&$AB$2&H$11,data!$F:$O,6,FALSE)),"-",VLOOKUP($B$9&$D24&$AB$2&H$11,data!$F:$O,6,FALSE)) -> - | P51: =IF(ISNA(VLOOKUP($B$9&$D24&$AB$2&I$11,data!$F:$O,6,FALSE)),"-",VLOOKUP($B$9&$D24&$AB$2&I$11,data!$F:$O,6,FALSE)) -> - | Q51: =IF(ISNA(VLOOKUP($B$9&$D24&$AB$2&J$11,data!$F:$O,6,FALSE)),"-",VLOOKUP($B$9&$D24&$AB$2&J$11,data!$F:$O,6,FALSE)) -> - | R51: =IF(ISNA(VLOOKUP($B$9&$D24&$AB$2&K$11,data!$F:$O,6,FALSE)),"-",VLOOKUP($B$9&$D24&$AB$2&K$11,data!$F:$O,6,FALSE)) -> - | S51: =IF(ISNA(VLOOKUP($B$9&$D24&$AB$2&L$11,data!$F:$O,6,FALSE)),"-",VLOOKUP($B$9&$D24&$AB$2&L$11,data!$F:$O,6,FALSE)) -> -
D52: Chronic respiratory diseases | G52: =IF(ISNA(VLOOKUP($B$7&$D25&$AB$2&G$11,data!$F:$O,6,FALSE)),"-",VLOOKUP($B$7&$D25&$AB$2&G$11,data!$F:$O,6,FALSE)) -> 4433.567167 | H52: =IF(ISNA(VLOOKUP($B$7&$D25&$AB$2&H$11,data!$F:$O,6,FALSE)),"-",VLOOKUP($B$7&$D25&$AB$2&H$11,data!$F:$O,6,FALSE)) -> 2.115845239 | I52: =IF(ISNA(VLOOKUP($B$7&$D25&$AB$2&I$11,data!$F:$O,6,FALSE)),"-",VLOOKUP($B$7&$D25&$AB$2&I$11,data!$F:$O,6,FALSE)) -> 3.017270483 | J52: =IF(ISNA(VLOOKUP($B$7&$D25&$AB$2&J$11,data!$F:$O,6,FALSE)),"-",VLOOKUP($B$7&$D25&$AB$2&J$11,data!$F:$O,6,FALSE)) -> 23.66584122 | K52: =IF(ISNA(VLOOKUP($B$7&$D25&$AB$2&K$11,data!$F:$O,6,FALSE)),"-",VLOOKUP($B$7&$D25&$AB$2&K$11,data!$F:$O,6,FALSE)) -> 475.4765313 | L52: =IF(ISNA(VLOOKUP($B$7&$D25&$AB$2&L$11,data!$F:$O,6,FALSE)),"-",VLOOKUP($B$7&$D25&$AB$2&L$11,data!$F:$O,6,FALSE)) -> 3929.291679 | N52: =IF(ISNA(VLOOKUP($B$9&$D25&$AB$2&G$11,data!$F:$O,6,FALSE)),"-",VLOOKUP($B$9&$D25&$AB$2&G$11,data!$F:$O,6,FALSE)) -> - | O52: =IF(ISNA(VLOOKUP($B$9&$D25&$AB$2&H$11,data!$F:$O,6,FALSE)),"-",VLOOKUP($B$9&$D25&$AB$2&H$11,data!$F:$O,6,FALSE)) -> - | P52: =IF(ISNA(VLOOKUP($B$9&$D25&$AB$2&I$11,data!$F:$O,6,FALSE)),"-",VLOOKUP($B$9&$D25&$AB$2&I$11,data!$F:$O,6,FALSE)) -> - | Q52: =IF(ISNA(VLOOKUP($B$9&$D25&$AB$2&J$11,data!$F:$O,6,FALSE)),"-",VLOOKUP($B$9&$D25&$AB$2&J$11,data!$F:$O,6,FALSE)) -> - | R52: =IF(ISNA(VLOOKUP($B$9&$D25&$AB$2&K$11,data!$F:$O,6,FALSE)),"-",VLOOKUP($B$9&$D25&$AB$2&K$11,data!$F:$O,6,FALSE)) -> - | S52: =IF(ISNA(VLOOKUP($B$9&$D25&$AB$2&L$11,data!$F:$O,6,FALSE)),"-",VLOOKUP($B$9&$D25&$AB$2&L$11,data!$F:$O,6,FALSE)) -> -
D53: Digestive diseases | G53: =IF(ISNA(VLOOKUP($B$7&$D26&$AB$2&G$11,data!$F:$O,6,FALSE)),"-",VLOOKUP($B$7&$D26&$AB$2&G$11,data!$F:$O,6,FALSE)) -> 1807.679652 | H53: =IF(ISNA(VLOOKUP($B$7&$D26&$AB$2&H$11,data!$F:$O,6,FALSE)),"-",VLOOKUP($B$7&$D26&$AB$2&H$11,data!$F:$O,6,FALSE)) -> 2.640276323 | I53: =IF(ISNA(VLOOKUP($B$7&$D26&$AB$2&I$11,data!$F:$O,6,FALSE)),"-",VLOOKUP($B$7&$D26&$AB$2&I$11,data!$F:$O,6,FALSE)) -> 2.413516592 | J53: =IF(ISNA(VLOOKUP($B$7&$D26&$AB$2&J$11,data!$F:$O,6,FALSE)),"-",VLOOKUP($B$7&$D26&$AB$2&J$11,data!$F:$O,6,FALSE)) -> 32.13563806 | K53: =IF(ISNA(VLOOKUP($B$7&$D26&$AB$2&K$11,data!$F:$O,6,FALSE)),"-",VLOOKUP($B$7&$D26&$AB$2&K$11,data!$F:$O,6,FALSE)) -> 214.4746004 | L53: =IF(ISNA(VLOOKUP($B$7&$D26&$AB$2&L$11,data!$F:$O,6,FALSE)),"-",VLOOKUP($B$7&$D26&$AB$2&L$11,data!$F:$O,6,FALSE)) -> 1556.015621 | N53: =IF(ISNA(VLOOKUP($B$9&$D26&$AB$2&G$11,data!$F:$O,6,FALSE)),"-",VLOOKUP($B$9&$D26&$AB$2&G$11,data!$F:$O,6,FALSE)) -> - | O53: =IF(ISNA(VLOOKUP($B$9&$D26&$AB$2&H$11,data!$F:$O,6,FALSE)),"-",VLOOKUP($B$9&$D26&$AB$2&H$11,data!$F:$O,6,FALSE)) -> - | P53: =IF(ISNA(VLOOKUP($B$9&$D26&$AB$2&I$11,data!$F:$O,6,FALSE)),"-",VLOOKUP($B$9&$D26&$AB$2&I$11,data!$F:$O,6,FALSE)) -> - | Q53: =IF(ISNA(VLOOKUP($B$9&$D26&$AB$2&J$11,data!$F:$O,6,FALSE)),"-",VLOOKUP($B$9&$D26&$AB$2&J$11,data!$F:$O,6,FALSE)) -> - | R53: =IF(ISNA(VLOOKUP($B$9&$D26&$AB$2&K$11,data!$F:$O,6,FALSE)),"-",VLOOKUP($B$9&$D26&$AB$2&K$11,data!$F:$O,6,FALSE)) -> - | S53: =IF(ISNA(VLOOKUP($B$9&$D26&$AB$2&L$11,data!$F:$O,6,FALSE)),"-",VLOOKUP($B$9&$D26&$AB$2&L$11,data!$F:$O,6,FALSE)) -> -
D54: Diarrhoea, lower respiratory, and other common infectious diseases | G54: =IF(ISNA(VLOOKUP($B$7&$D27&$AB$2&G$11,data!$F:$O,6,FALSE)),"-",VLOOKUP($B$7&$D27&$AB$2&G$11,data!$F:$O,6,FALSE)) -> 2695.74505 | H54: =IF(ISNA(VLOOKUP($B$7&$D27&$AB$2&H$11,data!$F:$O,6,FALSE)),"-",VLOOKUP($B$7&$D27&$AB$2&H$11,data!$F:$O,6,FALSE)) -> 14.32582074 | I54: =IF(ISNA(VLOOKUP($B$7&$D27&$AB$2&I$11,data!$F:$O,6,FALSE)),"-",VLOOKUP($B$7&$D27&$AB$2&I$11,data!$F:$O,6,FALSE)) -> 5.517193415 | J54: =IF(ISNA(VLOOKUP($B$7&$D27&$AB$2&J$11,data!$F:$O,6,FALSE)),"-",VLOOKUP($B$7&$D27&$AB$2&J$11,data!$F:$O,6,FALSE)) -> 36.11317755 | K54: =IF(ISNA(VLOOKUP($B$7&$D27&$AB$2&K$11,data!$F:$O,6,FALSE)),"-",VLOOKUP($B$7&$D27&$AB$2&K$11,data!$F:$O,6,FALSE)) -> 188.4554376 | L54: =IF(ISNA(VLOOKUP($B$7&$D27&$AB$2&L$11,data!$F:$O,6,FALSE)),"-",VLOOKUP($B$7&$D27&$AB$2&L$11,data!$F:$O,6,FALSE)) -> 2451.333421 | N54: =IF(ISNA(VLOOKUP($B$9&$D27&$AB$2&G$11,data!$F:$O,6,FALSE)),"-",VLOOKUP($B$9&$D27&$AB$2&G$11,data!$F:$O,6,FALSE)) -> - | O54: =IF(ISNA(VLOOKUP($B$9&$D27&$AB$2&H$11,data!$F:$O,6,FALSE)),"-",VLOOKUP($B$9&$D27&$AB$2&H$11,data!$F:$O,6,FALSE)) -> - | P54: =IF(ISNA(VLOOKUP($B$9&$D27&$AB$2&I$11,data!$F:$O,6,FALSE)),"-",VLOOKUP($B$9&$D27&$AB$2&I$11,data!$F:$O,6,FALSE)) -> - | Q54: =IF(ISNA(VLOOKUP($B$9&$D27&$AB$2&J$11,data!$F:$O,6,FALSE)),"-",VLOOKUP($B$9&$D27&$AB$2&J$11,data!$F:$O,6,FALSE)) -> - | R54: =IF(ISNA(VLOOKUP($B$9&$D27&$AB$2&K$11,data!$F:$O,6,FALSE)),"-",VLOOKUP($B$9&$D27&$AB$2&K$11,data!$F:$O,6,FALSE)) -> - | S54: =IF(ISNA(VLOOKUP($B$9&$D27&$AB$2&L$11,data!$F:$O,6,FALSE)),"-",VLOOKUP($B$9&$D27&$AB$2&L$11,data!$F:$O,6,FALSE)) -> -
D55: Suicide, self-harm and interpersonal violence injuries | G55: =IF(ISNA(VLOOKUP($B$7&$D28&$AB$2&G$11,data!$F:$O,6,FALSE)),"-",VLOOKUP($B$7&$D28&$AB$2&G$11,data!$F:$O,6,FALSE)) -> 736.752829 | H55: =IF(ISNA(VLOOKUP($B$7&$D28&$AB$2&H$11,data!$F:$O,6,FALSE)),"-",VLOOKUP($B$7&$D28&$AB$2&H$11,data!$F:$O,6,FALSE)) -> 4.593255029 | I55: =IF(ISNA(VLOOKUP($B$7&$D28&$AB$2&I$11,data!$F:$O,6,FALSE)),"-",VLOOKUP($B$7&$D28&$AB$2&I$11,data!$F:$O,6,FALSE)) -> 67.69172196 | J55: =IF(ISNA(VLOOKUP($B$7&$D28&$AB$2&J$11,data!$F:$O,6,FALSE)),"-",VLOOKUP($B$7&$D28&$AB$2&J$11,data!$F:$O,6,FALSE)) -> 287.853863 | K55: =IF(ISNA(VLOOKUP($B$7&$D28&$AB$2&K$11,data!$F:$O,6,FALSE)),"-",VLOOKUP($B$7&$D28&$AB$2&K$11,data!$F:$O,6,FALSE)) -> 282.1058784 | L55: =IF(ISNA(VLOOKUP($B$7&$D28&$AB$2&L$11,data!$F:$O,6,FALSE)),"-",VLOOKUP($B$7&$D28&$AB$2&L$11,data!$F:$O,6,FALSE)) -> 94.50811052 | N55: =IF(ISNA(VLOOKUP($B$9&$D28&$AB$2&G$11,data!$F:$O,6,FALSE)),"-",VLOOKUP($B$9&$D28&$AB$2&G$11,data!$F:$O,6,FALSE)) -> - | O55: =IF(ISNA(VLOOKUP($B$9&$D28&$AB$2&H$11,data!$F:$O,6,FALSE)),"-",VLOOKUP($B$9&$D28&$AB$2&H$11,data!$F:$O,6,FALSE)) -> - | P55: =IF(ISNA(VLOOKUP($B$9&$D28&$AB$2&I$11,data!$F:$O,6,FALSE)),"-",VLOOKUP($B$9&$D28&$AB$2&I$11,data!$F:$O,6,FALSE)) -> - | Q55: =IF(ISNA(VLOOKUP($B$9&$D28&$AB$2&J$11,data!$F:$O,6,FALSE)),"-",VLOOKUP($B$9&$D28&$AB$2&J$11,data!$F:$O,6,FALSE)) -> - | R55: =IF(ISNA(VLOOKUP($B$9&$D28&$AB$2&K$11,data!$F:$O,6,FALSE)),"-",VLOOKUP($B$9&$D28&$AB$2&K$11,data!$F:$O,6,FALSE)) -> - | S55: =IF(ISNA(VLOOKUP($B$9&$D28&$AB$2&L$11,data!$F:$O,6,FALSE)),"-",VLOOKUP($B$9&$D28&$AB$2&L$11,data!$F:$O,6,FALSE)) -> -
D56: Cirrhosis and other chronic liver diseases | G56: =IF(ISNA(VLOOKUP($B$7&$D29&$AB$2&G$11,data!$F:$O,6,FALSE)),"-",VLOOKUP($B$7&$D29&$AB$2&G$11,data!$F:$O,6,FALSE)) -> 1117.120784 | H56: =IF(ISNA(VLOOKUP($B$7&$D29&$AB$2&H$11,data!$F:$O,6,FALSE)),"-",VLOOKUP($B$7&$D29&$AB$2&H$11,data!$F:$O,6,FALSE)) -> 0 | I56: =IF(ISNA(VLOOKUP($B$7&$D29&$AB$2&I$11,data!$F:$O,6,FALSE)),"-",VLOOKUP($B$7&$D29&$AB$2&I$11,data!$F:$O,6,FALSE)) -> 0.3382122424 | J56: =IF(ISNA(VLOOKUP($B$7&$D29&$AB$2&J$11,data!$F:$O,6,FALSE)),"-",VLOOKUP($B$7&$D29&$AB$2&J$11,data!$F:$O,6,FALSE)) -> 122.6327592 | K56: =IF(ISNA(VLOOKUP($B$7&$D29&$AB$2&K$11,data!$F:$O,6,FALSE)),"-",VLOOKUP($B$7&$D29&$AB$2&K$11,data!$F:$O,6,FALSE)) -> 572.7122521 | L56: =IF(ISNA(VLOOKUP($B$7&$D29&$AB$2&L$11,data!$F:$O,6,FALSE)),"-",VLOOKUP($B$7&$D29&$AB$2&L$11,data!$F:$O,6,FALSE)) -> 421.4375608 | N56: =IF(ISNA(VLOOKUP($B$9&$D29&$AB$2&G$11,data!$F:$O,6,FALSE)),"-",VLOOKUP($B$9&$D29&$AB$2&G$11,data!$F:$O,6,FALSE)) -> - | O56: =IF(ISNA(VLOOKUP($B$9&$D29&$AB$2&H$11,data!$F:$O,6,FALSE)),"-",VLOOKUP($B$9&$D29&$AB$2&H$11,data!$F:$O,6,FALSE)) -> - | P56: =IF(ISNA(VLOOKUP($B$9&$D29&$AB$2&I$11,data!$F:$O,6,FALSE)),"-",VLOOKUP($B$9&$D29&$AB$2&I$11,data!$F:$O,6,FALSE)) -> - | Q56: =IF(ISNA(VLOOKUP($B$9&$D29&$AB$2&J$11,data!$F:$O,6,FALSE)),"-",VLOOKUP($B$9&$D29&$AB$2&J$11,data!$F:$O,6,FALSE)) -> - | R56: =IF(ISNA(VLOOKUP($B$9&$D29&$AB$2&K$11,data!$F:$O,6,FALSE)),"-",VLOOKUP($B$9&$D29&$AB$2&K$11,data!$F:$O,6,FALSE)) -> - | S56: =IF(ISNA(VLOOKUP($B$9&$D29&$AB$2&L$11,data!$F:$O,6,FALSE)),"-",VLOOKUP($B$9&$D29&$AB$2&L$11,data!$F:$O,6,FALSE)) -> -
D57: Unintentional injuries | G57: =IF(ISNA(VLOOKUP($B$7&$D30&$AB$2&G$11,data!$F:$O,6,FALSE)),"-",VLOOKUP($B$7&$D30&$AB$2&G$11,data!$F:$O,6,FALSE)) -> 1189.336104 | H57: =IF(ISNA(VLOOKUP($B$7&$D30&$AB$2&H$11,data!$F:$O,6,FALSE)),"-",VLOOKUP($B$7&$D30&$AB$2&H$11,data!$F:$O,6,FALSE)) -> 13.35497043 | I57: =IF(ISNA(VLOOKUP($B$7&$D30&$AB$2&I$11,data!$F:$O,6,FALSE)),"-",VLOOKUP($B$7&$D30&$AB$2&I$11,data!$F:$O,6,FALSE)) -> 9.843884479 | J57: =IF(ISNA(VLOOKUP($B$7&$D30&$AB$2&J$11,data!$F:$O,6,FALSE)),"-",VLOOKUP($B$7&$D30&$AB$2&J$11,data!$F:$O,6,FALSE)) -> 41.39932282 | K57: =IF(ISNA(VLOOKUP($B$7&$D30&$AB$2&K$11,data!$F:$O,6,FALSE)),"-",VLOOKUP($B$7&$D30&$AB$2&K$11,data!$F:$O,6,FALSE)) -> 113.1518471 | L57: =IF(ISNA(VLOOKUP($B$7&$D30&$AB$2&L$11,data!$F:$O,6,FALSE)),"-",VLOOKUP($B$7&$D30&$AB$2&L$11,data!$F:$O,6,FALSE)) -> 1011.586079 | N57: =IF(ISNA(VLOOKUP($B$9&$D30&$AB$2&G$11,data!$F:$O,6,FALSE)),"-",VLOOKUP($B$9&$D30&$AB$2&G$11,data!$F:$O,6,FALSE)) -> - | O57: =IF(ISNA(VLOOKUP($B$9&$D30&$AB$2&H$11,data!$F:$O,6,FALSE)),"-",VLOOKUP($B$9&$D30&$AB$2&H$11,data!$F:$O,6,FALSE)) -> - | P57: =IF(ISNA(VLOOKUP($B$9&$D30&$AB$2&I$11,data!$F:$O,6,FALSE)),"-",VLOOKUP($B$9&$D30&$AB$2&I$11,data!$F:$O,6,FALSE)) -> - | Q57: =IF(ISNA(VLOOKUP($B$9&$D30&$AB$2&J$11,data!$F:$O,6,FALSE)),"-",VLOOKUP($B$9&$D30&$AB$2&J$11,data!$F:$O,6,FALSE)) -> - | R57: =IF(ISNA(VLOOKUP($B$9&$D30&$AB$2&K$11,data!$F:$O,6,FALSE)),"-",VLOOKUP($B$9&$D30&$AB$2&K$11,data!$F:$O,6,FALSE)) -> - | S57: =IF(ISNA(VLOOKUP($B$9&$D30&$AB$2&L$11,data!$F:$O,6,FALSE)),"-",VLOOKUP($B$9&$D30&$AB$2&L$11,data!$F:$O,6,FALSE)) -> -
D58: Transport injuries | G58: =IF(ISNA(VLOOKUP($B$7&$D31&$AB$2&G$11,data!$F:$O,6,FALSE)),"-",VLOOKUP($B$7&$D31&$AB$2&G$11,data!$F:$O,6,FALSE)) -> 192.254656 | H58: =IF(ISNA(VLOOKUP($B$7&$D31&$AB$2&H$11,data!$F:$O,6,FALSE)),"-",VLOOKUP($B$7&$D31&$AB$2&H$11,data!$F:$O,6,FALSE)) -> 7.951138881 | I58: =IF(ISNA(VLOOKUP($B$7&$D31&$AB$2&I$11,data!$F:$O,6,FALSE)),"-",VLOOKUP($B$7&$D31&$AB$2&I$11,data!$F:$O,6,FALSE)) -> 30.35623737 | J58: =IF(ISNA(VLOOKUP($B$7&$D31&$AB$2&J$11,data!$F:$O,6,FALSE)),"-",VLOOKUP($B$7&$D31&$AB$2&J$11,data!$F:$O,6,FALSE)) -> 51.34038331 | K58: =IF(ISNA(VLOOKUP($B$7&$D31&$AB$2&K$11,data!$F:$O,6,FALSE)),"-",VLOOKUP($B$7&$D31&$AB$2&K$11,data!$F:$O,6,FALSE)) -> 56.22601268 | L58: =IF(ISNA(VLOOKUP($B$7&$D31&$AB$2&L$11,data!$F:$O,6,FALSE)),"-",VLOOKUP($B$7&$D31&$AB$2&L$11,data!$F:$O,6,FALSE)) -> 46.3808838 | N58: =IF(ISNA(VLOOKUP($B$9&$D31&$AB$2&G$11,data!$F:$O,6,FALSE)),"-",VLOOKUP($B$9&$D31&$AB$2&G$11,data!$F:$O,6,FALSE)) -> - | O58: =IF(ISNA(VLOOKUP($B$9&$D31&$AB$2&H$11,data!$F:$O,6,FALSE)),"-",VLOOKUP($B$9&$D31&$AB$2&H$11,data!$F:$O,6,FALSE)) -> - | P58: =IF(ISNA(VLOOKUP($B$9&$D31&$AB$2&I$11,data!$F:$O,6,FALSE)),"-",VLOOKUP($B$9&$D31&$AB$2&I$11,data!$F:$O,6,FALSE)) -> - | Q58: =IF(ISNA(VLOOKUP($B$9&$D31&$AB$2&J$11,data!$F:$O,6,FALSE)),"-",VLOOKUP($B$9&$D31&$AB$2&J$11,data!$F:$O,6,FALSE)) -> - | R58: =IF(ISNA(VLOOKUP($B$9&$D31&$AB$2&K$11,data!$F:$O,6,FALSE)),"-",VLOOKUP($B$9&$D31&$AB$2&K$11,data!$F:$O,6,FALSE)) -> - | S58: =IF(ISNA(VLOOKUP($B$9&$D31&$AB$2&L$11,data!$F:$O,6,FALSE)),"-",VLOOKUP($B$9&$D31&$AB$2&L$11,data!$F:$O,6,FALSE)) -> -
D59: Neonatal disorders | G59: =IF(ISNA(VLOOKUP($B$7&$D32&$AB$2&G$11,data!$F:$O,6,FALSE)),"-",VLOOKUP($B$7&$D32&$AB$2&G$11,data!$F:$O,6,FALSE)) -> 85.08804323 | H59: =IF(ISNA(VLOOKUP($B$7&$D32&$AB$2&H$11,data!$F:$O,6,FALSE)),"-",VLOOKUP($B$7&$D32&$AB$2&H$11,data!$F:$O,6,FALSE)) -> 83.94636454 | I59: =IF(ISNA(VLOOKUP($B$7&$D32&$AB$2&I$11,data!$F:$O,6,FALSE)),"-",VLOOKUP($B$7&$D32&$AB$2&I$11,data!$F:$O,6,FALSE)) -> 0.6901280463 | J59: =IF(ISNA(VLOOKUP($B$7&$D32&$AB$2&J$11,data!$F:$O,6,FALSE)),"-",VLOOKUP($B$7&$D32&$AB$2&J$11,data!$F:$O,6,FALSE)) -> 0 | K59: =IF(ISNA(VLOOKUP($B$7&$D32&$AB$2&K$11,data!$F:$O,6,FALSE)),"-",VLOOKUP($B$7&$D32&$AB$2&K$11,data!$F:$O,6,FALSE)) -> 0.386229925 | L59: =IF(ISNA(VLOOKUP($B$7&$D32&$AB$2&L$11,data!$F:$O,6,FALSE)),"-",VLOOKUP($B$7&$D32&$AB$2&L$11,data!$F:$O,6,FALSE)) -> 0.06532072311 | N59: =IF(ISNA(VLOOKUP($B$9&$D32&$AB$2&G$11,data!$F:$O,6,FALSE)),"-",VLOOKUP($B$9&$D32&$AB$2&G$11,data!$F:$O,6,FALSE)) -> - | O59: =IF(ISNA(VLOOKUP($B$9&$D32&$AB$2&H$11,data!$F:$O,6,FALSE)),"-",VLOOKUP($B$9&$D32&$AB$2&H$11,data!$F:$O,6,FALSE)) -> - | P59: =IF(ISNA(VLOOKUP($B$9&$D32&$AB$2&I$11,data!$F:$O,6,FALSE)),"-",VLOOKUP($B$9&$D32&$AB$2&I$11,data!$F:$O,6,FALSE)) -> - | Q59: =IF(ISNA(VLOOKUP($B$9&$D32&$AB$2&J$11,data!$F:$O,6,FALSE)),"-",VLOOKUP($B$9&$D32&$AB$2&J$11,data!$F:$O,6,FALSE)) -> - | R59: =IF(ISNA(VLOOKUP($B$9&$D32&$AB$2&K$11,data!$F:$O,6,FALSE)),"-",VLOOKUP($B$9&$D32&$AB$2&K$11,data!$F:$O,6,FALSE)) -> - | S59: =IF(ISNA(VLOOKUP($B$9&$D32&$AB$2&L$11,data!$F:$O,6,FALSE)),"-",VLOOKUP($B$9&$D32&$AB$2&L$11,data!$F:$O,6,FALSE)) -> -
D60: Nutritional deficiencies | G60: =IF(ISNA(VLOOKUP($B$7&$D33&$AB$2&G$11,data!$F:$O,6,FALSE)),"-",VLOOKUP($B$7&$D33&$AB$2&G$11,data!$F:$O,6,FALSE)) -> 105.4735376 | H60: =IF(ISNA(VLOOKUP($B$7&$D33&$AB$2&H$11,data!$F:$O,6,FALSE)),"-",VLOOKUP($B$7&$D33&$AB$2&H$11,data!$F:$O,6,FALSE)) -> 0.7777777778 | I60: =IF(ISNA(VLOOKUP($B$7&$D33&$AB$2&I$11,data!$F:$O,6,FALSE)),"-",VLOOKUP($B$7&$D33&$AB$2&I$11,data!$F:$O,6,FALSE)) -> 0.06724738676 | J60: =IF(ISNA(VLOOKUP($B$7&$D33&$AB$2&J$11,data!$F:$O,6,FALSE)),"-",VLOOKUP($B$7&$D33&$AB$2&J$11,data!$F:$O,6,FALSE)) -> 1.668619129 | K60: =IF(ISNA(VLOOKUP($B$7&$D33&$AB$2&K$11,data!$F:$O,6,FALSE)),"-",VLOOKUP($B$7&$D33&$AB$2&K$11,data!$F:$O,6,FALSE)) -> 8.88005962 | L60: =IF(ISNA(VLOOKUP($B$7&$D33&$AB$2&L$11,data!$F:$O,6,FALSE)),"-",VLOOKUP($B$7&$D33&$AB$2&L$11,data!$F:$O,6,FALSE)) -> 94.07983372 | N60: =IF(ISNA(VLOOKUP($B$9&$D33&$AB$2&G$11,data!$F:$O,6,FALSE)),"-",VLOOKUP($B$9&$D33&$AB$2&G$11,data!$F:$O,6,FALSE)) -> - | O60: =IF(ISNA(VLOOKUP($B$9&$D33&$AB$2&H$11,data!$F:$O,6,FALSE)),"-",VLOOKUP($B$9&$D33&$AB$2&H$11,data!$F:$O,6,FALSE)) -> - | P60: =IF(ISNA(VLOOKUP($B$9&$D33&$AB$2&I$11,data!$F:$O,6,FALSE)),"-",VLOOKUP($B$9&$D33&$AB$2&I$11,data!$F:$O,6,FALSE)) -> - | Q60: =IF(ISNA(VLOOKUP($B$9&$D33&$AB$2&J$11,data!$F:$O,6,FALSE)),"-",VLOOKUP($B$9&$D33&$AB$2&J$11,data!$F:$O,6,FALSE)) -> - | R60: =IF(ISNA(VLOOKUP($B$9&$D33&$AB$2&K$11,data!$F:$O,6,FALSE)),"-",VLOOKUP($B$9&$D33&$AB$2&K$11,data!$F:$O,6,FALSE)) -> - | S60: =IF(ISNA(VLOOKUP($B$9&$D33&$AB$2&L$11,data!$F:$O,6,FALSE)),"-",VLOOKUP($B$9&$D33&$AB$2&L$11,data!$F:$O,6,FALSE)) -> -
D61: Unknown and other causes of injury | G61: =IF(ISNA(VLOOKUP($B$7&$D34&$AB$2&G$11,data!$F:$O,6,FALSE)),"-",VLOOKUP($B$7&$D34&$AB$2&G$11,data!$F:$O,6,FALSE)) -> 13.64938697 | H61: =IF(ISNA(VLOOKUP($B$7&$D34&$AB$2&H$11,data!$F:$O,6,FALSE)),"-",VLOOKUP($B$7&$D34&$AB$2&H$11,data!$F:$O,6,FALSE)) -> 0 | I61: =IF(ISNA(VLOOKUP($B$7&$D34&$AB$2&I$11,data!$F:$O,6,FALSE)),"-",VLOOKUP($B$7&$D34&$AB$2&I$11,data!$F:$O,6,FALSE)) -> 0.3373708435 | J61: =IF(ISNA(VLOOKUP($B$7&$D34&$AB$2&J$11,data!$F:$O,6,FALSE)),"-",VLOOKUP($B$7&$D34&$AB$2&J$11,data!$F:$O,6,FALSE)) -> 1.00058072 | K61: =IF(ISNA(VLOOKUP($B$7&$D34&$AB$2&K$11,data!$F:$O,6,FALSE)),"-",VLOOKUP($B$7&$D34&$AB$2&K$11,data!$F:$O,6,FALSE)) -> 2.334944191 | L61: =IF(ISNA(VLOOKUP($B$7&$D34&$AB$2&L$11,data!$F:$O,6,FALSE)),"-",VLOOKUP($B$7&$D34&$AB$2&L$11,data!$F:$O,6,FALSE)) -> 9.976491212 | N61: =IF(ISNA(VLOOKUP($B$9&$D34&$AB$2&G$11,data!$F:$O,6,FALSE)),"-",VLOOKUP($B$9&$D34&$AB$2&G$11,data!$F:$O,6,FALSE)) -> - | O61: =IF(ISNA(VLOOKUP($B$9&$D34&$AB$2&H$11,data!$F:$O,6,FALSE)),"-",VLOOKUP($B$9&$D34&$AB$2&H$11,data!$F:$O,6,FALSE)) -> - | P61: =IF(ISNA(VLOOKUP($B$9&$D34&$AB$2&I$11,data!$F:$O,6,FALSE)),"-",VLOOKUP($B$9&$D34&$AB$2&I$11,data!$F:$O,6,FALSE)) -> - | Q61: =IF(ISNA(VLOOKUP($B$9&$D34&$AB$2&J$11,data!$F:$O,6,FALSE)),"-",VLOOKUP($B$9&$D34&$AB$2&J$11,data!$F:$O,6,FALSE)) -> - | R61: =IF(ISNA(VLOOKUP($B$9&$D34&$AB$2&K$11,data!$F:$O,6,FALSE)),"-",VLOOKUP($B$9&$D34&$AB$2&K$11,data!$F:$O,6,FALSE)) -> - | S61: =IF(ISNA(VLOOKUP($B$9&$D34&$AB$2&L$11,data!$F:$O,6,FALSE)),"-",VLOOKUP($B$9&$D34&$AB$2&L$11,data!$F:$O,6,FALSE)) -> -
D62: HIV/AIDS and tuberculosis | G62: =IF(ISNA(VLOOKUP($B$7&$D35&$AB$2&G$11,data!$F:$O,6,FALSE)),"-",VLOOKUP($B$7&$D35&$AB$2&G$11,data!$F:$O,6,FALSE)) -> 45.29244721 | H62: =IF(ISNA(VLOOKUP($B$7&$D35&$AB$2&H$11,data!$F:$O,6,FALSE)),"-",VLOOKUP($B$7&$D35&$AB$2&H$11,data!$F:$O,6,FALSE)) -> 0.3685929931 | I62: =IF(ISNA(VLOOKUP($B$7&$D35&$AB$2&I$11,data!$F:$O,6,FALSE)),"-",VLOOKUP($B$7&$D35&$AB$2&I$11,data!$F:$O,6,FALSE)) -> 0.001239157373 | J62: =IF(ISNA(VLOOKUP($B$7&$D35&$AB$2&J$11,data!$F:$O,6,FALSE)),"-",VLOOKUP($B$7&$D35&$AB$2&J$11,data!$F:$O,6,FALSE)) -> 5.759065323 | K62: =IF(ISNA(VLOOKUP($B$7&$D35&$AB$2&K$11,data!$F:$O,6,FALSE)),"-",VLOOKUP($B$7&$D35&$AB$2&K$11,data!$F:$O,6,FALSE)) -> 13.22962061 | L62: =IF(ISNA(VLOOKUP($B$7&$D35&$AB$2&L$11,data!$F:$O,6,FALSE)),"-",VLOOKUP($B$7&$D35&$AB$2&L$11,data!$F:$O,6,FALSE)) -> 25.93392913 | N62: =IF(ISNA(VLOOKUP($B$9&$D35&$AB$2&G$11,data!$F:$O,6,FALSE)),"-",VLOOKUP($B$9&$D35&$AB$2&G$11,data!$F:$O,6,FALSE)) -> - | O62: =IF(ISNA(VLOOKUP($B$9&$D35&$AB$2&H$11,data!$F:$O,6,FALSE)),"-",VLOOKUP($B$9&$D35&$AB$2&H$11,data!$F:$O,6,FALSE)) -> - | P62: =IF(ISNA(VLOOKUP($B$9&$D35&$AB$2&I$11,data!$F:$O,6,FALSE)),"-",VLOOKUP($B$9&$D35&$AB$2&I$11,data!$F:$O,6,FALSE)) -> - | Q62: =IF(ISNA(VLOOKUP($B$9&$D35&$AB$2&J$11,data!$F:$O,6,FALSE)),"-",VLOOKUP($B$9&$D35&$AB$2&J$11,data!$F:$O,6,FALSE)) -> - | R62: =IF(ISNA(VLOOKUP($B$9&$D35&$AB$2&K$11,data!$F:$O,6,FALSE)),"-",VLOOKUP($B$9&$D35&$AB$2&K$11,data!$F:$O,6,FALSE)) -> - | S62: =IF(ISNA(VLOOKUP($B$9&$D35&$AB$2&L$11,data!$F:$O,6,FALSE)),"-",VLOOKUP($B$9&$D35&$AB$2&L$11,data!$F:$O,6,FALSE)) -> -
D63: Other communicable, maternal, neonatal, and nutritional diseases | G63: =IF(ISNA(VLOOKUP($B$7&$D36&$AB$2&G$11,data!$F:$O,6,FALSE)),"-",VLOOKUP($B$7&$D36&$AB$2&G$11,data!$F:$O,6,FALSE)) -> 65.80934828 | H63: =IF(ISNA(VLOOKUP($B$7&$D36&$AB$2&H$11,data!$F:$O,6,FALSE)),"-",VLOOKUP($B$7&$D36&$AB$2&H$11,data!$F:$O,6,FALSE)) -> 1.212807506 | I63: =IF(ISNA(VLOOKUP($B$7&$D36&$AB$2&I$11,data!$F:$O,6,FALSE)),"-",VLOOKUP($B$7&$D36&$AB$2&I$11,data!$F:$O,6,FALSE)) -> 0.167905824 | J63: =IF(ISNA(VLOOKUP($B$7&$D36&$AB$2&J$11,data!$F:$O,6,FALSE)),"-",VLOOKUP($B$7&$D36&$AB$2&J$11,data!$F:$O,6,FALSE)) -> 2.65584828 | K63: =IF(ISNA(VLOOKUP($B$7&$D36&$AB$2&K$11,data!$F:$O,6,FALSE)),"-",VLOOKUP($B$7&$D36&$AB$2&K$11,data!$F:$O,6,FALSE)) -> 14.83518073 | L63: =IF(ISNA(VLOOKUP($B$7&$D36&$AB$2&L$11,data!$F:$O,6,FALSE)),"-",VLOOKUP($B$7&$D36&$AB$2&L$11,data!$F:$O,6,FALSE)) -> 46.93760594 | N63: =IF(ISNA(VLOOKUP($B$9&$D36&$AB$2&G$11,data!$F:$O,6,FALSE)),"-",VLOOKUP($B$9&$D36&$AB$2&G$11,data!$F:$O,6,FALSE)) -> - | O63: =IF(ISNA(VLOOKUP($B$9&$D36&$AB$2&H$11,data!$F:$O,6,FALSE)),"-",VLOOKUP($B$9&$D36&$AB$2&H$11,data!$F:$O,6,FALSE)) -> - | P63: =IF(ISNA(VLOOKUP($B$9&$D36&$AB$2&I$11,data!$F:$O,6,FALSE)),"-",VLOOKUP($B$9&$D36&$AB$2&I$11,data!$F:$O,6,FALSE)) -> - | Q63: =IF(ISNA(VLOOKUP($B$9&$D36&$AB$2&J$11,data!$F:$O,6,FALSE)),"-",VLOOKUP($B$9&$D36&$AB$2&J$11,data!$F:$O,6,FALSE)) -> - | R63: =IF(ISNA(VLOOKUP($B$9&$D36&$AB$2&K$11,data!$F:$O,6,FALSE)),"-",VLOOKUP($B$9&$D36&$AB$2&K$11,data!$F:$O,6,FALSE)) -> - | S63: =IF(ISNA(VLOOKUP($B$9&$D36&$AB$2&L$11,data!$F:$O,6,FALSE)),"-",VLOOKUP($B$9&$D36&$AB$2&L$11,data!$F:$O,6,FALSE)) -> -
D64: Maternal disorders | G64: =IF(ISNA(VLOOKUP($B$7&$D37&$AB$2&G$11,data!$F:$O,6,FALSE)),"-",VLOOKUP($B$7&$D37&$AB$2&G$11,data!$F:$O,6,FALSE)) -> 5.402444062 | H64: =IF(ISNA(VLOOKUP($B$7&$D37&$AB$2&H$11,data!$F:$O,6,FALSE)),"-",VLOOKUP($B$7&$D37&$AB$2&H$11,data!$F:$O,6,FALSE)) -> 0 | I64: =IF(ISNA(VLOOKUP($B$7&$D37&$AB$2&I$11,data!$F:$O,6,FALSE)),"-",VLOOKUP($B$7&$D37&$AB$2&I$11,data!$F:$O,6,FALSE)) -> 2.019140534 | J64: =IF(ISNA(VLOOKUP($B$7&$D37&$AB$2&J$11,data!$F:$O,6,FALSE)),"-",VLOOKUP($B$7&$D37&$AB$2&J$11,data!$F:$O,6,FALSE)) -> 3.375770571 | K64: =IF(ISNA(VLOOKUP($B$7&$D37&$AB$2&K$11,data!$F:$O,6,FALSE)),"-",VLOOKUP($B$7&$D37&$AB$2&K$11,data!$F:$O,6,FALSE)) -> 0.007532956685 | L64: =IF(ISNA(VLOOKUP($B$7&$D37&$AB$2&L$11,data!$F:$O,6,FALSE)),"-",VLOOKUP($B$7&$D37&$AB$2&L$11,data!$F:$O,6,FALSE)) -> 0 | N64: =IF(ISNA(VLOOKUP($B$9&$D37&$AB$2&G$11,data!$F:$O,6,FALSE)),"-",VLOOKUP($B$9&$D37&$AB$2&G$11,data!$F:$O,6,FALSE)) -> - | O64: =IF(ISNA(VLOOKUP($B$9&$D37&$AB$2&H$11,data!$F:$O,6,FALSE)),"-",VLOOKUP($B$9&$D37&$AB$2&H$11,data!$F:$O,6,FALSE)) -> - | P64: =IF(ISNA(VLOOKUP($B$9&$D37&$AB$2&I$11,data!$F:$O,6,FALSE)),"-",VLOOKUP($B$9&$D37&$AB$2&I$11,data!$F:$O,6,FALSE)) -> - | Q64: =IF(ISNA(VLOOKUP($B$9&$D37&$AB$2&J$11,data!$F:$O,6,FALSE)),"-",VLOOKUP($B$9&$D37&$AB$2&J$11,data!$F:$O,6,FALSE)) -> - | R64: =IF(ISNA(VLOOKUP($B$9&$D37&$AB$2&K$11,data!$F:$O,6,FALSE)),"-",VLOOKUP($B$9&$D37&$AB$2&K$11,data!$F:$O,6,FALSE)) -> - | S64: =IF(ISNA(VLOOKUP($B$9&$D37&$AB$2&L$11,data!$F:$O,6,FALSE)),"-",VLOOKUP($B$9&$D37&$AB$2&L$11,data!$F:$O,6,FALSE)) -> -

Sheet by disease group
D1: Scottish Burden of Disease study - Local area Burden of Disease profiles | AA1: DALYs
D2: Local area burden of disease profile by local authority and age-group (years) | AA2: Both sexes | AB2: =VLOOKUP(AA2,Lookups!Q2:R4,2,FALSE) -> 3
AA3: Age-standardised rate per 100,000 population | AB3: =IF(AA3="Number",VLOOKUP(AA1,Lookups!N3:O6,2,FALSE),IF(AA3="Age-standardised rate per 100,000 population",VLOOKUP(AA1,Lookups!N7:O10,2,FALSE),"-")) -> 9
D5: Measure: | G5: Disease group:
A7: All causes of disease and injury | B7: =VLOOKUP(A7,Lookups!B2:C34,2,FALSE) ->  | D7: Gender:
B9: =VLOOKUP(A9,Lookups!B1:C34,2,FALSE) ->  | D9: Unit:
H10: 1 - Under15 | I10: 2 - 15-24 | J10: 3 - 25-44 | K10: 4 - 45-64 | L10: 5 - 65 and over | O10: 1 - Under15 | P10: 2 - 15-24 | Q10: 3 - 25-44 | R10: 4 - 45-64 | S10: 5 - 65 and over
G11: ALL | H11: 1 - Under15 | I11: 2 - 15-24 | J11: 3 - 25-44 | K11: 4 - 45-64 | L11: 5 - 65 and over
D12: Disease group | G12: =A7 -> All causes of disease and injury | N12: Life expectancy (LE)
G13: =AA1&" | " &AA3&" "&"by age-group (years)" -> DALYs | Age-standardised rate per 100,000 population by age-group (years) | N13: Male LE | O13: Male LE 95% CI | P13: Female LE | Q13: Female LE 95% CI
G14: All ages | H14: < 15 | I14: 15-24 | J14: 25-44 | K14: 45-64 | L14: 65 +
D15: Scotland | F15: Scot | G15: =IF(ISNA(VLOOKUP($F15&$A$7&$AB$2&G$11,data!$F:$O,'by disease group'!$AB$3,FALSE)),"-",VLOOKUP($F15&$A$7&$AB$2&G$11,data!$F:$O,'by disease group'!$AB$3,FALSE)) -> 24753.39917 | H15: =IF(ISNA(VLOOKUP($F15&$A$7&$AB$2&H$11,data!$F:$O,'by disease group'!$AB$3,FALSE)),"-",VLOOKUP($F15&$A$7&$AB$2&H$11,data!$F:$O,'by disease group'!$AB$3,FALSE)) -> 4903.990675 | I15: =IF(ISNA(VLOOKUP($F15&$A$7&$AB$2&I$11,data!$F:$O,'by disease group'!$AB$3,FALSE)),"-",VLOOKUP($F15&$A$7&$AB$2&I$11,data!$F:$O,'by disease group'!$AB$3,FALSE)) -> 9210.534047 | J15: =IF(ISNA(VLOOKUP($F15&$A$7&$AB$2&J$11,data!$F:$O,'by disease group'!$AB$3,FALSE)),"-",VLOOKUP($F15&$A$7&$AB$2&J$11,data!$F:$O,'by disease group'!$AB$3,FALSE)) -> 16733.5595 | K15: =IF(ISNA(VLOOKUP($F15&$A$7&$AB$2&K$11,data!$F:$O,'by disease group'!$AB$3,FALSE)),"-",VLOOKUP($F15&$A$7&$AB$2&K$11,data!$F:$O,'by disease group'!$AB$3,FALSE)) -> 27247.59302 | L15: =IF(ISNA(VLOOKUP($F15&$A$7&$AB$2&L$11,data!$F:$O,'by disease group'!$AB$3,FALSE)),"-",VLOOKUP($F15&$A$7&$AB$2&L$11,data!$F:$O,'by disease group'!$AB$3,FALSE)) -> 57715.6094 | M15: =SUM(M17:M39) -> 0 | N15: 77.08914633 | O15: [77.0 - 77.2] | P15: 81.14095243 | Q15: [81.1 - 81.2] | T15: =IF(ISNA(VLOOKUP($F15&$A$7&$AB$2&G$11,data!$F:$O,6,FALSE)),"-",VLOOKUP($F15&$A$7&$AB$2&G$11,data!$F:$O,6,FALSE)) -> 55867 | U15: =IF(ISNA(VLOOKUP($F15&$A$7&$AB$2&H$11,data!$F:$O,6,FALSE)),"-",VLOOKUP($F15&$A$7&$AB$2&H$11,data!$F:$O,6,FALSE)) -> 246.6666667 | V15: =IF(ISNA(VLOOKUP($F15&$A$7&$AB$2&I$11,data!$F:$O,6,FALSE)),"-",VLOOKUP($F15&$A$7&$AB$2&I$11,data!$F:$O,6,FALSE)) -> 232 | W15: =IF(ISNA(VLOOKUP($F15&$A$7&$AB$2&J$11,data!$F:$O,6,FALSE)),"-",VLOOKUP($F15&$A$7&$AB$2&J$11,data!$F:$O,6,FALSE)) -> 1748.333333 | X15: =IF(ISNA(VLOOKUP($F15&$A$7&$AB$2&K$11,data!$F:$O,6,FALSE)),"-",VLOOKUP($F15&$A$7&$AB$2&K$11,data!$F:$O,6,FALSE)) -> 7907.666667 | Y15: =IF(ISNA(VLOOKUP($F15&$A$7&$AB$2&L$11,data!$F:$O,6,FALSE)),"-",VLOOKUP($F15&$A$7&$AB$2&L$11,data!$F:$O,6,FALSE)) -> 45732.33333
T16: =IF(ISNA(VLOOKUP($F16&$A$7&$AB$2&G$11,data!$F:$O,6,FALSE)),"-",VLOOKUP($F16&$A$7&$AB$2&G$11,data!$F:$O,6,FALSE)) -> - | U16: =IF(ISNA(VLOOKUP($F16&$A$7&$AB$2&H$11,data!$F:$O,6,FALSE)),"-",VLOOKUP($F16&$A$7&$AB$2&H$11,data!$F:$O,6,FALSE)) -> - | V16: =IF(ISNA(VLOOKUP($F16&$A$7&$AB$2&I$11,data!$F:$O,6,FALSE)),"-",VLOOKUP($F16&$A$7&$AB$2&I$11,data!$F:$O,6,FALSE)) -> - | W16: =IF(ISNA(VLOOKUP($F16&$A$7&$AB$2&J$11,data!$F:$O,6,FALSE)),"-",VLOOKUP($F16&$A$7&$AB$2&J$11,data!$F:$O,6,FALSE)) -> - | X16: =IF(ISNA(VLOOKUP($F16&$A$7&$AB$2&K$11,data!$F:$O,6,FALSE)),"-",VLOOKUP($F16&$A$7&$AB$2&K$11,data!$F:$O,6,FALSE)) -> - | Y16: =IF(ISNA(VLOOKUP($F16&$A$7&$AB$2&L$11,data!$F:$O,6,FALSE)),"-",VLOOKUP($F16&$A$7&$AB$2&L$11,data!$F:$O,6,FALSE)) -> -
D17: Glasgow City | F17: LA32 | G17: =IF(ISNA(VLOOKUP($F17&$A$7&$AB$2&G$11,data!$F:$O,'by disease group'!$AB$3,FALSE)),"-",VLOOKUP($F17&$A$7&$AB$2&G$11,data!$F:$O,'by disease group'!$AB$3,FALSE)) -> 30359.08014 | H17: =IF(ISNA(VLOOKUP($F17&$A$7&$AB$2&H$11,data!$F:$O,'by disease group'!$AB$3,FALSE)),"-",VLOOKUP($F17&$A$7&$AB$2&H$11,data!$F:$O,'by disease group'!$AB$3,FALSE)) -> 5538.161735 | I17: =IF(ISNA(VLOOKUP($F17&$A$7&$AB$2&I$11,data!$F:$O,'by disease group'!$AB$3,FALSE)),"-",VLOOKUP($F17&$A$7&$AB$2&I$11,data!$F:$O,'by disease group'!$AB$3,FALSE)) -> 9209.626811 | J17: =IF(ISNA(VLOOKUP($F17&$A$7&$AB$2&J$11,data!$F:$O,'by disease group'!$AB$3,FALSE)),"-",VLOOKUP($F17&$A$7&$AB$2&J$11,data!$F:$O,'by disease group'!$AB$3,FALSE)) -> 19543.33777 | K17: =IF(ISNA(VLOOKUP($F17&$A$7&$AB$2&K$11,data!$F:$O,'by disease group'!$AB$3,FALSE)),"-",VLOOKUP($F17&$A$7&$AB$2&K$11,data!$F:$O,'by disease group'!$AB$3,FALSE)) -> 35792.66909 | L17: =IF(ISNA(VLOOKUP($F17&$A$7&$AB$2&L$11,data!$F:$O,'by disease group'!$AB$3,FALSE)),"-",VLOOKUP($F17&$A$7&$AB$2&L$11,data!$F:$O,'by disease group'!$AB$3,FALSE)) -> 70511.92495 | N17: 73.4 | O17: [73.1 - 73.7] | P17: 78.9 | Q17: [78.7 - 79.2] | T17: =IF(ISNA(VLOOKUP($F17&$A$7&$AB$2&G$11,data!$F:$O,6,FALSE)),"-",VLOOKUP($F17&$A$7&$AB$2&G$11,data!$F:$O,6,FALSE)) -> 6308.333333 | U17: =IF(ISNA(VLOOKUP($F17&$A$7&$AB$2&H$11,data!$F:$O,6,FALSE)),"-",VLOOKUP($F17&$A$7&$AB$2&H$11,data!$F:$O,6,FALSE)) -> 38.66666667 | V17: =IF(ISNA(VLOOKUP($F17&$A$7&$AB$2&I$11,data!$F:$O,6,FALSE)),"-",VLOOKUP($F17&$A$7&$AB$2&I$11,data!$F:$O,6,FALSE)) -> 20.66666667 | W17: =IF(ISNA(VLOOKUP($F17&$A$7&$AB$2&J$11,data!$F:$O,6,FALSE)),"-",VLOOKUP($F17&$A$7&$AB$2&J$11,data!$F:$O,6,FALSE)) -> 278.3333333 | X17: =IF(ISNA(VLOOKUP($F17&$A$7&$AB$2&K$11,data!$F:$O,6,FALSE)),"-",VLOOKUP($F17&$A$7&$AB$2&K$11,data!$F:$O,6,FALSE)) -> 1135 | Y17: =IF(ISNA(VLOOKUP($F17&$A$7&$AB$2&L$11,data!$F:$O,6,FALSE)),"-",VLOOKUP($F17&$A$7&$AB$2&L$11,data!$F:$O,6,FALSE)) -> 4835.666667
D18: West Dunbartonshire | F18: LA26 | G18: =IF(ISNA(VLOOKUP($F18&$A$7&$AB$2&G$11,data!$F:$O,'by disease group'!$AB$3,FALSE)),"-",VLOOKUP($F18&$A$7&$AB$2&G$11,data!$F:$O,'by disease group'!$AB$3,FALSE)) -> 29067.40812 | H18: =IF(ISNA(VLOOKUP($F18&$A$7&$AB$2&H$11,data!$F:$O,'by disease group'!$AB$3,FALSE)),"-",VLOOKUP($F18&$A$7&$AB$2&H$11,data!$F:$O,'by disease group'!$AB$3,FALSE)) -> 4898.497138 | I18: =IF(ISNA(VLOOKUP($F18&$A$7&$AB$2&I$11,data!$F:$O,'by disease group'!$AB$3,FALSE)),"-",VLOOKUP($F18&$A$7&$AB$2&I$11,data!$F:$O,'by disease group'!$AB$3,FALSE)) -> 11578.43091 | J18: =IF(ISNA(VLOOKUP($F18&$A$7&$AB$2&J$11,data!$F:$O,'by disease group'!$AB$3,FALSE)),"-",VLOOKUP($F18&$A$7&$AB$2&J$11,data!$F:$O,'by disease group'!$AB$3,FALSE)) -> 21134.05321 | K18: =IF(ISNA(VLOOKUP($F18&$A$7&$AB$2&K$11,data!$F:$O,'by disease group'!$AB$3,FALSE)),"-",VLOOKUP($F18&$A$7&$AB$2&K$11,data!$F:$O,'by disease group'!$AB$3,FALSE)) -> 32234.39515 | L18: =IF(ISNA(VLOOKUP($F18&$A$7&$AB$2&L$11,data!$F:$O,'by disease group'!$AB$3,FALSE)),"-",VLOOKUP($F18&$A$7&$AB$2&L$11,data!$F:$O,'by disease group'!$AB$3,FALSE)) -> 65689.69335 | N18: 74.7 | O18: [74.0 - 75.5] | P18: 78.8 | Q18: [78.2 - 79.5] | T18: =IF(ISNA(VLOOKUP($F18&$A$7&$AB$2&G$11,data!$F:$O,6,FALSE)),"-",VLOOKUP($F18&$A$7&$AB$2&G$11,data!$F:$O,6,FALSE)) -> 1062 | U18: =IF(ISNA(VLOOKUP($F18&$A$7&$AB$2&H$11,data!$F:$O,6,FALSE)),"-",VLOOKUP($F18&$A$7&$AB$2&H$11,data!$F:$O,6,FALSE)) -> 4.333333333 | V18: =IF(ISNA(VLOOKUP($F18&$A$7&$AB$2&I$11,data!$F:$O,6,FALSE)),"-",VLOOKUP($F18&$A$7&$AB$2&I$11,data!$F:$O,6,FALSE)) -> 6.333333333 | W18: =IF(ISNA(VLOOKUP($F18&$A$7&$AB$2&J$11,data!$F:$O,6,FALSE)),"-",VLOOKUP($F18&$A$7&$AB$2&J$11,data!$F:$O,6,FALSE)) -> 42 | X18: =IF(ISNA(VLOOKUP($F18&$A$7&$AB$2&K$11,data!$F:$O,6,FALSE)),"-",VLOOKUP($F18&$A$7&$AB$2&K$11,data!$F:$O,6,FALSE)) -> 176 | Y18: =IF(ISNA(VLOOKUP($F18&$A$7&$AB$2&L$11,data!$F:$O,6,FALSE)),"-",VLOOKUP($F18&$A$7&$AB$2&L$11,data!$F:$O,6,FALSE)) -> 833.3333333
D19: Dundee City | F19: LA29 | G19: =IF(ISNA(VLOOKUP($F19&$A$7&$AB$2&G$11,data!$F:$O,'by disease group'!$AB$3,FALSE)),"-",VLOOKUP($F19&$A$7&$AB$2&G$11,data!$F:$O,'by disease group'!$AB$3,FALSE)) -> 28357.33847 | H19: =IF(ISNA(VLOOKUP($F19&$A$7&$AB$2&H$11,data!$F:$O,'by disease group'!$AB$3,FALSE)),"-",VLOOKUP($F19&$A$7&$AB$2&H$11,data!$F:$O,'by disease group'!$AB$3,FALSE)) -> 7006.727664 | I19: =IF(ISNA(VLOOKUP($F19&$A$7&$AB$2&I$11,data!$F:$O,'by disease group'!$AB$3,FALSE)),"-",VLOOKUP($F19&$A$7&$AB$2&I$11,data!$F:$O,'by disease group'!$AB$3,FALSE)) -> 8990.291561 | J19: =IF(ISNA(VLOOKUP($F19&$A$7&$AB$2&J$11,data!$F:$O,'by disease group'!$AB$3,FALSE)),"-",VLOOKUP($F19&$A$7&$AB$2&J$11,data!$F:$O,'by disease group'!$AB$3,FALSE)) -> 20335.63542 | K19: =IF(ISNA(VLOOKUP($F19&$A$7&$AB$2&K$11,data!$F:$O,'by disease group'!$AB$3,FALSE)),"-",VLOOKUP($F19&$A$7&$AB$2&K$11,data!$F:$O,'by disease group'!$AB$3,FALSE)) -> 33321.89491 | L19: =IF(ISNA(VLOOKUP($F19&$A$7&$AB$2&L$11,data!$F:$O,'by disease group'!$AB$3,FALSE)),"-",VLOOKUP($F19&$A$7&$AB$2&L$11,data!$F:$O,'by disease group'!$AB$3,FALSE)) -> 61451.96398 | N19: 74.5 | O19: [73.9 - 75.1] | P19: 79.6 | Q19: [79.0 - 80.2] | T19: =IF(ISNA(VLOOKUP($F19&$A$7&$AB$2&G$11,data!$F:$O,6,FALSE)),"-",VLOOKUP($F19&$A$7&$AB$2&G$11,data!$F:$O,6,FALSE)) -> 1679.666667 | U19: =IF(ISNA(VLOOKUP($F19&$A$7&$AB$2&H$11,data!$F:$O,6,FALSE)),"-",VLOOKUP($F19&$A$7&$AB$2&H$11,data!$F:$O,6,FALSE)) -> 13.66666667 | V19: =IF(ISNA(VLOOKUP($F19&$A$7&$AB$2&I$11,data!$F:$O,6,FALSE)),"-",VLOOKUP($F19&$A$7&$AB$2&I$11,data!$F:$O,6,FALSE)) -> 6.333333333 | W19: =IF(ISNA(VLOOKUP($F19&$A$7&$AB$2&J$11,data!$F:$O,6,FALSE)),"-",VLOOKUP($F19&$A$7&$AB$2&J$11,data!$F:$O,6,FALSE)) -> 69 | X19: =IF(ISNA(VLOOKUP($F19&$A$7&$AB$2&K$11,data!$F:$O,6,FALSE)),"-",VLOOKUP($F19&$A$7&$AB$2&K$11,data!$F:$O,6,FALSE)) -> 263.6666667 | Y19: =IF(ISNA(VLOOKUP($F19&$A$7&$AB$2&L$11,data!$F:$O,6,FALSE)),"-",VLOOKUP($F19&$A$7&$AB$2&L$11,data!$F:$O,6,FALSE)) -> 1327
D20: North Lanarkshire | F20: LA30 | G20: =IF(ISNA(VLOOKUP($F20&$A$7&$AB$2&G$11,data!$F:$O,'by disease group'!$AB$3,FALSE)),"-",VLOOKUP($F20&$A$7&$AB$2&G$11,data!$F:$O,'by disease group'!$AB$3,FALSE)) -> 27819.71946 | H20: =IF(ISNA(VLOOKUP($F20&$A$7&$AB$2&H$11,data!$F:$O,'by disease group'!$AB$3,FALSE)),"-",VLOOKUP($F20&$A$7&$AB$2&H$11,data!$F:$O,'by disease group'!$AB$3,FALSE)) -> 4722.476321 | I20: =IF(ISNA(VLOOKUP($F20&$A$7&$AB$2&I$11,data!$F:$O,'by disease group'!$AB$3,FALSE)),"-",VLOOKUP($F20&$A$7&$AB$2&I$11,data!$F:$O,'by disease group'!$AB$3,FALSE)) -> 9872.160646 | J20: =IF(ISNA(VLOOKUP($F20&$A$7&$AB$2&J$11,data!$F:$O,'by disease group'!$AB$3,FALSE)),"-",VLOOKUP($F20&$A$7&$AB$2&J$11,data!$F:$O,'by disease group'!$AB$3,FALSE)) -> 18866.72391 | K20: =IF(ISNA(VLOOKUP($F20&$A$7&$AB$2&K$11,data!$F:$O,'by disease group'!$AB$3,FALSE)),"-",VLOOKUP($F20&$A$7&$AB$2&K$11,data!$F:$O,'by disease group'!$AB$3,FALSE)) -> 30786.36714 | L20: =IF(ISNA(VLOOKUP($F20&$A$7&$AB$2&L$11,data!$F:$O,'by disease group'!$AB$3,FALSE)),"-",VLOOKUP($F20&$A$7&$AB$2&L$11,data!$F:$O,'by disease group'!$AB$3,FALSE)) -> 65491.05458 | N20: 75.4 | O20: [75.0 - 75.8] | P20: 79.6 | Q20: [79.3 - 79.9] | T20: =IF(ISNA(VLOOKUP($F20&$A$7&$AB$2&G$11,data!$F:$O,6,FALSE)),"-",VLOOKUP($F20&$A$7&$AB$2&G$11,data!$F:$O,6,FALSE)) -> 3509.333333 | U20: =IF(ISNA(VLOOKUP($F20&$A$7&$AB$2&H$11,data!$F:$O,6,FALSE)),"-",VLOOKUP($F20&$A$7&$AB$2&H$11,data!$F:$O,6,FALSE)) -> 15.33333333 | V20: =IF(ISNA(VLOOKUP($F20&$A$7&$AB$2&I$11,data!$F:$O,6,FALSE)),"-",VLOOKUP($F20&$A$7&$AB$2&I$11,data!$F:$O,6,FALSE)) -> 15.33333333 | W20: =IF(ISNA(VLOOKUP($F20&$A$7&$AB$2&J$11,data!$F:$O,6,FALSE)),"-",VLOOKUP($F20&$A$7&$AB$2&J$11,data!$F:$O,6,FALSE)) -> 136.3333333 | X20: =IF(ISNA(VLOOKUP($F20&$A$7&$AB$2&K$11,data!$F:$O,6,FALSE)),"-",VLOOKUP($F20&$A$7&$AB$2&K$11,data!$F:$O,6,FALSE)) -> 585.6666667 | Y20: =IF(ISNA(VLOOKUP($F20&$A$7&$AB$2&L$11,data!$F:$O,6,FALSE)),"-",VLOOKUP($F20&$A$7&$AB$2&L$11,data!$F:$O,6,FALSE)) -> 2756.666667
D21: Inverclyde | F21: LA10 | G21: =IF(ISNA(VLOOKUP($F21&$A$7&$AB$2&G$11,data!$F:$O,'by disease group'!$AB$3,FALSE)),"-",VLOOKUP($F21&$A$7&$AB$2&G$11,data!$F:$O,'by disease group'!$AB$3,FALSE)) -> 27463.34184 | H21: =IF(ISNA(VLOOKUP($F21&$A$7&$AB$2&H$11,data!$F:$O,'by disease group'!$AB$3,FALSE)),"-",VLOOKUP($F21&$A$7&$AB$2&H$11,data!$F:$O,'by disease group'!$AB$3,FALSE)) -> 3567.611044 | I21: =IF(ISNA(VLOOKUP($F21&$A$7&$AB$2&I$11,data!$F:$O,'by disease group'!$AB$3,FALSE)),"-",VLOOKUP($F21&$A$7&$AB$2&I$11,data!$F:$O,'by disease group'!$AB$3,FALSE)) -> 10104.36691 | J21: =IF(ISNA(VLOOKUP($F21&$A$7&$AB$2&J$11,data!$F:$O,'by disease group'!$AB$3,FALSE)),"-",VLOOKUP($F21&$A$7&$AB$2&J$11,data!$F:$O,'by disease group'!$AB$3,FALSE)) -> 20221.09638 | K21: =IF(ISNA(VLOOKUP($F21&$A$7&$AB$2&K$11,data!$F:$O,'by disease group'!$AB$3,FALSE)),"-",VLOOKUP($F21&$A$7&$AB$2&K$11,data!$F:$O,'by disease group'!$AB$3,FALSE)) -> 31422.84227 | L21: =IF(ISNA(VLOOKUP($F21&$A$7&$AB$2&L$11,data!$F:$O,'by disease group'!$AB$3,FALSE)),"-",VLOOKUP($F21&$A$7&$AB$2&L$11,data!$F:$O,'by disease group'!$AB$3,FALSE)) -> 61768.60586 | N21: 75.6 | O21: [74.9 - 76.4] | P21: 80.1 | Q21: [79.4 - 80.8] | T21: =IF(ISNA(VLOOKUP($F21&$A$7&$AB$2&G$11,data!$F:$O,6,FALSE)),"-",VLOOKUP($F21&$A$7&$AB$2&G$11,data!$F:$O,6,FALSE)) -> 990 | U21: =IF(ISNA(VLOOKUP($F21&$A$7&$AB$2&H$11,data!$F:$O,6,FALSE)),"-",VLOOKUP($F21&$A$7&$AB$2&H$11,data!$F:$O,6,FALSE)) -> 1.333333333 | V21: =IF(ISNA(VLOOKUP($F21&$A$7&$AB$2&I$11,data!$F:$O,6,FALSE)),"-",VLOOKUP($F21&$A$7&$AB$2&I$11,data!$F:$O,6,FALSE)) -> 3.666666667 | W21: =IF(ISNA(VLOOKUP($F21&$A$7&$AB$2&J$11,data!$F:$O,6,FALSE)),"-",VLOOKUP($F21&$A$7&$AB$2&J$11,data!$F:$O,6,FALSE)) -> 32.66666667 | X21: =IF(ISNA(VLOOKUP($F21&$A$7&$AB$2&K$11,data!$F:$O,6,FALSE)),"-",VLOOKUP($F21&$A$7&$AB$2&K$11,data!$F:$O,6,FALSE)) -> 152 | Y21: =IF(ISNA(VLOOKUP($F21&$A$7&$AB$2&L$11,data!$F:$O,6,FALSE)),"-",VLOOKUP($F21&$A$7&$AB$2&L$11,data!$F:$O,6,FALSE)) -> 800.3333333
D22: North Ayrshire | F22: LA13 | G22: =IF(ISNA(VLOOKUP($F22&$A$7&$AB$2&G$11,data!$F:$O,'by disease group'!$AB$3,FALSE)),"-",VLOOKUP($F22&$A$7&$AB$2&G$11,data!$F:$O,'by disease group'!$AB$3,FALSE)) -> 27034.20102 | H22: =IF(ISNA(VLOOKUP($F22&$A$7&$AB$2&H$11,data!$F:$O,'by disease group'!$AB$3,FALSE)),"-",VLOOKUP($F22&$A$7&$AB$2&H$11,data!$F:$O,'by disease group'!$AB$3,FALSE)) -> 4636.10376 | I22: =IF(ISNA(VLOOKUP($F22&$A$7&$AB$2&I$11,data!$F:$O,'by disease group'!$AB$3,FALSE)),"-",VLOOKUP($F22&$A$7&$AB$2&I$11,data!$F:$O,'by disease group'!$AB$3,FALSE)) -> 10527.2741 | J22: =IF(ISNA(VLOOKUP($F22&$A$7&$AB$2&J$11,data!$F:$O,'by disease group'!$AB$3,FALSE)),"-",VLOOKUP($F22&$A$7&$AB$2&J$11,data!$F:$O,'by disease group'!$AB$3,FALSE)) -> 19803.08128 | K22: =IF(ISNA(VLOOKUP($F22&$A$7&$AB$2&K$11,data!$F:$O,'by disease group'!$AB$3,FALSE)),"-",VLOOKUP($F22&$A$7&$AB$2&K$11,data!$F:$O,'by disease group'!$AB$3,FALSE)) -> 30475.63442 | L22: =IF(ISNA(VLOOKUP($F22&$A$7&$AB$2&L$11,data!$F:$O,'by disease group'!$AB$3,FALSE)),"-",VLOOKUP($F22&$A$7&$AB$2&L$11,data!$F:$O,'by disease group'!$AB$3,FALSE)) -> 60297.06787 | N22: 75.9 | O22: [75.3 - 76.5] | P22: 80.5 | Q22: [80.0 - 81.1] | T22: =IF(ISNA(VLOOKUP($F22&$A$7&$AB$2&G$11,data!$F:$O,6,FALSE)),"-",VLOOKUP($F22&$A$7&$AB$2&G$11,data!$F:$O,6,FALSE)) -> 1640.666667 | U22: =IF(ISNA(VLOOKUP($F22&$A$7&$AB$2&H$11,data!$F:$O,6,FALSE)),"-",VLOOKUP($F22&$A$7&$AB$2&H$11,data!$F:$O,6,FALSE)) -> 5.333333333 | V22: =IF(ISNA(VLOOKUP($F22&$A$7&$AB$2&I$11,data!$F:$O,6,FALSE)),"-",VLOOKUP($F22&$A$7&$AB$2&I$11,data!$F:$O,6,FALSE)) -> 7.333333333 | W22: =IF(ISNA(VLOOKUP($F22&$A$7&$AB$2&J$11,data!$F:$O,6,FALSE)),"-",VLOOKUP($F22&$A$7&$AB$2&J$11,data!$F:$O,6,FALSE)) -> 50.66666667 | X22: =IF(ISNA(VLOOKUP($F22&$A$7&$AB$2&K$11,data!$F:$O,6,FALSE)),"-",VLOOKUP($F22&$A$7&$AB$2&K$11,data!$F:$O,6,FALSE)) -> 245.6666667 | Y22: =IF(ISNA(VLOOKUP($F22&$A$7&$AB$2&L$11,data!$F:$O,6,FALSE)),"-",VLOOKUP($F22&$A$7&$AB$2&L$11,data!$F:$O,6,FALSE)) -> 1331.666667
D23: East Ayrshire | F23: LA3 | G23: =IF(ISNA(VLOOKUP($F23&$A$7&$AB$2&G$11,data!$F:$O,'by disease group'!$AB$3,FALSE)),"-",VLOOKUP($F23&$A$7&$AB$2&G$11,data!$F:$O,'by disease group'!$AB$3,FALSE)) -> 26759.28505 | H23: =IF(ISNA(VLOOKUP($F23&$A$7&$AB$2&H$11,data!$F:$O,'by disease group'!$AB$3,FALSE)),"-",VLOOKUP($F23&$A$7&$AB$2&H$11,data!$F:$O,'by disease group'!$AB$3,FALSE)) -> 4463.672433 | I23: =IF(ISNA(VLOOKUP($F23&$A$7&$AB$2&I$11,data!$F:$O,'by disease group'!$AB$3,FALSE)),"-",VLOOKUP($F23&$A$7&$AB$2&I$11,data!$F:$O,'by disease group'!$AB$3,FALSE)) -> 10579.40115 | J23: =IF(ISNA(VLOOKUP($F23&$A$7&$AB$2&J$11,data!$F:$O,'by disease group'!$AB$3,FALSE)),"-",VLOOKUP($F23&$A$7&$AB$2&J$11,data!$F:$O,'by disease group'!$AB$3,FALSE)) -> 18899.49285 | K23: =IF(ISNA(VLOOKUP($F23&$A$7&$AB$2&K$11,data!$F:$O,'by disease group'!$AB$3,FALSE)),"-",VLOOKUP($F23&$A$7&$AB$2&K$11,data!$F:$O,'by disease group'!$AB$3,FALSE)) -> 28466.13175 | L23: =IF(ISNA(VLOOKUP($F23&$A$7&$AB$2&L$11,data!$F:$O,'by disease group'!$AB$3,FALSE)),"-",VLOOKUP($F23&$A$7&$AB$2&L$11,data!$F:$O,'by disease group'!$AB$3,FALSE)) -> 62956.79903 | N23: 76.5 | O23: [75.8 - 77.1] | P23: 79.8 | Q23: [79.3 - 80.4] | T23: =IF(ISNA(VLOOKUP($F23&$A$7&$AB$2&G$11,data!$F:$O,6,FALSE)),"-",VLOOKUP($F23&$A$7&$AB$2&G$11,data!$F:$O,6,FALSE)) -> 1411.333333 | U23: =IF(ISNA(VLOOKUP($F23&$A$7&$AB$2&H$11,data!$F:$O,6,FALSE)),"-",VLOOKUP($F23&$A$7&$AB$2&H$11,data!$F:$O,6,FALSE)) -> 4.666666667 | V23: =IF(ISNA(VLOOKUP($F23&$A$7&$AB$2&I$11,data!$F:$O,6,FALSE)),"-",VLOOKUP($F23&$A$7&$AB$2&I$11,data!$F:$O,6,FALSE)) -> 7 | W23: =IF(ISNA(VLOOKUP($F23&$A$7&$AB$2&J$11,data!$F:$O,6,FALSE)),"-",VLOOKUP($F23&$A$7&$AB$2&J$11,data!$F:$O,6,FALSE)) -> 48 | X23: =IF(ISNA(VLOOKUP($F23&$A$7&$AB$2&K$11,data!$F:$O,6,FALSE)),"-",VLOOKUP($F23&$A$7&$AB$2&K$11,data!$F:$O,6,FALSE)) -> 191.6666667 | Y23: =IF(ISNA(VLOOKUP($F23&$A$7&$AB$2&L$11,data!$F:$O,6,FALSE)),"-",VLOOKUP($F23&$A$7&$AB$2&L$11,data!$F:$O,6,FALSE)) -> 1160
D24: Renfrewshire | F24: LA25 | G24: =IF(ISNA(VLOOKUP($F24&$A$7&$AB$2&G$11,data!$F:$O,'by disease group'!$AB$3,FALSE)),"-",VLOOKUP($F24&$A$7&$AB$2&G$11,data!$F:$O,'by disease group'!$AB$3,FALSE)) -> 26273.24044 | H24: =IF(ISNA(VLOOKUP($F24&$A$7&$AB$2&H$11,data!$F:$O,'by disease group'!$AB$3,FALSE)),"-",VLOOKUP($F24&$A$7&$AB$2&H$11,data!$F:$O,'by disease group'!$AB$3,FALSE)) -> 4459.853841 | I24: =IF(ISNA(VLOOKUP($F24&$A$7&$AB$2&I$11,data!$F:$O,'by disease group'!$AB$3,FALSE)),"-",VLOOKUP($F24&$A$7&$AB$2&I$11,data!$F:$O,'by disease group'!$AB$3,FALSE)) -> 9673.350599 | J24: =IF(ISNA(VLOOKUP($F24&$A$7&$AB$2&J$11,data!$F:$O,'by disease group'!$AB$3,FALSE)),"-",VLOOKUP($F24&$A$7&$AB$2&J$11,data!$F:$O,'by disease group'!$AB$3,FALSE)) -> 18212.16591 | K24: =IF(ISNA(VLOOKUP($F24&$A$7&$AB$2&K$11,data!$F:$O,'by disease group'!$AB$3,FALSE)),"-",VLOOKUP($F24&$A$7&$AB$2&K$11,data!$F:$O,'by disease group'!$AB$3,FALSE)) -> 28304.0669 | L24: =IF(ISNA(VLOOKUP($F24&$A$7&$AB$2&L$11,data!$F:$O,'by disease group'!$AB$3,FALSE)),"-",VLOOKUP($F24&$A$7&$AB$2&L$11,data!$F:$O,'by disease group'!$AB$3,FALSE)) -> 62156.03495 | N24: 76.4 | O24: [75.9 - 76.9] | P24: 80.2 | Q24: [79.7 - 80.7] | T24: =IF(ISNA(VLOOKUP($F24&$A$7&$AB$2&G$11,data!$F:$O,6,FALSE)),"-",VLOOKUP($F24&$A$7&$AB$2&G$11,data!$F:$O,6,FALSE)) -> 1992.333333 | U24: =IF(ISNA(VLOOKUP($F24&$A$7&$AB$2&H$11,data!$F:$O,6,FALSE)),"-",VLOOKUP($F24&$A$7&$AB$2&H$11,data!$F:$O,6,FALSE)) -> 6.333333333 | V24: =IF(ISNA(VLOOKUP($F24&$A$7&$AB$2&I$11,data!$F:$O,6,FALSE)),"-",VLOOKUP($F24&$A$7&$AB$2&I$11,data!$F:$O,6,FALSE)) -> 7.666666667 | W24: =IF(ISNA(VLOOKUP($F24&$A$7&$AB$2&J$11,data!$F:$O,6,FALSE)),"-",VLOOKUP($F24&$A$7&$AB$2&J$11,data!$F:$O,6,FALSE)) -> 63.33333333 | X24: =IF(ISNA(VLOOKUP($F24&$A$7&$AB$2&K$11,data!$F:$O,6,FALSE)),"-",VLOOKUP($F24&$A$7&$AB$2&K$11,data!$F:$O,6,FALSE)) -> 283.3333333 | Y24: =IF(ISNA(VLOOKUP($F24&$A$7&$AB$2&L$11,data!$F:$O,6,FALSE)),"-",VLOOKUP($F24&$A$7&$AB$2&L$11,data!$F:$O,6,FALSE)) -> 1631.666667
D25: Clackmannanshire | F25: LA1 | G25: =IF(ISNA(VLOOKUP($F25&$A$7&$AB$2&G$11,data!$F:$O,'by disease group'!$AB$3,FALSE)),"-",VLOOKUP($F25&$A$7&$AB$2&G$11,data!$F:$O,'by disease group'!$AB$3,FALSE)) -> 25820.62 | H25: =IF(ISNA(VLOOKUP($F25&$A$7&$AB$2&H$11,data!$F:$O,'by disease group'!$AB$3,FALSE)),"-",VLOOKUP($F25&$A$7&$AB$2&H$11,data!$F:$O,'by disease group'!$AB$3,FALSE)) -> 4503.189584 | I25: =IF(ISNA(VLOOKUP($F25&$A$7&$AB$2&I$11,data!$F:$O,'by disease group'!$AB$3,FALSE)),"-",VLOOKUP($F25&$A$7&$AB$2&I$11,data!$F:$O,'by disease group'!$AB$3,FALSE)) -> 10813.21558 | J25: =IF(ISNA(VLOOKUP($F25&$A$7&$AB$2&J$11,data!$F:$O,'by disease group'!$AB$3,FALSE)),"-",VLOOKUP($F25&$A$7&$AB$2&J$11,data!$F:$O,'by disease group'!$AB$3,FALSE)) -> 18641.6709 | K25: =IF(ISNA(VLOOKUP($F25&$A$7&$AB$2&K$11,data!$F:$O,'by disease group'!$AB$3,FALSE)),"-",VLOOKUP($F25&$A$7&$AB$2&K$11,data!$F:$O,'by disease group'!$AB$3,FALSE)) -> 28109.05496 | L25: =IF(ISNA(VLOOKUP($F25&$A$7&$AB$2&L$11,data!$F:$O,'by disease group'!$AB$3,FALSE)),"-",VLOOKUP($F25&$A$7&$AB$2&L$11,data!$F:$O,'by disease group'!$AB$3,FALSE)) -> 58808.4488 | N25: 76.7 | O25: [75.7 - 77.7] | P25: 80.6 | Q25: [79.7 - 81.5] | T25: =IF(ISNA(VLOOKUP($F25&$A$7&$AB$2&G$11,data!$F:$O,6,FALSE)),"-",VLOOKUP($F25&$A$7&$AB$2&G$11,data!$F:$O,6,FALSE)) -> 525.3333333 | U25: =IF(ISNA(VLOOKUP($F25&$A$7&$AB$2&H$11,data!$F:$O,6,FALSE)),"-",VLOOKUP($F25&$A$7&$AB$2&H$11,data!$F:$O,6,FALSE)) -> 2 | V25: =IF(ISNA(VLOOKUP($F25&$A$7&$AB$2&I$11,data!$F:$O,6,FALSE)),"-",VLOOKUP($F25&$A$7&$AB$2&I$11,data!$F:$O,6,FALSE)) -> 3.333333333 | W25: =IF(ISNA(VLOOKUP($F25&$A$7&$AB$2&J$11,data!$F:$O,6,FALSE)),"-",VLOOKUP($F25&$A$7&$AB$2&J$11,data!$F:$O,6,FALSE)) -> 18.66666667 | X25: =IF(ISNA(VLOOKUP($F25&$A$7&$AB$2&K$11,data!$F:$O,6,FALSE)),"-",VLOOKUP($F25&$A$7&$AB$2&K$11,data!$F:$O,6,FALSE)) -> 82.33333333 | Y25: =IF(ISNA(VLOOKUP($F25&$A$7&$AB$2&L$11,data!$F:$O,6,FALSE)),"-",VLOOKUP($F25&$A$7&$AB$2&L$11,data!$F:$O,6,FALSE)) -> 419
D26: South Lanarkshire | F26: LA19 | G26: =IF(ISNA(VLOOKUP($F26&$A$7&$AB$2&G$11,data!$F:$O,'by disease group'!$AB$3,FALSE)),"-",VLOOKUP($F26&$A$7&$AB$2&G$11,data!$F:$O,'by disease group'!$AB$3,FALSE)) -> 25625.90565 | H26: =IF(ISNA(VLOOKUP($F26&$A$7&$AB$2&H$11,data!$F:$O,'by disease group'!$AB$3,FALSE)),"-",VLOOKUP($F26&$A$7&$AB$2&H$11,data!$F:$O,'by disease group'!$AB$3,FALSE)) -> 4763.270785 | I26: =IF(ISNA(VLOOKUP($F26&$A$7&$AB$2&I$11,data!$F:$O,'by disease group'!$AB$3,FALSE)),"-",VLOOKUP($F26&$A$7&$AB$2&I$11,data!$F:$O,'by disease group'!$AB$3,FALSE)) -> 9544.702092 | J26: =IF(ISNA(VLOOKUP($F26&$A$7&$AB$2&J$11,data!$F:$O,'by disease group'!$AB$3,FALSE)),"-",VLOOKUP($F26&$A$7&$AB$2&J$11,data!$F:$O,'by disease group'!$AB$3,FALSE)) -> 17708.85797 | K26: =IF(ISNA(VLOOKUP($F26&$A$7&$AB$2&K$11,data!$F:$O,'by disease group'!$AB$3,FALSE)),"-",VLOOKUP($F26&$A$7&$AB$2&K$11,data!$F:$O,'by disease group'!$AB$3,FALSE)) -> 27660.54225 | L26: =IF(ISNA(VLOOKUP($F26&$A$7&$AB$2&L$11,data!$F:$O,'by disease group'!$AB$3,FALSE)),"-",VLOOKUP($F26&$A$7&$AB$2&L$11,data!$F:$O,'by disease group'!$AB$3,FALSE)) -> 60221.79757 | N26: 76.8 | O26: [76.4 - 77.2] | P26: 80.7 | Q26: [80.3 - 81.0] | T26: =IF(ISNA(VLOOKUP($F26&$A$7&$AB$2&G$11,data!$F:$O,6,FALSE)),"-",VLOOKUP($F26&$A$7&$AB$2&G$11,data!$F:$O,6,FALSE)) -> 3443 | U26: =IF(ISNA(VLOOKUP($F26&$A$7&$AB$2&H$11,data!$F:$O,6,FALSE)),"-",VLOOKUP($F26&$A$7&$AB$2&H$11,data!$F:$O,6,FALSE)) -> 13.66666667 | V26: =IF(ISNA(VLOOKUP($F26&$A$7&$AB$2&I$11,data!$F:$O,6,FALSE)),"-",VLOOKUP($F26&$A$7&$AB$2&I$11,data!$F:$O,6,FALSE)) -> 13.33333333 | W26: =IF(ISNA(VLOOKUP($F26&$A$7&$AB$2&J$11,data!$F:$O,6,FALSE)),"-",VLOOKUP($F26&$A$7&$AB$2&J$11,data!$F:$O,6,FALSE)) -> 110.3333333 | X26: =IF(ISNA(VLOOKUP($F26&$A$7&$AB$2&K$11,data!$F:$O,6,FALSE)),"-",VLOOKUP($F26&$A$7&$AB$2&K$11,data!$F:$O,6,FALSE)) -> 499 | Y26: =IF(ISNA(VLOOKUP($F26&$A$7&$AB$2&L$11,data!$F:$O,6,FALSE)),"-",VLOOKUP($F26&$A$7&$AB$2&L$11,data!$F:$O,6,FALSE)) -> 2806.666667
D27: South Ayrshire | F27: LA18 | G27: =IF(ISNA(VLOOKUP($F27&$A$7&$AB$2&G$11,data!$F:$O,'by disease group'!$AB$3,FALSE)),"-",VLOOKUP($F27&$A$7&$AB$2&G$11,data!$F:$O,'by disease group'!$AB$3,FALSE)) -> 24960.50644 | H27: =IF(ISNA(VLOOKUP($F27&$A$7&$AB$2&H$11,data!$F:$O,'by disease group'!$AB$3,FALSE)),"-",VLOOKUP($F27&$A$7&$AB$2&H$11,data!$F:$O,'by disease group'!$AB$3,FALSE)) -> 4996.731922 | I27: =IF(ISNA(VLOOKUP($F27&$A$7&$AB$2&I$11,data!$F:$O,'by disease group'!$AB$3,FALSE)),"-",VLOOKUP($F27&$A$7&$AB$2&I$11,data!$F:$O,'by disease group'!$AB$3,FALSE)) -> 9907.113983 | J27: =IF(ISNA(VLOOKUP($F27&$A$7&$AB$2&J$11,data!$F:$O,'by disease group'!$AB$3,FALSE)),"-",VLOOKUP($F27&$A$7&$AB$2&J$11,data!$F:$O,'by disease group'!$AB$3,FALSE)) -> 19523.2605 | K27: =IF(ISNA(VLOOKUP($F27&$A$7&$AB$2&K$11,data!$F:$O,'by disease group'!$AB$3,FALSE)),"-",VLOOKUP($F27&$A$7&$AB$2&K$11,data!$F:$O,'by disease group'!$AB$3,FALSE)) -> 26257.38853 | L27: =IF(ISNA(VLOOKUP($F27&$A$7&$AB$2&L$11,data!$F:$O,'by disease group'!$AB$3,FALSE)),"-",VLOOKUP($F27&$A$7&$AB$2&L$11,data!$F:$O,'by disease group'!$AB$3,FALSE)) -> 55845.32938 | N27: 77.5 | O27: [76.9 - 78.2] | P27: 80.8 | Q27: [80.1 - 81.4] | T27: =IF(ISNA(VLOOKUP($F27&$A$7&$AB$2&G$11,data!$F:$O,6,FALSE)),"-",VLOOKUP($F27&$A$7&$AB$2&G$11,data!$F:$O,6,FALSE)) -> 1441.333333 | U27: =IF(ISNA(VLOOKUP($F27&$A$7&$AB$2&H$11,data!$F:$O,6,FALSE)),"-",VLOOKUP($F27&$A$7&$AB$2&H$11,data!$F:$O,6,FALSE)) -> 4.666666667 | V27: =IF(ISNA(VLOOKUP($F27&$A$7&$AB$2&I$11,data!$F:$O,6,FALSE)),"-",VLOOKUP($F27&$A$7&$AB$2&I$11,data!$F:$O,6,FALSE)) -> 5 | W27: =IF(ISNA(VLOOKUP($F27&$A$7&$AB$2&J$11,data!$F:$O,6,FALSE)),"-",VLOOKUP($F27&$A$7&$AB$2&J$11,data!$F:$O,6,FALSE)) -> 42.33333333 | X27: =IF(ISNA(VLOOKUP($F27&$A$7&$AB$2&K$11,data!$F:$O,6,FALSE)),"-",VLOOKUP($F27&$A$7&$AB$2&K$11,data!$F:$O,6,FALSE)) -> 165.3333333 | Y27: =IF(ISNA(VLOOKUP($F27&$A$7&$AB$2&L$11,data!$F:$O,6,FALSE)),"-",VLOOKUP($F27&$A$7&$AB$2&L$11,data!$F:$O,6,FALSE)) -> 1224
D28: Falkirk | F28: LA7 | G28: =IF(ISNA(VLOOKUP($F28&$A$7&$AB$2&G$11,data!$F:$O,'by disease group'!$AB$3,FALSE)),"-",VLOOKUP($F28&$A$7&$AB$2&G$11,data!$F:$O,'by disease group'!$AB$3,FALSE)) -> 24932.22867 | H28: =IF(ISNA(VLOOKUP($F28&$A$7&$AB$2&H$11,data!$F:$O,'by disease group'!$AB$3,FALSE)),"-",VLOOKUP($F28&$A$7&$AB$2&H$11,data!$F:$O,'by disease group'!$AB$3,FALSE)) -> 5058.751378 | I28: =IF(ISNA(VLOOKUP($F28&$A$7&$AB$2&I$11,data!$F:$O,'by disease group'!$AB$3,FALSE)),"-",VLOOKUP($F28&$A$7&$AB$2&I$11,data!$F:$O,'by disease group'!$AB$3,FALSE)) -> 9473.097722 | J28: =IF(ISNA(VLOOKUP($F28&$A$7&$AB$2&J$11,data!$F:$O,'by disease group'!$AB$3,FALSE)),"-",VLOOKUP($F28&$A$7&$AB$2&J$11,data!$F:$O,'by disease group'!$AB$3,FALSE)) -> 16805.97746 | K28: =IF(ISNA(VLOOKUP($F28&$A$7&$AB$2&K$11,data!$F:$O,'by disease group'!$AB$3,FALSE)),"-",VLOOKUP($F28&$A$7&$AB$2&K$11,data!$F:$O,'by disease group'!$AB$3,FALSE)) -> 26765.2007 | L28: =IF(ISNA(VLOOKUP($F28&$A$7&$AB$2&L$11,data!$F:$O,'by disease group'!$AB$3,FALSE)),"-",VLOOKUP($F28&$A$7&$AB$2&L$11,data!$F:$O,'by disease group'!$AB$3,FALSE)) -> 58907.99999 | N28: 77.3 | O28: [76.7 - 77.8] | P28: 80.6 | Q28: [80.1 - 81.1] | T28: =IF(ISNA(VLOOKUP($F28&$A$7&$AB$2&G$11,data!$F:$O,6,FALSE)),"-",VLOOKUP($F28&$A$7&$AB$2&G$11,data!$F:$O,6,FALSE)) -> 1612.333333 | U28: =IF(ISNA(VLOOKUP($F28&$A$7&$AB$2&H$11,data!$F:$O,6,FALSE)),"-",VLOOKUP($F28&$A$7&$AB$2&H$11,data!$F:$O,6,FALSE)) -> 8 | V28: =IF(ISNA(VLOOKUP($F28&$A$7&$AB$2&I$11,data!$F:$O,6,FALSE)),"-",VLOOKUP($F28&$A$7&$AB$2&I$11,data!$F:$O,6,FALSE)) -> 7 | W28: =IF(ISNA(VLOOKUP($F28&$A$7&$AB$2&J$11,data!$F:$O,6,FALSE)),"-",VLOOKUP($F28&$A$7&$AB$2&J$11,data!$F:$O,6,FALSE)) -> 54.33333333 | X28: =IF(ISNA(VLOOKUP($F28&$A$7&$AB$2&K$11,data!$F:$O,6,FALSE)),"-",VLOOKUP($F28&$A$7&$AB$2&K$11,data!$F:$O,6,FALSE)) -> 230.6666667 | Y28: =IF(ISNA(VLOOKUP($F28&$A$7&$AB$2&L$11,data!$F:$O,6,FALSE)),"-",VLOOKUP($F28&$A$7&$AB$2&L$11,data!$F:$O,6,FALSE)) -> 1312.333333
D29: Na h-Eileanan Siar | F29: LA6 | G29: =IF(ISNA(VLOOKUP($F29&$A$7&$AB$2&G$11,data!$F:$O,'by disease group'!$AB$3,FALSE)),"-",VLOOKUP($F29&$A$7&$AB$2&G$11,data!$F:$O,'by disease group'!$AB$3,FALSE)) -> 24766.11017 | H29: =IF(ISNA(VLOOKUP($F29&$A$7&$AB$2&H$11,data!$F:$O,'by disease group'!$AB$3,FALSE)),"-",VLOOKUP($F29&$A$7&$AB$2&H$11,data!$F:$O,'by disease group'!$AB$3,FALSE)) -> 4410.154664 | I29: =IF(ISNA(VLOOKUP($F29&$A$7&$AB$2&I$11,data!$F:$O,'by disease group'!$AB$3,FALSE)),"-",VLOOKUP($F29&$A$7&$AB$2&I$11,data!$F:$O,'by disease group'!$AB$3,FALSE)) -> 10249.04769 | J29: =IF(ISNA(VLOOKUP($F29&$A$7&$AB$2&J$11,data!$F:$O,'by disease group'!$AB$3,FALSE)),"-",VLOOKUP($F29&$A$7&$AB$2&J$11,data!$F:$O,'by disease group'!$AB$3,FALSE)) -> 17256.04006 | K29: =IF(ISNA(VLOOKUP($F29&$A$7&$AB$2&K$11,data!$F:$O,'by disease group'!$AB$3,FALSE)),"-",VLOOKUP($F29&$A$7&$AB$2&K$11,data!$F:$O,'by disease group'!$AB$3,FALSE)) -> 27910.2159 | L29: =IF(ISNA(VLOOKUP($F29&$A$7&$AB$2&L$11,data!$F:$O,'by disease group'!$AB$3,FALSE)),"-",VLOOKUP($F29&$A$7&$AB$2&L$11,data!$F:$O,'by disease group'!$AB$3,FALSE)) -> 55963.01083 | N29: 76.6 | O29: [75.3 - 78.0] | P29: 82.7 | Q29: [81.5 - 83.9] | T29: =IF(ISNA(VLOOKUP($F29&$A$7&$AB$2&G$11,data!$F:$O,6,FALSE)),"-",VLOOKUP($F29&$A$7&$AB$2&G$11,data!$F:$O,6,FALSE)) -> 349.3333333 | U29: =IF(ISNA(VLOOKUP($F29&$A$7&$AB$2&H$11,data!$F:$O,6,FALSE)),"-",VLOOKUP($F29&$A$7&$AB$2&H$11,data!$F:$O,6,FALSE)) -> 0.6666666667 | V29: =IF(ISNA(VLOOKUP($F29&$A$7&$AB$2&I$11,data!$F:$O,6,FALSE)),"-",VLOOKUP($F29&$A$7&$AB$2&I$11,data!$F:$O,6,FALSE)) -> 1.333333333 | W29: =IF(ISNA(VLOOKUP($F29&$A$7&$AB$2&J$11,data!$F:$O,6,FALSE)),"-",VLOOKUP($F29&$A$7&$AB$2&J$11,data!$F:$O,6,FALSE)) -> 7.666666667 | X29: =IF(ISNA(VLOOKUP($F29&$A$7&$AB$2&K$11,data!$F:$O,6,FALSE)),"-",VLOOKUP($F29&$A$7&$AB$2&K$11,data!$F:$O,6,FALSE)) -> 47.33333333 | Y29: =IF(ISNA(VLOOKUP($F29&$A$7&$AB$2&L$11,data!$F:$O,6,FALSE)),"-",VLOOKUP($F29&$A$7&$AB$2&L$11,data!$F:$O,6,FALSE)) -> 292.3333333
D30: Fife | F30: LA8 | G30: =IF(ISNA(VLOOKUP($F30&$A$7&$AB$2&G$11,data!$F:$O,'by disease group'!$AB$3,FALSE)),"-",VLOOKUP($F30&$A$7&$AB$2&G$11,data!$F:$O,'by disease group'!$AB$3,FALSE)) -> 24442.84867 | H30: =IF(ISNA(VLOOKUP($F30&$A$7&$AB$2&H$11,data!$F:$O,'by disease group'!$AB$3,FALSE)),"-",VLOOKUP($F30&$A$7&$AB$2&H$11,data!$F:$O,'by disease group'!$AB$3,FALSE)) -> 5729.961201 | I30: =IF(ISNA(VLOOKUP($F30&$A$7&$AB$2&I$11,data!$F:$O,'by disease group'!$AB$3,FALSE)),"-",VLOOKUP($F30&$A$7&$AB$2&I$11,data!$F:$O,'by disease group'!$AB$3,FALSE)) -> 8983.56074 | J30: =IF(ISNA(VLOOKUP($F30&$A$7&$AB$2&J$11,data!$F:$O,'by disease group'!$AB$3,FALSE)),"-",VLOOKUP($F30&$A$7&$AB$2&J$11,data!$F:$O,'by disease group'!$AB$3,FALSE)) -> 16763.52151 | K30: =IF(ISNA(VLOOKUP($F30&$A$7&$AB$2&K$11,data!$F:$O,'by disease group'!$AB$3,FALSE)),"-",VLOOKUP($F30&$A$7&$AB$2&K$11,data!$F:$O,'by disease group'!$AB$3,FALSE)) -> 26636.12241 | L30: =IF(ISNA(VLOOKUP($F30&$A$7&$AB$2&L$11,data!$F:$O,'by disease group'!$AB$3,FALSE)),"-",VLOOKUP($F30&$A$7&$AB$2&L$11,data!$F:$O,'by disease group'!$AB$3,FALSE)) -> 56369.43465 | N30: 77.6 | O30: [77.2 - 78.0] | P30: 81.2 | Q30: [80.9 - 81.5] | T30: =IF(ISNA(VLOOKUP($F30&$A$7&$AB$2&G$11,data!$F:$O,6,FALSE)),"-",VLOOKUP($F30&$A$7&$AB$2&G$11,data!$F:$O,6,FALSE)) -> 3895.666667 | U30: =IF(ISNA(VLOOKUP($F30&$A$7&$AB$2&H$11,data!$F:$O,6,FALSE)),"-",VLOOKUP($F30&$A$7&$AB$2&H$11,data!$F:$O,6,FALSE)) -> 23.66666667 | V30: =IF(ISNA(VLOOKUP($F30&$A$7&$AB$2&I$11,data!$F:$O,6,FALSE)),"-",VLOOKUP($F30&$A$7&$AB$2&I$11,data!$F:$O,6,FALSE)) -> 15 | W30: =IF(ISNA(VLOOKUP($F30&$A$7&$AB$2&J$11,data!$F:$O,6,FALSE)),"-",VLOOKUP($F30&$A$7&$AB$2&J$11,data!$F:$O,6,FALSE)) -> 110 | X30: =IF(ISNA(VLOOKUP($F30&$A$7&$AB$2&K$11,data!$F:$O,6,FALSE)),"-",VLOOKUP($F30&$A$7&$AB$2&K$11,data!$F:$O,6,FALSE)) -> 523.6666667 | Y30: =IF(ISNA(VLOOKUP($F30&$A$7&$AB$2&L$11,data!$F:$O,6,FALSE)),"-",VLOOKUP($F30&$A$7&$AB$2&L$11,data!$F:$O,6,FALSE)) -> 3223.333333
D31: Aberdeen City | F31: LA21 | G31: =IF(ISNA(VLOOKUP($F31&$A$7&$AB$2&G$11,data!$F:$O,'by disease group'!$AB$3,FALSE)),"-",VLOOKUP($F31&$A$7&$AB$2&G$11,data!$F:$O,'by disease group'!$AB$3,FALSE)) -> 24409.90423 | H31: =IF(ISNA(VLOOKUP($F31&$A$7&$AB$2&H$11,data!$F:$O,'by disease group'!$AB$3,FALSE)),"-",VLOOKUP($F31&$A$7&$AB$2&H$11,data!$F:$O,'by disease group'!$AB$3,FALSE)) -> 5185.762861 | I31: =IF(ISNA(VLOOKUP($F31&$A$7&$AB$2&I$11,data!$F:$O,'by disease group'!$AB$3,FALSE)),"-",VLOOKUP($F31&$A$7&$AB$2&I$11,data!$F:$O,'by disease group'!$AB$3,FALSE)) -> 8410.232784 | J31: =IF(ISNA(VLOOKUP($F31&$A$7&$AB$2&J$11,data!$F:$O,'by disease group'!$AB$3,FALSE)),"-",VLOOKUP($F31&$A$7&$AB$2&J$11,data!$F:$O,'by disease group'!$AB$3,FALSE)) -> 15751.51505 | K31: =IF(ISNA(VLOOKUP($F31&$A$7&$AB$2&K$11,data!$F:$O,'by disease group'!$AB$3,FALSE)),"-",VLOOKUP($F31&$A$7&$AB$2&K$11,data!$F:$O,'by disease group'!$AB$3,FALSE)) -> 26761.4854 | L31: =IF(ISNA(VLOOKUP($F31&$A$7&$AB$2&L$11,data!$F:$O,'by disease group'!$AB$3,FALSE)),"-",VLOOKUP($F31&$A$7&$AB$2&L$11,data!$F:$O,'by disease group'!$AB$3,FALSE)) -> 58190.05271 | N31: 76.4 | O31: [75.9 - 76.9] | P31: 80.8 | Q31: [80.4 - 81.3] | T31: =IF(ISNA(VLOOKUP($F31&$A$7&$AB$2&G$11,data!$F:$O,6,FALSE)),"-",VLOOKUP($F31&$A$7&$AB$2&G$11,data!$F:$O,6,FALSE)) -> 2131.666667 | U31: =IF(ISNA(VLOOKUP($F31&$A$7&$AB$2&H$11,data!$F:$O,6,FALSE)),"-",VLOOKUP($F31&$A$7&$AB$2&H$11,data!$F:$O,6,FALSE)) -> 11.33333333 | V31: =IF(ISNA(VLOOKUP($F31&$A$7&$AB$2&I$11,data!$F:$O,6,FALSE)),"-",VLOOKUP($F31&$A$7&$AB$2&I$11,data!$F:$O,6,FALSE)) -> 10.33333333 | W31: =IF(ISNA(VLOOKUP($F31&$A$7&$AB$2&J$11,data!$F:$O,6,FALSE)),"-",VLOOKUP($F31&$A$7&$AB$2&J$11,data!$F:$O,6,FALSE)) -> 86.66666667 | X31: =IF(ISNA(VLOOKUP($F31&$A$7&$AB$2&K$11,data!$F:$O,6,FALSE)),"-",VLOOKUP($F31&$A$7&$AB$2&K$11,data!$F:$O,6,FALSE)) -> 306 | Y31: =IF(ISNA(VLOOKUP($F31&$A$7&$AB$2&L$11,data!$F:$O,6,FALSE)),"-",VLOOKUP($F31&$A$7&$AB$2&L$11,data!$F:$O,6,FALSE)) -> 1717.333333
D32: West Lothian | F32: LA27 | G32: =IF(ISNA(VLOOKUP($F32&$A$7&$AB$2&G$11,data!$F:$O,'by disease group'!$AB$3,FALSE)),"-",VLOOKUP($F32&$A$7&$AB$2&G$11,data!$F:$O,'by disease group'!$AB$3,FALSE)) -> 24160.06929 | H32: =IF(ISNA(VLOOKUP($F32&$A$7&$AB$2&H$11,data!$F:$O,'by disease group'!$AB$3,FALSE)),"-",VLOOKUP($F32&$A$7&$AB$2&H$11,data!$F:$O,'by disease group'!$AB$3,FALSE)) -> 4475.382469 | I32: =IF(ISNA(VLOOKUP($F32&$A$7&$AB$2&I$11,data!$F:$O,'by disease group'!$AB$3,FALSE)),"-",VLOOKUP($F32&$A$7&$AB$2&I$11,data!$F:$O,'by disease group'!$AB$3,FALSE)) -> 9790.748504 | J32: =IF(ISNA(VLOOKUP($F32&$A$7&$AB$2&J$11,data!$F:$O,'by disease group'!$AB$3,FALSE)),"-",VLOOKUP($F32&$A$7&$AB$2&J$11,data!$F:$O,'by disease group'!$AB$3,FALSE)) -> 15526.78346 | K32: =IF(ISNA(VLOOKUP($F32&$A$7&$AB$2&K$11,data!$F:$O,'by disease group'!$AB$3,FALSE)),"-",VLOOKUP($F32&$A$7&$AB$2&K$11,data!$F:$O,'by disease group'!$AB$3,FALSE)) -> 25507.97136 | L32: =IF(ISNA(VLOOKUP($F32&$A$7&$AB$2&L$11,data!$F:$O,'by disease group'!$AB$3,FALSE)),"-",VLOOKUP($F32&$A$7&$AB$2&L$11,data!$F:$O,'by disease group'!$AB$3,FALSE)) -> 58686.47174 | N32: 78.3 | O32: [77.8 - 78.8] | P32: 80.8 | Q32: [80.3 - 81.3] | T32: =IF(ISNA(VLOOKUP($F32&$A$7&$AB$2&G$11,data!$F:$O,6,FALSE)),"-",VLOOKUP($F32&$A$7&$AB$2&G$11,data!$F:$O,6,FALSE)) -> 1493.666667 | U32: =IF(ISNA(VLOOKUP($F32&$A$7&$AB$2&H$11,data!$F:$O,6,FALSE)),"-",VLOOKUP($F32&$A$7&$AB$2&H$11,data!$F:$O,6,FALSE)) -> 7.333333333 | V32: =IF(ISNA(VLOOKUP($F32&$A$7&$AB$2&I$11,data!$F:$O,6,FALSE)),"-",VLOOKUP($F32&$A$7&$AB$2&I$11,data!$F:$O,6,FALSE)) -> 9 | W32: =IF(ISNA(VLOOKUP($F32&$A$7&$AB$2&J$11,data!$F:$O,6,FALSE)),"-",VLOOKUP($F32&$A$7&$AB$2&J$11,data!$F:$O,6,FALSE)) -> 46.66666667 | X32: =IF(ISNA(VLOOKUP($F32&$A$7&$AB$2&K$11,data!$F:$O,6,FALSE)),"-",VLOOKUP($F32&$A$7&$AB$2&K$11,data!$F:$O,6,FALSE)) -> 226.6666667 | Y32: =IF(ISNA(VLOOKUP($F32&$A$7&$AB$2&L$11,data!$F:$O,6,FALSE)),"-",VLOOKUP($F32&$A$7&$AB$2&L$11,data!$F:$O,6,FALSE)) -> 1204
D33: Midlothian | F33: LA11 | G33: =IF(ISNA(VLOOKUP($F33&$A$7&$AB$2&G$11,data!$F:$O,'by disease group'!$AB$3,FALSE)),"-",VLOOKUP($F33&$A$7&$AB$2&G$11,data!$F:$O,'by disease group'!$AB$3,FALSE)) -> 23934.12857 | H33: =IF(ISNA(VLOOKUP($F33&$A$7&$AB$2&H$11,data!$F:$O,'by disease group'!$AB$3,FALSE)),"-",VLOOKUP($F33&$A$7&$AB$2&H$11,data!$F:$O,'by disease group'!$AB$3,FALSE)) -> 4636.312667 | I33: =IF(ISNA(VLOOKUP($F33&$A$7&$AB$2&I$11,data!$F:$O,'by disease group'!$AB$3,FALSE)),"-",VLOOKUP($F33&$A$7&$AB$2&I$11,data!$F:$O,'by disease group'!$AB$3,FALSE)) -> 9220.402694 | J33: =IF(ISNA(VLOOKUP($F33&$A$7&$AB$2&J$11,data!$F:$O,'by disease group'!$AB$3,FALSE)),"-",VLOOKUP($F33&$A$7&$AB$2&J$11,data!$F:$O,'by disease group'!$AB$3,FALSE)) -> 15117.20049 | K33: =IF(ISNA(VLOOKUP($F33&$A$7&$AB$2&K$11,data!$F:$O,'by disease group'!$AB$3,FALSE)),"-",VLOOKUP($F33&$A$7&$AB$2&K$11,data!$F:$O,'by disease group'!$AB$3,FALSE)) -> 26437.92043 | L33: =IF(ISNA(VLOOKUP($F33&$A$7&$AB$2&L$11,data!$F:$O,'by disease group'!$AB$3,FALSE)),"-",VLOOKUP($F33&$A$7&$AB$2&L$11,data!$F:$O,'by disease group'!$AB$3,FALSE)) -> 57024.94971 | N33: 77.9 | O33: [77.2 - 78.6] | P33: 81.4 | Q33: [80.8 - 82.1] | T33: =IF(ISNA(VLOOKUP($F33&$A$7&$AB$2&G$11,data!$F:$O,6,FALSE)),"-",VLOOKUP($F33&$A$7&$AB$2&G$11,data!$F:$O,6,FALSE)) -> 856.6666667 | U33: =IF(ISNA(VLOOKUP($F33&$A$7&$AB$2&H$11,data!$F:$O,6,FALSE)),"-",VLOOKUP($F33&$A$7&$AB$2&H$11,data!$F:$O,6,FALSE)) -> 4 | V33: =IF(ISNA(VLOOKUP($F33&$A$7&$AB$2&I$11,data!$F:$O,6,FALSE)),"-",VLOOKUP($F33&$A$7&$AB$2&I$11,data!$F:$O,6,FALSE)) -> 3.333333333 | W33: =IF(ISNA(VLOOKUP($F33&$A$7&$AB$2&J$11,data!$F:$O,6,FALSE)),"-",VLOOKUP($F33&$A$7&$AB$2&J$11,data!$F:$O,6,FALSE)) -> 19.33333333 | X33: =IF(ISNA(VLOOKUP($F33&$A$7&$AB$2&K$11,data!$F:$O,6,FALSE)),"-",VLOOKUP($F33&$A$7&$AB$2&K$11,data!$F:$O,6,FALSE)) -> 124 | Y33: =IF(ISNA(VLOOKUP($F33&$A$7&$AB$2&L$11,data!$F:$O,6,FALSE)),"-",VLOOKUP($F33&$A$7&$AB$2&L$11,data!$F:$O,6,FALSE)) -> 706
D34: Dumfries and Galloway | F34: LA2 | G34: =IF(ISNA(VLOOKUP($F34&$A$7&$AB$2&G$11,data!$F:$O,'by disease group'!$AB$3,FALSE)),"-",VLOOKUP($F34&$A$7&$AB$2&G$11,data!$F:$O,'by disease group'!$AB$3,FALSE)) -> 23839.5599 | H34: =IF(ISNA(VLOOKUP($F34&$A$7&$AB$2&H$11,data!$F:$O,'by disease group'!$AB$3,FALSE)),"-",VLOOKUP($F34&$A$7&$AB$2&H$11,data!$F:$O,'by disease group'!$AB$3,FALSE)) -> 5611.51848 | I34: =IF(ISNA(VLOOKUP($F34&$A$7&$AB$2&I$11,data!$F:$O,'by disease group'!$AB$3,FALSE)),"-",VLOOKUP($F34&$A$7&$AB$2&I$11,data!$F:$O,'by disease group'!$AB$3,FALSE)) -> 10334.67855 | J34: =IF(ISNA(VLOOKUP($F34&$A$7&$AB$2&J$11,data!$F:$O,'by disease group'!$AB$3,FALSE)),"-",VLOOKUP($F34&$A$7&$AB$2&J$11,data!$F:$O,'by disease group'!$AB$3,FALSE)) -> 16528.3448 | K34: =IF(ISNA(VLOOKUP($F34&$A$7&$AB$2&K$11,data!$F:$O,'by disease group'!$AB$3,FALSE)),"-",VLOOKUP($F34&$A$7&$AB$2&K$11,data!$F:$O,'by disease group'!$AB$3,FALSE)) -> 24837.87151 | L34: =IF(ISNA(VLOOKUP($F34&$A$7&$AB$2&L$11,data!$F:$O,'by disease group'!$AB$3,FALSE)),"-",VLOOKUP($F34&$A$7&$AB$2&L$11,data!$F:$O,'by disease group'!$AB$3,FALSE)) -> 55339.39276 | N34: 77.8 | O34: [77.3 - 78.4] | P34: 81.8 | Q34: [81.3 - 82.3] | T34: =IF(ISNA(VLOOKUP($F34&$A$7&$AB$2&G$11,data!$F:$O,6,FALSE)),"-",VLOOKUP($F34&$A$7&$AB$2&G$11,data!$F:$O,6,FALSE)) -> 1865 | U34: =IF(ISNA(VLOOKUP($F34&$A$7&$AB$2&H$11,data!$F:$O,6,FALSE)),"-",VLOOKUP($F34&$A$7&$AB$2&H$11,data!$F:$O,6,FALSE)) -> 7.666666667 | V34: =IF(ISNA(VLOOKUP($F34&$A$7&$AB$2&I$11,data!$F:$O,6,FALSE)),"-",VLOOKUP($F34&$A$7&$AB$2&I$11,data!$F:$O,6,FALSE)) -> 8 | W34: =IF(ISNA(VLOOKUP($F34&$A$7&$AB$2&J$11,data!$F:$O,6,FALSE)),"-",VLOOKUP($F34&$A$7&$AB$2&J$11,data!$F:$O,6,FALSE)) -> 35 | X34: =IF(ISNA(VLOOKUP($F34&$A$7&$AB$2&K$11,data!$F:$O,6,FALSE)),"-",VLOOKUP($F34&$A$7&$AB$2&K$11,data!$F:$O,6,FALSE)) -> 198 | Y34: =IF(ISNA(VLOOKUP($F34&$A$7&$AB$2&L$11,data!$F:$O,6,FALSE)),"-",VLOOKUP($F34&$A$7&$AB$2&L$11,data!$F:$O,6,FALSE)) -> 1616.333333
D35: Argyll and Bute | F35: LA23 | G35: =IF(ISNA(VLOOKUP($F35&$A$7&$AB$2&G$11,data!$F:$O,'by disease group'!$AB$3,FALSE)),"-",VLOOKUP($F35&$A$7&$AB$2&G$11,data!$F:$O,'by disease group'!$AB$3,FALSE)) -> 23500.76305 | H35: =IF(ISNA(VLOOKUP($F35&$A$7&$AB$2&H$11,data!$F:$O,'by disease group'!$AB$3,FALSE)),"-",VLOOKUP($F35&$A$7&$AB$2&H$11,data!$F:$O,'by disease group'!$AB$3,FALSE)) -> 5137.186741 | I35: =IF(ISNA(VLOOKUP($F35&$A$7&$AB$2&I$11,data!$F:$O,'by disease group'!$AB$3,FALSE)),"-",VLOOKUP($F35&$A$7&$AB$2&I$11,data!$F:$O,'by disease group'!$AB$3,FALSE)) -> 8735.482183 | J35: =IF(ISNA(VLOOKUP($F35&$A$7&$AB$2&J$11,data!$F:$O,'by disease group'!$AB$3,FALSE)),"-",VLOOKUP($F35&$A$7&$AB$2&J$11,data!$F:$O,'by disease group'!$AB$3,FALSE)) -> 15458.99224 | K35: =IF(ISNA(VLOOKUP($F35&$A$7&$AB$2&K$11,data!$F:$O,'by disease group'!$AB$3,FALSE)),"-",VLOOKUP($F35&$A$7&$AB$2&K$11,data!$F:$O,'by disease group'!$AB$3,FALSE)) -> 25967.57538 | L35: =IF(ISNA(VLOOKUP($F35&$A$7&$AB$2&L$11,data!$F:$O,'by disease group'!$AB$3,FALSE)),"-",VLOOKUP($F35&$A$7&$AB$2&L$11,data!$F:$O,'by disease group'!$AB$3,FALSE)) -> 54852.2682 | N35: 77.4 | O35: [76.6 - 78.1] | P35: 82.5 | Q35: [81.8 - 83.1] | T35: =IF(ISNA(VLOOKUP($F35&$A$7&$AB$2&G$11,data!$F:$O,6,FALSE)),"-",VLOOKUP($F35&$A$7&$AB$2&G$11,data!$F:$O,6,FALSE)) -> 1098.333333 | U35: =IF(ISNA(VLOOKUP($F35&$A$7&$AB$2&H$11,data!$F:$O,6,FALSE)),"-",VLOOKUP($F35&$A$7&$AB$2&H$11,data!$F:$O,6,FALSE)) -> 3.666666667 | V35: =IF(ISNA(VLOOKUP($F35&$A$7&$AB$2&I$11,data!$F:$O,6,FALSE)),"-",VLOOKUP($F35&$A$7&$AB$2&I$11,data!$F:$O,6,FALSE)) -> 3.333333333 | W35: =IF(ISNA(VLOOKUP($F35&$A$7&$AB$2&J$11,data!$F:$O,6,FALSE)),"-",VLOOKUP($F35&$A$7&$AB$2&J$11,data!$F:$O,6,FALSE)) -> 19.33333333 | X35: =IF(ISNA(VLOOKUP($F35&$A$7&$AB$2&K$11,data!$F:$O,6,FALSE)),"-",VLOOKUP($F35&$A$7&$AB$2&K$11,data!$F:$O,6,FALSE)) -> 137.3333333 | Y35: =IF(ISNA(VLOOKUP($F35&$A$7&$AB$2&L$11,data!$F:$O,6,FALSE)),"-",VLOOKUP($F35&$A$7&$AB$2&L$11,data!$F:$O,6,FALSE)) -> 934.6666667
D36: Angus | F36: LA28 | G36: =IF(ISNA(VLOOKUP($F36&$A$7&$AB$2&G$11,data!$F:$O,'by disease group'!$AB$3,FALSE)),"-",VLOOKUP($F36&$A$7&$AB$2&G$11,data!$F:$O,'by disease group'!$AB$3,FALSE)) -> 23212.05063 | H36: =IF(ISNA(VLOOKUP($F36&$A$7&$AB$2&H$11,data!$F:$O,'by disease group'!$AB$3,FALSE)),"-",VLOOKUP($F36&$A$7&$AB$2&H$11,data!$F:$O,'by disease group'!$AB$3,FALSE)) -> 4858.225085 | I36: =IF(ISNA(VLOOKUP($F36&$A$7&$AB$2&I$11,data!$F:$O,'by disease group'!$AB$3,FALSE)),"-",VLOOKUP($F36&$A$7&$AB$2&I$11,data!$F:$O,'by disease group'!$AB$3,FALSE)) -> 8777.565924 | J36: =IF(ISNA(VLOOKUP($F36&$A$7&$AB$2&J$11,data!$F:$O,'by disease group'!$AB$3,FALSE)),"-",VLOOKUP($F36&$A$7&$AB$2&J$11,data!$F:$O,'by disease group'!$AB$3,FALSE)) -> 15753.81156 | K36: =IF(ISNA(VLOOKUP($F36&$A$7&$AB$2&K$11,data!$F:$O,'by disease group'!$AB$3,FALSE)),"-",VLOOKUP($F36&$A$7&$AB$2&K$11,data!$F:$O,'by disease group'!$AB$3,FALSE)) -> 25308.65017 | L36: =IF(ISNA(VLOOKUP($F36&$A$7&$AB$2&L$11,data!$F:$O,'by disease group'!$AB$3,FALSE)),"-",VLOOKUP($F36&$A$7&$AB$2&L$11,data!$F:$O,'by disease group'!$AB$3,FALSE)) -> 54070.57529 | N36: 78.5 | O36: [77.9 - 79.1] | P36: 81.8 | Q36: [81.2 - 82.4] | T36: =IF(ISNA(VLOOKUP($F36&$A$7&$AB$2&G$11,data!$F:$O,6,FALSE)),"-",VLOOKUP($F36&$A$7&$AB$2&G$11,data!$F:$O,6,FALSE)) -> 1365 | U36: =IF(ISNA(VLOOKUP($F36&$A$7&$AB$2&H$11,data!$F:$O,6,FALSE)),"-",VLOOKUP($F36&$A$7&$AB$2&H$11,data!$F:$O,6,FALSE)) -> 4.666666667 | V36: =IF(ISNA(VLOOKUP($F36&$A$7&$AB$2&I$11,data!$F:$O,6,FALSE)),"-",VLOOKUP($F36&$A$7&$AB$2&I$11,data!$F:$O,6,FALSE)) -> 4 | W36: =IF(ISNA(VLOOKUP($F36&$A$7&$AB$2&J$11,data!$F:$O,6,FALSE)),"-",VLOOKUP($F36&$A$7&$AB$2&J$11,data!$F:$O,6,FALSE)) -> 30 | X36: =IF(ISNA(VLOOKUP($F36&$A$7&$AB$2&K$11,data!$F:$O,6,FALSE)),"-",VLOOKUP($F36&$A$7&$AB$2&K$11,data!$F:$O,6,FALSE)) -> 166.3333333 | Y36: =IF(ISNA(VLOOKUP($F36&$A$7&$AB$2&L$11,data!$F:$O,6,FALSE)),"-",VLOOKUP($F36&$A$7&$AB$2&L$11,data!$F:$O,6,FALSE)) -> 1160
D37: Shetland Islands | F37: LA17 | G37: =IF(ISNA(VLOOKUP($F37&$A$7&$AB$2&G$11,data!$F:$O,'by disease group'!$AB$3,FALSE)),"-",VLOOKUP($F37&$A$7&$AB$2&G$11,data!$F:$O,'by disease group'!$AB$3,FALSE)) -> 22916.05125 | H37: =IF(ISNA(VLOOKUP($F37&$A$7&$AB$2&H$11,data!$F:$O,'by disease group'!$AB$3,FALSE)),"-",VLOOKUP($F37&$A$7&$AB$2&H$11,data!$F:$O,'by disease group'!$AB$3,FALSE)) -> 4115.586899 | I37: =IF(ISNA(VLOOKUP($F37&$A$7&$AB$2&I$11,data!$F:$O,'by disease group'!$AB$3,FALSE)),"-",VLOOKUP($F37&$A$7&$AB$2&I$11,data!$F:$O,'by disease group'!$AB$3,FALSE)) -> 8598.700647 | J37: =IF(ISNA(VLOOKUP($F37&$A$7&$AB$2&J$11,data!$F:$O,'by disease group'!$AB$3,FALSE)),"-",VLOOKUP($F37&$A$7&$AB$2&J$11,data!$F:$O,'by disease group'!$AB$3,FALSE)) -> 14728.04784 | K37: =IF(ISNA(VLOOKUP($F37&$A$7&$AB$2&K$11,data!$F:$O,'by disease group'!$AB$3,FALSE)),"-",VLOOKUP($F37&$A$7&$AB$2&K$11,data!$F:$O,'by disease group'!$AB$3,FALSE)) -> 24794.19012 | L37: =IF(ISNA(VLOOKUP($F37&$A$7&$AB$2&L$11,data!$F:$O,'by disease group'!$AB$3,FALSE)),"-",VLOOKUP($F37&$A$7&$AB$2&L$11,data!$F:$O,'by disease group'!$AB$3,FALSE)) -> 55360.58312 | N37: 77.6 | O37: [76.3 - 78.9] | P37: 82 | Q37: [80.8 - 83.3] | T37: =IF(ISNA(VLOOKUP($F37&$A$7&$AB$2&G$11,data!$F:$O,6,FALSE)),"-",VLOOKUP($F37&$A$7&$AB$2&G$11,data!$F:$O,6,FALSE)) -> 237 | U37: =IF(ISNA(VLOOKUP($F37&$A$7&$AB$2&H$11,data!$F:$O,6,FALSE)),"-",VLOOKUP($F37&$A$7&$AB$2&H$11,data!$F:$O,6,FALSE)) -> 0.6666666667 | V37: =IF(ISNA(VLOOKUP($F37&$A$7&$AB$2&I$11,data!$F:$O,6,FALSE)),"-",VLOOKUP($F37&$A$7&$AB$2&I$11,data!$F:$O,6,FALSE)) -> 1 | W37: =IF(ISNA(VLOOKUP($F37&$A$7&$AB$2&J$11,data!$F:$O,6,FALSE)),"-",VLOOKUP($F37&$A$7&$AB$2&J$11,data!$F:$O,6,FALSE)) -> 6.666666667 | X37: =IF(ISNA(VLOOKUP($F37&$A$7&$AB$2&K$11,data!$F:$O,6,FALSE)),"-",VLOOKUP($F37&$A$7&$AB$2&K$11,data!$F:$O,6,FALSE)) -> 33 | Y37: =IF(ISNA(VLOOKUP($F37&$A$7&$AB$2&L$11,data!$F:$O,6,FALSE)),"-",VLOOKUP($F37&$A$7&$AB$2&L$11,data!$F:$O,6,FALSE)) -> 195.6666667
D38: Highland | F38: LA9 | G38: =IF(ISNA(VLOOKUP($F38&$A$7&$AB$2&G$11,data!$F:$O,'by disease group'!$AB$3,FALSE)),"-",VLOOKUP($F38&$A$7&$AB$2&G$11,data!$F:$O,'by disease group'!$AB$3,FALSE)) -> 22662.18518 | H38: =IF(ISNA(VLOOKUP($F38&$A$7&$AB$2&H$11,data!$F:$O,'by disease group'!$AB$3,FALSE)),"-",VLOOKUP($F38&$A$7&$AB$2&H$11,data!$F:$O,'by disease group'!$AB$3,FALSE)) -> 4239.664581 | I38: =IF(ISNA(VLOOKUP($F38&$A$7&$AB$2&I$11,data!$F:$O,'by disease group'!$AB$3,FALSE)),"-",VLOOKUP($F38&$A$7&$AB$2&I$11,data!$F:$O,'by disease group'!$AB$3,FALSE)) -> 9977.002908 | J38: =IF(ISNA(VLOOKUP($F38&$A$7&$AB$2&J$11,data!$F:$O,'by disease group'!$AB$3,FALSE)),"-",VLOOKUP($F38&$A$7&$AB$2&J$11,data!$F:$O,'by disease group'!$AB$3,FALSE)) -> 15648.20124 | K38: =IF(ISNA(VLOOKUP($F38&$A$7&$AB$2&K$11,data!$F:$O,'by disease group'!$AB$3,FALSE)),"-",VLOOKUP($F38&$A$7&$AB$2&K$11,data!$F:$O,'by disease group'!$AB$3,FALSE)) -> 24680.27797 | L38: =IF(ISNA(VLOOKUP($F38&$A$7&$AB$2&L$11,data!$F:$O,'by disease group'!$AB$3,FALSE)),"-",VLOOKUP($F38&$A$7&$AB$2&L$11,data!$F:$O,'by disease group'!$AB$3,FALSE)) -> 52048.39244 | N38: 77.9 | O38: [77.5 - 78.4] | P38: 82.9 | Q38: [82.5 - 83.3] | T38: =IF(ISNA(VLOOKUP($F38&$A$7&$AB$2&G$11,data!$F:$O,6,FALSE)),"-",VLOOKUP($F38&$A$7&$AB$2&G$11,data!$F:$O,6,FALSE)) -> 2391.666667 | U38: =IF(ISNA(VLOOKUP($F38&$A$7&$AB$2&H$11,data!$F:$O,6,FALSE)),"-",VLOOKUP($F38&$A$7&$AB$2&H$11,data!$F:$O,6,FALSE)) -> 6.666666667 | V38: =IF(ISNA(VLOOKUP($F38&$A$7&$AB$2&I$11,data!$F:$O,6,FALSE)),"-",VLOOKUP($F38&$A$7&$AB$2&I$11,data!$F:$O,6,FALSE)) -> 12.66666667 | W38: =IF(ISNA(VLOOKUP($F38&$A$7&$AB$2&J$11,data!$F:$O,6,FALSE)),"-",VLOOKUP($F38&$A$7&$AB$2&J$11,data!$F:$O,6,FALSE)) -> 59.33333333 | X38: =IF(ISNA(VLOOKUP($F38&$A$7&$AB$2&K$11,data!$F:$O,6,FALSE)),"-",VLOOKUP($F38&$A$7&$AB$2&K$11,data!$F:$O,6,FALSE)) -> 327 | Y38: =IF(ISNA(VLOOKUP($F38&$A$7&$AB$2&L$11,data!$F:$O,6,FALSE)),"-",VLOOKUP($F38&$A$7&$AB$2&L$11,data!$F:$O,6,FALSE)) -> 1986
D39: City of Edinburgh | F39: LA24 | G39: =IF(ISNA(VLOOKUP($F39&$A$7&$AB$2&G$11,data!$F:$O,'by disease group'!$AB$3,FALSE)),"-",VLOOKUP($F39&$A$7&$AB$2&G$11,data!$F:$O,'by disease group'!$AB$3,FALSE)) -> 22649.11266 | H39: =IF(ISNA(VLOOKUP($F39&$A$7&$AB$2&H$11,data!$F:$O,'by disease group'!$AB$3,FALSE)),"-",VLOOKUP($F39&$A$7&$AB$2&H$11,data!$F:$O,'by disease group'!$AB$3,FALSE)) -> 5031.58916 | I39: =IF(ISNA(VLOOKUP($F39&$A$7&$AB$2&I$11,data!$F:$O,'by disease group'!$AB$3,FALSE)),"-",VLOOKUP($F39&$A$7&$AB$2&I$11,data!$F:$O,'by disease group'!$AB$3,FALSE)) -> 7949.07368 | J39: =IF(ISNA(VLOOKUP($F39&$A$7&$AB$2&J$11,data!$F:$O,'by disease group'!$AB$3,FALSE)),"-",VLOOKUP($F39&$A$7&$AB$2&J$11,data!$F:$O,'by disease group'!$AB$3,FALSE)) -> 14414.52287 | K39: =IF(ISNA(VLOOKUP($F39&$A$7&$AB$2&K$11,data!$F:$O,'by disease group'!$AB$3,FALSE)),"-",VLOOKUP($F39&$A$7&$AB$2&K$11,data!$F:$O,'by disease group'!$AB$3,FALSE)) -> 25460.34045 | L39: =IF(ISNA(VLOOKUP($F39&$A$7&$AB$2&L$11,data!$F:$O,'by disease group'!$AB$3,FALSE)),"-",VLOOKUP($F39&$A$7&$AB$2&L$11,data!$F:$O,'by disease group'!$AB$3,FALSE)) -> 53143.98023 | N39: 78 | O39: [77.7 - 78.3] | P39: 82.2 | Q39: [81.9 - 82.5] | T39: =IF(ISNA(VLOOKUP($F39&$A$7&$AB$2&G$11,data!$F:$O,6,FALSE)),"-",VLOOKUP($F39&$A$7&$AB$2&G$11,data!$F:$O,6,FALSE)) -> 4228 | U39: =IF(ISNA(VLOOKUP($F39&$A$7&$AB$2&H$11,data!$F:$O,6,FALSE)),"-",VLOOKUP($F39&$A$7&$AB$2&H$11,data!$F:$O,6,FALSE)) -> 23.66666667 | V39: =IF(ISNA(VLOOKUP($F39&$A$7&$AB$2&I$11,data!$F:$O,6,FALSE)),"-",VLOOKUP($F39&$A$7&$AB$2&I$11,data!$F:$O,6,FALSE)) -> 15 | W39: =IF(ISNA(VLOOKUP($F39&$A$7&$AB$2&J$11,data!$F:$O,6,FALSE)),"-",VLOOKUP($F39&$A$7&$AB$2&J$11,data!$F:$O,6,FALSE)) -> 144.3333333 | X39: =IF(ISNA(VLOOKUP($F39&$A$7&$AB$2&K$11,data!$F:$O,6,FALSE)),"-",VLOOKUP($F39&$A$7&$AB$2&K$11,data!$F:$O,6,FALSE)) -> 587 | Y39: =IF(ISNA(VLOOKUP($F39&$A$7&$AB$2&L$11,data!$F:$O,6,FALSE)),"-",VLOOKUP($F39&$A$7&$AB$2&L$11,data!$F:$O,6,FALSE)) -> 3458
D40: East Lothian | F40: LA4 | G40: =IF(ISNA(VLOOKUP($F40&$A$7&$AB$2&G$11,data!$F:$O,'by disease group'!$AB$3,FALSE)),"-",VLOOKUP($F40&$A$7&$AB$2&G$11,data!$F:$O,'by disease group'!$AB$3,FALSE)) -> 22408.55932 | H40: =IF(ISNA(VLOOKUP($F40&$A$7&$AB$2&H$11,data!$F:$O,'by disease group'!$AB$3,FALSE)),"-",VLOOKUP($F40&$A$7&$AB$2&H$11,data!$F:$O,'by disease group'!$AB$3,FALSE)) -> 4391.928796 | I40: =IF(ISNA(VLOOKUP($F40&$A$7&$AB$2&I$11,data!$F:$O,'by disease group'!$AB$3,FALSE)),"-",VLOOKUP($F40&$A$7&$AB$2&I$11,data!$F:$O,'by disease group'!$AB$3,FALSE)) -> 9009.91703 | J40: =IF(ISNA(VLOOKUP($F40&$A$7&$AB$2&J$11,data!$F:$O,'by disease group'!$AB$3,FALSE)),"-",VLOOKUP($F40&$A$7&$AB$2&J$11,data!$F:$O,'by disease group'!$AB$3,FALSE)) -> 15668.2548 | K40: =IF(ISNA(VLOOKUP($F40&$A$7&$AB$2&K$11,data!$F:$O,'by disease group'!$AB$3,FALSE)),"-",VLOOKUP($F40&$A$7&$AB$2&K$11,data!$F:$O,'by disease group'!$AB$3,FALSE)) -> 23397.32005 | L40: =IF(ISNA(VLOOKUP($F40&$A$7&$AB$2&L$11,data!$F:$O,'by disease group'!$AB$3,FALSE)),"-",VLOOKUP($F40&$A$7&$AB$2&L$11,data!$F:$O,'by disease group'!$AB$3,FALSE)) -> 52909.39957 | N40: 78.3 | O40: [77.5 - 79.0] | P40: 82.7 | Q40: [82.1 - 83.3] | T40: =IF(ISNA(VLOOKUP($F40&$A$7&$AB$2&G$11,data!$F:$O,6,FALSE)),"-",VLOOKUP($F40&$A$7&$AB$2&G$11,data!$F:$O,6,FALSE)) -> 1028.666667 | U40: =IF(ISNA(VLOOKUP($F40&$A$7&$AB$2&H$11,data!$F:$O,6,FALSE)),"-",VLOOKUP($F40&$A$7&$AB$2&H$11,data!$F:$O,6,FALSE)) -> 3.666666667 | V40: =IF(ISNA(VLOOKUP($F40&$A$7&$AB$2&I$11,data!$F:$O,6,FALSE)),"-",VLOOKUP($F40&$A$7&$AB$2&I$11,data!$F:$O,6,FALSE)) -> 4.333333333 | W40: =IF(ISNA(VLOOKUP($F40&$A$7&$AB$2&J$11,data!$F:$O,6,FALSE)),"-",VLOOKUP($F40&$A$7&$AB$2&J$11,data!$F:$O,6,FALSE)) -> 27.66666667 | X40: =IF(ISNA(VLOOKUP($F40&$A$7&$AB$2&K$11,data!$F:$O,6,FALSE)),"-",VLOOKUP($F40&$A$7&$AB$2&K$11,data!$F:$O,6,FALSE)) -> 124.3333333 | Y40: =IF(ISNA(VLOOKUP($F40&$A$7&$AB$2&L$11,data!$F:$O,6,FALSE)),"-",VLOOKUP($F40&$A$7&$AB$2&L$11,data!$F:$O,6,FALSE)) -> 868.6666667
D41: Stirling | F41: LA20 | G41: =IF(ISNA(VLOOKUP($F41&$A$7&$AB$2&G$11,data!$F:$O,'by disease group'!$AB$3,FALSE)),"-",VLOOKUP($F41&$A$7&$AB$2&G$11,data!$F:$O,'by disease group'!$AB$3,FALSE)) -> 22394.50441 | H41: =IF(ISNA(VLOOKUP($F41&$A$7&$AB$2&H$11,data!$F:$O,'by disease group'!$AB$3,FALSE)),"-",VLOOKUP($F41&$A$7&$AB$2&H$11,data!$F:$O,'by disease group'!$AB$3,FALSE)) -> 3119.514644 | I41: =IF(ISNA(VLOOKUP($F41&$A$7&$AB$2&I$11,data!$F:$O,'by disease group'!$AB$3,FALSE)),"-",VLOOKUP($F41&$A$7&$AB$2&I$11,data!$F:$O,'by disease group'!$AB$3,FALSE)) -> 8888.078625 | J41: =IF(ISNA(VLOOKUP($F41&$A$7&$AB$2&J$11,data!$F:$O,'by disease group'!$AB$3,FALSE)),"-",VLOOKUP($F41&$A$7&$AB$2&J$11,data!$F:$O,'by disease group'!$AB$3,FALSE)) -> 14171.36152 | K41: =IF(ISNA(VLOOKUP($F41&$A$7&$AB$2&K$11,data!$F:$O,'by disease group'!$AB$3,FALSE)),"-",VLOOKUP($F41&$A$7&$AB$2&K$11,data!$F:$O,'by disease group'!$AB$3,FALSE)) -> 24495.81877 | L41: =IF(ISNA(VLOOKUP($F41&$A$7&$AB$2&L$11,data!$F:$O,'by disease group'!$AB$3,FALSE)),"-",VLOOKUP($F41&$A$7&$AB$2&L$11,data!$F:$O,'by disease group'!$AB$3,FALSE)) -> 54494.61664 | N41: 78.7 | O41: [78.0 - 79.3] | P41: 82.3 | Q41: [81.7 - 82.8] | T41: =IF(ISNA(VLOOKUP($F41&$A$7&$AB$2&G$11,data!$F:$O,6,FALSE)),"-",VLOOKUP($F41&$A$7&$AB$2&G$11,data!$F:$O,6,FALSE)) -> 903.6666667 | U41: =IF(ISNA(VLOOKUP($F41&$A$7&$AB$2&H$11,data!$F:$O,6,FALSE)),"-",VLOOKUP($F41&$A$7&$AB$2&H$11,data!$F:$O,6,FALSE)) -> 0.6666666667 | V41: =IF(ISNA(VLOOKUP($F41&$A$7&$AB$2&I$11,data!$F:$O,6,FALSE)),"-",VLOOKUP($F41&$A$7&$AB$2&I$11,data!$F:$O,6,FALSE)) -> 5.333333333 | W41: =IF(ISNA(VLOOKUP($F41&$A$7&$AB$2&J$11,data!$F:$O,6,FALSE)),"-",VLOOKUP($F41&$A$7&$AB$2&J$11,data!$F:$O,6,FALSE)) -> 18.66666667 | X41: =IF(ISNA(VLOOKUP($F41&$A$7&$AB$2&K$11,data!$F:$O,6,FALSE)),"-",VLOOKUP($F41&$A$7&$AB$2&K$11,data!$F:$O,6,FALSE)) -> 119.3333333 | Y41: =IF(ISNA(VLOOKUP($F41&$A$7&$AB$2&L$11,data!$F:$O,6,FALSE)),"-",VLOOKUP($F41&$A$7&$AB$2&L$11,data!$F:$O,6,FALSE)) -> 759.6666667
D42: Scottish Borders | F42: LA16 | G42: =IF(ISNA(VLOOKUP($F42&$A$7&$AB$2&G$11,data!$F:$O,'by disease group'!$AB$3,FALSE)),"-",VLOOKUP($F42&$A$7&$AB$2&G$11,data!$F:$O,'by disease group'!$AB$3,FALSE)) -> 22269.10218 | H42: =IF(ISNA(VLOOKUP($F42&$A$7&$AB$2&H$11,data!$F:$O,'by disease group'!$AB$3,FALSE)),"-",VLOOKUP($F42&$A$7&$AB$2&H$11,data!$F:$O,'by disease group'!$AB$3,FALSE)) -> 4253.102068 | I42: =IF(ISNA(VLOOKUP($F42&$A$7&$AB$2&I$11,data!$F:$O,'by disease group'!$AB$3,FALSE)),"-",VLOOKUP($F42&$A$7&$AB$2&I$11,data!$F:$O,'by disease group'!$AB$3,FALSE)) -> 9272.981161 | J42: =IF(ISNA(VLOOKUP($F42&$A$7&$AB$2&J$11,data!$F:$O,'by disease group'!$AB$3,FALSE)),"-",VLOOKUP($F42&$A$7&$AB$2&J$11,data!$F:$O,'by disease group'!$AB$3,FALSE)) -> 15318.50714 | K42: =IF(ISNA(VLOOKUP($F42&$A$7&$AB$2&K$11,data!$F:$O,'by disease group'!$AB$3,FALSE)),"-",VLOOKUP($F42&$A$7&$AB$2&K$11,data!$F:$O,'by disease group'!$AB$3,FALSE)) -> 23446.22721 | L42: =IF(ISNA(VLOOKUP($F42&$A$7&$AB$2&L$11,data!$F:$O,'by disease group'!$AB$3,FALSE)),"-",VLOOKUP($F42&$A$7&$AB$2&L$11,data!$F:$O,'by disease group'!$AB$3,FALSE)) -> 52561.83802 | N42: 78.6 | O42: [78.0 - 79.3] | P42: 82.6 | Q42: [82.0 - 83.1] | T42: =IF(ISNA(VLOOKUP($F42&$A$7&$AB$2&G$11,data!$F:$O,6,FALSE)),"-",VLOOKUP($F42&$A$7&$AB$2&G$11,data!$F:$O,6,FALSE)) -> 1301.666667 | U42: =IF(ISNA(VLOOKUP($F42&$A$7&$AB$2&H$11,data!$F:$O,6,FALSE)),"-",VLOOKUP($F42&$A$7&$AB$2&H$11,data!$F:$O,6,FALSE)) -> 3.333333333 | V42: =IF(ISNA(VLOOKUP($F42&$A$7&$AB$2&I$11,data!$F:$O,6,FALSE)),"-",VLOOKUP($F42&$A$7&$AB$2&I$11,data!$F:$O,6,FALSE)) -> 4.666666667 | W42: =IF(ISNA(VLOOKUP($F42&$A$7&$AB$2&J$11,data!$F:$O,6,FALSE)),"-",VLOOKUP($F42&$A$7&$AB$2&J$11,data!$F:$O,6,FALSE)) -> 24.33333333 | X42: =IF(ISNA(VLOOKUP($F42&$A$7&$AB$2&K$11,data!$F:$O,6,FALSE)),"-",VLOOKUP($F42&$A$7&$AB$2&K$11,data!$F:$O,6,FALSE)) -> 148 | Y42: =IF(ISNA(VLOOKUP($F42&$A$7&$AB$2&L$11,data!$F:$O,6,FALSE)),"-",VLOOKUP($F42&$A$7&$AB$2&L$11,data!$F:$O,6,FALSE)) -> 1121.333333
D43: Moray | F43: LA12 | G43: =IF(ISNA(VLOOKUP($F43&$A$7&$AB$2&G$11,data!$F:$O,'by disease group'!$AB$3,FALSE)),"-",VLOOKUP($F43&$A$7&$AB$2&G$11,data!$F:$O,'by disease group'!$AB$3,FALSE)) -> 22140.92657 | H43: =IF(ISNA(VLOOKUP($F43&$A$7&$AB$2&H$11,data!$F:$O,'by disease group'!$AB$3,FALSE)),"-",VLOOKUP($F43&$A$7&$AB$2&H$11,data!$F:$O,'by disease group'!$AB$3,FALSE)) -> 4499.601157 | I43: =IF(ISNA(VLOOKUP($F43&$A$7&$AB$2&I$11,data!$F:$O,'by disease group'!$AB$3,FALSE)),"-",VLOOKUP($F43&$A$7&$AB$2&I$11,data!$F:$O,'by disease group'!$AB$3,FALSE)) -> 9505.491787 | J43: =IF(ISNA(VLOOKUP($F43&$A$7&$AB$2&J$11,data!$F:$O,'by disease group'!$AB$3,FALSE)),"-",VLOOKUP($F43&$A$7&$AB$2&J$11,data!$F:$O,'by disease group'!$AB$3,FALSE)) -> 14474.16267 | K43: =IF(ISNA(VLOOKUP($F43&$A$7&$AB$2&K$11,data!$F:$O,'by disease group'!$AB$3,FALSE)),"-",VLOOKUP($F43&$A$7&$AB$2&K$11,data!$F:$O,'by disease group'!$AB$3,FALSE)) -> 22491.76816 | L43: =IF(ISNA(VLOOKUP($F43&$A$7&$AB$2&L$11,data!$F:$O,'by disease group'!$AB$3,FALSE)),"-",VLOOKUP($F43&$A$7&$AB$2&L$11,data!$F:$O,'by disease group'!$AB$3,FALSE)) -> 54009.67773 | N43: 78.7 | O43: [78.0 - 79.4] | P43: 82.1 | Q43: [81.5 - 82.8] | T43: =IF(ISNA(VLOOKUP($F43&$A$7&$AB$2&G$11,data!$F:$O,6,FALSE)),"-",VLOOKUP($F43&$A$7&$AB$2&G$11,data!$F:$O,6,FALSE)) -> 982.6666667 | U43: =IF(ISNA(VLOOKUP($F43&$A$7&$AB$2&H$11,data!$F:$O,6,FALSE)),"-",VLOOKUP($F43&$A$7&$AB$2&H$11,data!$F:$O,6,FALSE)) -> 3.333333333 | V43: =IF(ISNA(VLOOKUP($F43&$A$7&$AB$2&I$11,data!$F:$O,6,FALSE)),"-",VLOOKUP($F43&$A$7&$AB$2&I$11,data!$F:$O,6,FALSE)) -> 5.666666667 | W43: =IF(ISNA(VLOOKUP($F43&$A$7&$AB$2&J$11,data!$F:$O,6,FALSE)),"-",VLOOKUP($F43&$A$7&$AB$2&J$11,data!$F:$O,6,FALSE)) -> 22.33333333 | X43: =IF(ISNA(VLOOKUP($F43&$A$7&$AB$2&K$11,data!$F:$O,6,FALSE)),"-",VLOOKUP($F43&$A$7&$AB$2&K$11,data!$F:$O,6,FALSE)) -> 109 | Y43: =IF(ISNA(VLOOKUP($F43&$A$7&$AB$2&L$11,data!$F:$O,6,FALSE)),"-",VLOOKUP($F43&$A$7&$AB$2&L$11,data!$F:$O,6,FALSE)) -> 842.3333333
D44: Perth and Kinross | F44: LA15 | G44: =IF(ISNA(VLOOKUP($F44&$A$7&$AB$2&G$11,data!$F:$O,'by disease group'!$AB$3,FALSE)),"-",VLOOKUP($F44&$A$7&$AB$2&G$11,data!$F:$O,'by disease group'!$AB$3,FALSE)) -> 21456.05829 | H44: =IF(ISNA(VLOOKUP($F44&$A$7&$AB$2&H$11,data!$F:$O,'by disease group'!$AB$3,FALSE)),"-",VLOOKUP($F44&$A$7&$AB$2&H$11,data!$F:$O,'by disease group'!$AB$3,FALSE)) -> 5418.803775 | I44: =IF(ISNA(VLOOKUP($F44&$A$7&$AB$2&I$11,data!$F:$O,'by disease group'!$AB$3,FALSE)),"-",VLOOKUP($F44&$A$7&$AB$2&I$11,data!$F:$O,'by disease group'!$AB$3,FALSE)) -> 9165.569293 | J44: =IF(ISNA(VLOOKUP($F44&$A$7&$AB$2&J$11,data!$F:$O,'by disease group'!$AB$3,FALSE)),"-",VLOOKUP($F44&$A$7&$AB$2&J$11,data!$F:$O,'by disease group'!$AB$3,FALSE)) -> 14483.74923 | K44: =IF(ISNA(VLOOKUP($F44&$A$7&$AB$2&K$11,data!$F:$O,'by disease group'!$AB$3,FALSE)),"-",VLOOKUP($F44&$A$7&$AB$2&K$11,data!$F:$O,'by disease group'!$AB$3,FALSE)) -> 22673.06795 | L44: =IF(ISNA(VLOOKUP($F44&$A$7&$AB$2&L$11,data!$F:$O,'by disease group'!$AB$3,FALSE)),"-",VLOOKUP($F44&$A$7&$AB$2&L$11,data!$F:$O,'by disease group'!$AB$3,FALSE)) -> 49684.37262 | N44: 79.9 | O44: [79.3 - 80.5] | P44: 82.6 | Q44: [82.0 - 83.1] | T44: =IF(ISNA(VLOOKUP($F44&$A$7&$AB$2&G$11,data!$F:$O,6,FALSE)),"-",VLOOKUP($F44&$A$7&$AB$2&G$11,data!$F:$O,6,FALSE)) -> 1579.666667 | U44: =IF(ISNA(VLOOKUP($F44&$A$7&$AB$2&H$11,data!$F:$O,6,FALSE)),"-",VLOOKUP($F44&$A$7&$AB$2&H$11,data!$F:$O,6,FALSE)) -> 7.666666667 | V44: =IF(ISNA(VLOOKUP($F44&$A$7&$AB$2&I$11,data!$F:$O,6,FALSE)),"-",VLOOKUP($F44&$A$7&$AB$2&I$11,data!$F:$O,6,FALSE)) -> 7 | W44: =IF(ISNA(VLOOKUP($F44&$A$7&$AB$2&J$11,data!$F:$O,6,FALSE)),"-",VLOOKUP($F44&$A$7&$AB$2&J$11,data!$F:$O,6,FALSE)) -> 32.33333333 | X44: =IF(ISNA(VLOOKUP($F44&$A$7&$AB$2&K$11,data!$F:$O,6,FALSE)),"-",VLOOKUP($F44&$A$7&$AB$2&K$11,data!$F:$O,6,FALSE)) -> 176 | Y44: =IF(ISNA(VLOOKUP($F44&$A$7&$AB$2&L$11,data!$F:$O,6,FALSE)),"-",VLOOKUP($F44&$A$7&$AB$2&L$11,data!$F:$O,6,FALSE)) -> 1356.666667
D45: Aberdeenshire | F45: LA22 | G45: =IF(ISNA(VLOOKUP($F45&$A$7&$AB$2&G$11,data!$F:$O,'by disease group'!$AB$3,FALSE)),"-",VLOOKUP($F45&$A$7&$AB$2&G$11,data!$F:$O,'by disease group'!$AB$3,FALSE)) -> 21263.78208 | H45: =IF(ISNA(VLOOKUP($F45&$A$7&$AB$2&H$11,data!$F:$O,'by disease group'!$AB$3,FALSE)),"-",VLOOKUP($F45&$A$7&$AB$2&H$11,data!$F:$O,'by disease group'!$AB$3,FALSE)) -> 4475.69799 | I45: =IF(ISNA(VLOOKUP($F45&$A$7&$AB$2&I$11,data!$F:$O,'by disease group'!$AB$3,FALSE)),"-",VLOOKUP($F45&$A$7&$AB$2&I$11,data!$F:$O,'by disease group'!$AB$3,FALSE)) -> 8337.118404 | J45: =IF(ISNA(VLOOKUP($F45&$A$7&$AB$2&J$11,data!$F:$O,'by disease group'!$AB$3,FALSE)),"-",VLOOKUP($F45&$A$7&$AB$2&J$11,data!$F:$O,'by disease group'!$AB$3,FALSE)) -> 13577.12124 | K45: =IF(ISNA(VLOOKUP($F45&$A$7&$AB$2&K$11,data!$F:$O,'by disease group'!$AB$3,FALSE)),"-",VLOOKUP($F45&$A$7&$AB$2&K$11,data!$F:$O,'by disease group'!$AB$3,FALSE)) -> 21516.37546 | L45: =IF(ISNA(VLOOKUP($F45&$A$7&$AB$2&L$11,data!$F:$O,'by disease group'!$AB$3,FALSE)),"-",VLOOKUP($F45&$A$7&$AB$2&L$11,data!$F:$O,'by disease group'!$AB$3,FALSE)) -> 52764.74444 | N45: 79.2 | O45: [78.8 - 79.7] | P45: 82.4 | Q45: [82.1 - 82.8] | T45: =IF(ISNA(VLOOKUP($F45&$A$7&$AB$2&G$11,data!$F:$O,6,FALSE)),"-",VLOOKUP($F45&$A$7&$AB$2&G$11,data!$F:$O,6,FALSE)) -> 2360 | U45: =IF(ISNA(VLOOKUP($F45&$A$7&$AB$2&H$11,data!$F:$O,6,FALSE)),"-",VLOOKUP($F45&$A$7&$AB$2&H$11,data!$F:$O,6,FALSE)) -> 10.33333333 | V45: =IF(ISNA(VLOOKUP($F45&$A$7&$AB$2&I$11,data!$F:$O,6,FALSE)),"-",VLOOKUP($F45&$A$7&$AB$2&I$11,data!$F:$O,6,FALSE)) -> 9.666666667 | W45: =IF(ISNA(VLOOKUP($F45&$A$7&$AB$2&J$11,data!$F:$O,6,FALSE)),"-",VLOOKUP($F45&$A$7&$AB$2&J$11,data!$F:$O,6,FALSE)) -> 65 | X45: =IF(ISNA(VLOOKUP($F45&$A$7&$AB$2&K$11,data!$F:$O,6,FALSE)),"-",VLOOKUP($F45&$A$7&$AB$2&K$11,data!$F:$O,6,FALSE)) -> 292.3333333 | Y45: =IF(ISNA(VLOOKUP($F45&$A$7&$AB$2&L$11,data!$F:$O,6,FALSE)),"-",VLOOKUP($F45&$A$7&$AB$2&L$11,data!$F:$O,6,FALSE)) -> 1982.666667
D46: Orkney Islands | F46: LA14 | G46: =IF(ISNA(VLOOKUP($F46&$A$7&$AB$2&G$11,data!$F:$O,'by disease group'!$AB$3,FALSE)),"-",VLOOKUP($F46&$A$7&$AB$2&G$11,data!$F:$O,'by disease group'!$AB$3,FALSE)) -> 20998.85991 | H46: =IF(ISNA(VLOOKUP($F46&$A$7&$AB$2&H$11,data!$F:$O,'by disease group'!$AB$3,FALSE)),"-",VLOOKUP($F46&$A$7&$AB$2&H$11,data!$F:$O,'by disease group'!$AB$3,FALSE)) -> 4401.102291 | I46: =IF(ISNA(VLOOKUP($F46&$A$7&$AB$2&I$11,data!$F:$O,'by disease group'!$AB$3,FALSE)),"-",VLOOKUP($F46&$A$7&$AB$2&I$11,data!$F:$O,'by disease group'!$AB$3,FALSE)) -> 9352.201853 | J46: =IF(ISNA(VLOOKUP($F46&$A$7&$AB$2&J$11,data!$F:$O,'by disease group'!$AB$3,FALSE)),"-",VLOOKUP($F46&$A$7&$AB$2&J$11,data!$F:$O,'by disease group'!$AB$3,FALSE)) -> 13915.17963 | K46: =IF(ISNA(VLOOKUP($F46&$A$7&$AB$2&K$11,data!$F:$O,'by disease group'!$AB$3,FALSE)),"-",VLOOKUP($F46&$A$7&$AB$2&K$11,data!$F:$O,'by disease group'!$AB$3,FALSE)) -> 23597.69663 | L46: =IF(ISNA(VLOOKUP($F46&$A$7&$AB$2&L$11,data!$F:$O,'by disease group'!$AB$3,FALSE)),"-",VLOOKUP($F46&$A$7&$AB$2&L$11,data!$F:$O,'by disease group'!$AB$3,FALSE)) -> 47580.86215 | N46: 80.3 | O46: [78.9 - 81.8] | P46: 82.7 | Q46: [81.2 - 84.2] | T46: =IF(ISNA(VLOOKUP($F46&$A$7&$AB$2&G$11,data!$F:$O,6,FALSE)),"-",VLOOKUP($F46&$A$7&$AB$2&G$11,data!$F:$O,6,FALSE)) -> 212.6666667 | U46: =IF(ISNA(VLOOKUP($F46&$A$7&$AB$2&H$11,data!$F:$O,6,FALSE)),"-",VLOOKUP($F46&$A$7&$AB$2&H$11,data!$F:$O,6,FALSE)) -> 0.6666666667 | V46: =IF(ISNA(VLOOKUP($F46&$A$7&$AB$2&I$11,data!$F:$O,6,FALSE)),"-",VLOOKUP($F46&$A$7&$AB$2&I$11,data!$F:$O,6,FALSE)) -> 1 | W46: =IF(ISNA(VLOOKUP($F46&$A$7&$AB$2&J$11,data!$F:$O,6,FALSE)),"-",VLOOKUP($F46&$A$7&$AB$2&J$11,data!$F:$O,6,FALSE)) -> 4 | X46: =IF(ISNA(VLOOKUP($F46&$A$7&$AB$2&K$11,data!$F:$O,6,FALSE)),"-",VLOOKUP($F46&$A$7&$AB$2&K$11,data!$F:$O,6,FALSE)) -> 29.66666667 | Y46: =IF(ISNA(VLOOKUP($F46&$A$7&$AB$2&L$11,data!$F:$O,6,FALSE)),"-",VLOOKUP($F46&$A$7&$AB$2&L$11,data!$F:$O,6,FALSE)) -> 177.3333333
D47: East Dunbartonshire | F47: LA31 | G47: =IF(ISNA(VLOOKUP($F47&$A$7&$AB$2&G$11,data!$F:$O,'by disease group'!$AB$3,FALSE)),"-",VLOOKUP($F47&$A$7&$AB$2&G$11,data!$F:$O,'by disease group'!$AB$3,FALSE)) -> 20480.886 | H47: =IF(ISNA(VLOOKUP($F47&$A$7&$AB$2&H$11,data!$F:$O,'by disease group'!$AB$3,FALSE)),"-",VLOOKUP($F47&$A$7&$AB$2&H$11,data!$F:$O,'by disease group'!$AB$3,FALSE)) -> 3771.977161 | I47: =IF(ISNA(VLOOKUP($F47&$A$7&$AB$2&I$11,data!$F:$O,'by disease group'!$AB$3,FALSE)),"-",VLOOKUP($F47&$A$7&$AB$2&I$11,data!$F:$O,'by disease group'!$AB$3,FALSE)) -> 9242.129013 | J47: =IF(ISNA(VLOOKUP($F47&$A$7&$AB$2&J$11,data!$F:$O,'by disease group'!$AB$3,FALSE)),"-",VLOOKUP($F47&$A$7&$AB$2&J$11,data!$F:$O,'by disease group'!$AB$3,FALSE)) -> 13925.78439 | K47: =IF(ISNA(VLOOKUP($F47&$A$7&$AB$2&K$11,data!$F:$O,'by disease group'!$AB$3,FALSE)),"-",VLOOKUP($F47&$A$7&$AB$2&K$11,data!$F:$O,'by disease group'!$AB$3,FALSE)) -> 21359.86505 | L47: =IF(ISNA(VLOOKUP($F47&$A$7&$AB$2&L$11,data!$F:$O,'by disease group'!$AB$3,FALSE)),"-",VLOOKUP($F47&$A$7&$AB$2&L$11,data!$F:$O,'by disease group'!$AB$3,FALSE)) -> 48532.44984 | N47: 80.1 | O47: [79.4 - 80.7] | P47: 83.5 | Q47: [82.9 - 84.1] | T47: =IF(ISNA(VLOOKUP($F47&$A$7&$AB$2&G$11,data!$F:$O,6,FALSE)),"-",VLOOKUP($F47&$A$7&$AB$2&G$11,data!$F:$O,6,FALSE)) -> 1077 | U47: =IF(ISNA(VLOOKUP($F47&$A$7&$AB$2&H$11,data!$F:$O,6,FALSE)),"-",VLOOKUP($F47&$A$7&$AB$2&H$11,data!$F:$O,6,FALSE)) -> 2.333333333 | V47: =IF(ISNA(VLOOKUP($F47&$A$7&$AB$2&I$11,data!$F:$O,6,FALSE)),"-",VLOOKUP($F47&$A$7&$AB$2&I$11,data!$F:$O,6,FALSE)) -> 6 | W47: =IF(ISNA(VLOOKUP($F47&$A$7&$AB$2&J$11,data!$F:$O,6,FALSE)),"-",VLOOKUP($F47&$A$7&$AB$2&J$11,data!$F:$O,6,FALSE)) -> 23.66666667 | X47: =IF(ISNA(VLOOKUP($F47&$A$7&$AB$2&K$11,data!$F:$O,6,FALSE)),"-",VLOOKUP($F47&$A$7&$AB$2&K$11,data!$F:$O,6,FALSE)) -> 121.6666667 | Y47: =IF(ISNA(VLOOKUP($F47&$A$7&$AB$2&L$11,data!$F:$O,6,FALSE)),"-",VLOOKUP($F47&$A$7&$AB$2&L$11,data!$F:$O,6,FALSE)) -> 923.3333333
D48: East Renfrewshire | F48: LA5 | G48: =IF(ISNA(VLOOKUP($F48&$A$7&$AB$2&G$11,data!$F:$O,'by disease group'!$AB$3,FALSE)),"-",VLOOKUP($F48&$A$7&$AB$2&G$11,data!$F:$O,'by disease group'!$AB$3,FALSE)) -> 20330.96728 | H48: =IF(ISNA(VLOOKUP($F48&$A$7&$AB$2&H$11,data!$F:$O,'by disease group'!$AB$3,FALSE)),"-",VLOOKUP($F48&$A$7&$AB$2&H$11,data!$F:$O,'by disease group'!$AB$3,FALSE)) -> 3960.451576 | I48: =IF(ISNA(VLOOKUP($F48&$A$7&$AB$2&I$11,data!$F:$O,'by disease group'!$AB$3,FALSE)),"-",VLOOKUP($F48&$A$7&$AB$2&I$11,data!$F:$O,'by disease group'!$AB$3,FALSE)) -> 7602.633746 | J48: =IF(ISNA(VLOOKUP($F48&$A$7&$AB$2&J$11,data!$F:$O,'by disease group'!$AB$3,FALSE)),"-",VLOOKUP($F48&$A$7&$AB$2&J$11,data!$F:$O,'by disease group'!$AB$3,FALSE)) -> 13503.77761 | K48: =IF(ISNA(VLOOKUP($F48&$A$7&$AB$2&K$11,data!$F:$O,'by disease group'!$AB$3,FALSE)),"-",VLOOKUP($F48&$A$7&$AB$2&K$11,data!$F:$O,'by disease group'!$AB$3,FALSE)) -> 21249.21737 | L48: =IF(ISNA(VLOOKUP($F48&$A$7&$AB$2&L$11,data!$F:$O,'by disease group'!$AB$3,FALSE)),"-",VLOOKUP($F48&$A$7&$AB$2&L$11,data!$F:$O,'by disease group'!$AB$3,FALSE)) -> 49299.73579 | N48: 80.1 | O48: [79.4 - 80.8] | P48: 83.5 | Q48: [82.9 - 84.2] | T48: =IF(ISNA(VLOOKUP($F48&$A$7&$AB$2&G$11,data!$F:$O,6,FALSE)),"-",VLOOKUP($F48&$A$7&$AB$2&G$11,data!$F:$O,6,FALSE)) -> 893.3333333 | U48: =IF(ISNA(VLOOKUP($F48&$A$7&$AB$2&H$11,data!$F:$O,6,FALSE)),"-",VLOOKUP($F48&$A$7&$AB$2&H$11,data!$F:$O,6,FALSE)) -> 2.666666667 | V48: =IF(ISNA(VLOOKUP($F48&$A$7&$AB$2&I$11,data!$F:$O,6,FALSE)),"-",VLOOKUP($F48&$A$7&$AB$2&I$11,data!$F:$O,6,FALSE)) -> 2.333333333 | W48: =IF(ISNA(VLOOKUP($F48&$A$7&$AB$2&J$11,data!$F:$O,6,FALSE)),"-",VLOOKUP($F48&$A$7&$AB$2&J$11,data!$F:$O,6,FALSE)) -> 19.33333333 | X48: =IF(ISNA(VLOOKUP($F48&$A$7&$AB$2&K$11,data!$F:$O,6,FALSE)),"-",VLOOKUP($F48&$A$7&$AB$2&K$11,data!$F:$O,6,FALSE)) -> 100.6666667 | Y48: =IF(ISNA(VLOOKUP($F48&$A$7&$AB$2&L$11,data!$F:$O,6,FALSE)),"-",VLOOKUP($F48&$A$7&$AB$2&L$11,data!$F:$O,6,FALSE)) -> 768.3333333
D50: Source reference: Scottish Burden of Disease study 2016
D51: http://www.scotpho.org.uk/comparative-health/burden-of-disease/overview/

Sheet data (hidden)
B1: Council Area | C1: Level2 | D1: sex | E1: age | F1: Lookup | G1: pop | H1: YLD | I1: YLL | J1: DALY | K1: Deaths | L1: YLD rates | M1: YLL rates | N1: DALY rates | O1: Deaths rates
B2: LA1 | C2: All causes of disease and injury | D2: 3 | E2: 1 - Under15 | F2: LA1All causes of disease and injury31 - Under15 | H2: 232.1089699 | I2: 153.9433333 | J2: 386.0523032 | K2: 2 | L2: 2792.971173 | M2: 1710.218411 | N2: 4503.189584 | O2: 22.2394771
B3: LA2 | C3: All causes of disease and injury | D3: 3 | E3: 1 - Under15 | F3: LA2All causes of disease and injury31 - Under15 | H3: 648.8339393 | I3: 583.5466667 | J3: 1232.380606 | K3: 7.666666667 | L3: 2934.389273 | M3: 2677.129207 | N3: 5611.51848 | O3: 35.15730516
B4: LA3 | C4: All causes of disease and injury | D4: 3 | E4: 1 - Under15 | F4: LA3All causes of disease and injury31 - Under15 | H4: 544.1405858 | I4: 356.39 | J4: 900.5305858 | K4: 4.666666667 | L4: 2768.927588 | M4: 1694.744845 | N4: 4463.672433 | O4: 22.22325977
B5: LA4 | C5: All causes of disease and injury | D5: 3 | E5: 1 - Under15 | F5: LA4All causes of disease and injury31 - Under15 | H5: 505.8060705 | I5: 275.67 | J5: 781.4760705 | K5: 3.666666667 | L5: 2866.884198 | M5: 1525.044598 | N5: 4391.928796 | O5: 20.34210807
B6: LA5 | C6: All causes of disease and injury | D6: 3 | E6: 1 - Under15 | F6: LA5All causes of disease and injury31 - Under15 | H6: 485.7472156 | I6: 202.4066667 | J6: 688.1538823 | K6: 2.666666667 | L6: 2772.018223 | M6: 1188.433353 | N6: 3960.451576 | O6: 15.64124978
B7: LA6 | C7: All causes of disease and injury | D7: 3 | E7: 1 - Under15 | F7: LA6All causes of disease and injury31 - Under15 | H7: 126.0214007 | I7: 51.38 | J7: 177.4014007 | K7: 0.6666666667 | L7: 3105.828913 | M7: 1304.325751 | N7: 4410.154664 | O7: 16.9239101
B8: LA7 | C8: All causes of disease and injury | D8: 3 | E8: 1 - Under15 | F8: LA7All causes of disease and injury31 - Under15 | H8: 742.0125172 | I8: 616.33 | J8: 1358.342517 | K8: 8 | L8: 2816.178481 | M8: 2242.572897 | N8: 5058.751378 | O8: 29.15269617
B9: LA8 | C9: All causes of disease and injury | D9: 3 | E9: 1 - Under15 | F9: LA8All causes of disease and injury31 - Under15 | H9: 1669.521229 | I9: 1840.97 | J9: 3510.491229 | K9: 23.66666667 | L9: 2801.834173 | M9: 2928.127028 | N9: 5729.961201 | O9: 37.67728685
B10: LA9 | C10: All causes of disease and injury | D10: 3 | E10: 1 - Under15 | F10: LA9All causes of disease and injury31 - Under15 | H10: 1072.123467 | I10: 510.2666667 | J10: 1582.390134 | K10: 6.666666667 | L10: 2873.921935 | M10: 1365.742646 | N10: 4239.664581 | O10: 17.84809671
B11: LA10 | C11: All causes of disease and injury | D11: 3 | E11: 1 - Under15 | F11: LA10All causes of disease and injury31 - Under15 | H11: 327.4819893 | I11: 100.9966667 | J11: 428.478656 | K11: 1.333333333 | L11: 2739.133096 | M11: 828.4779474 | N11: 3567.611044 | O11: 10.93743832
B12: LA11 | C12: All causes of disease and injury | D12: 3 | E12: 1 - Under15 | F12: LA11All causes of disease and injury31 - Under15 | H12: 443.4664466 | I12: 313.0233333 | J12: 756.48978 | K12: 4 | L12: 2874.212448 | M12: 1762.100218 | N12: 4636.312667 | O12: 22.61525098
B13: LA12 | C13: All causes of disease and injury | D13: 3 | E13: 1 - Under15 | F13: LA12All causes of disease and injury31 - Under15 | H13: 439.3531511 | I13: 249.2333333 | J13: 688.5864844 | K13: 3.333333333 | L13: 2858.388649 | M13: 1641.212508 | N13: 4499.601157 | O13: 21.97045862
B14: LA13 | C14: All causes of disease and injury | D14: 3 | E14: 1 - Under15 | F14: LA13All causes of disease and injury31 - Under15 | H14: 585.3083957 | I14: 416.21 | J14: 1001.518396 | K14: 5.333333333 | L14: 2716.68912 | M14: 1919.414641 | N14: 4636.10376 | O14: 24.60095904
B15: LA14 | C15: All causes of disease and injury | D15: 3 | E15: 1 - Under15 | F15: LA14All causes of disease and injury31 - Under15 | H15: 95.98984996 | I15: 48.20333333 | J15: 144.1931833 | K15: 0.6666666667 | L15: 2896.267045 | M15: 1504.835246 | N15: 4401.102291 | O15: 20.76218309
B16: LA15 | C16: All causes of disease and injury | D16: 3 | E16: 1 - Under15 | F16: LA15All causes of disease and injury31 - Under15 | H16: 648.0974123 | I16: 588.5833333 | J16: 1236.680746 | K16: 7.666666667 | L16: 2852.826421 | M16: 2565.977354 | N16: 5418.803775 | O16: 33.43546942
B17: LA16 | C17: All causes of disease and injury | D17: 3 | E17: 1 - Under15 | F17: LA16All causes of disease and injury31 - Under15 | H17: 506.1957682 | I17: 254.13 | J17: 760.3257682 | K17: 3.333333333 | L17: 2856.725575 | M17: 1396.376492 | N17: 4253.102068 | O17: 18.33632559
B18: LA17 | C18: All causes of disease and injury | D18: 3 | E18: 1 - Under15 | F18: LA17All causes of disease and injury31 - Under15 | H18: 113.0566768 | I18: 50.85333333 | J18: 163.9100101 | K18: 0.6666666667 | L18: 2859.983379 | M18: 1255.603519 | N18: 4115.586899 | O18: 16.48163631
B19: LA18 | C19: All causes of disease and injury | D19: 3 | E19: 1 - Under15 | F19: LA18All causes of disease and injury31 - Under15 | H19: 469.3668898 | I19: 359.4233333 | J19: 828.7902231 | K19: 4.666666667 | L19: 2837.250173 | M19: 2159.48175 | N19: 4996.731922 | O19: 28.0529871
B20: LA19 | C20: All causes of disease and injury | D20: 3 | E20: 1 - Under15 | F20: LA19All causes of disease and injury31 - Under15 | H20: 1425.485978 | I20: 1052.993333 | J20: 2478.479311 | K20: 13.66666667 | L20: 2807.217867 | M20: 1956.052918 | N20: 4763.270785 | O20: 25.42532464
B21: LA20 | C21: All causes of disease and injury | D21: 3 | E21: 1 - Under15 | F21: LA20All causes of disease and injury31 - Under15 | H21: 406.2988478 | I21: 46.28 | J21: 452.5788478 | K21: 0.6666666667 | L21: 2800.162142 | M21: 319.3525023 | N21: 3119.514644 | O21: 4.594960028
B22: LA21 | C22: All causes of disease and injury | D22: 3 | E22: 1 - Under15 | F22: LA21All causes of disease and injury31 - Under15 | H22: 871.1717481 | I22: 871.5066667 | J22: 1742.678415 | K22: 11.33333333 | L22: 2810.38482 | M22: 2375.37804 | N22: 5185.762861 | O22: 31.08489898
B23: LA22 | C23: All causes of disease and injury | D23: 3 | E23: 1 - Under15 | F23: LA22All causes of disease and injury31 - Under15 | H23: 1277.814591 | I23: 785.1366667 | J23: 2062.951258 | K23: 10.33333333 | L23: 2813.50283 | M23: 1662.19516 | N23: 4475.69799 | O23: 21.92317826
B24: LA23 | C24: All causes of disease and injury | D24: 3 | E24: 1 - Under15 | F24: LA23All causes of disease and injury31 - Under15 | H24: 361.882835 | I24: 273.2733333 | J24: 635.1561684 | K24: 3.666666667 | L24: 2921.835323 | M24: 2215.351419 | N24: 5137.186741 | O24: 29.72051186
B25: LA24 | C25: All causes of disease and injury | D25: 3 | E25: 1 - Under15 | F25: LA24All causes of disease and injury31 - Under15 | H25: 1963.810647 | I25: 1802.473333 | J25: 3766.28398 | K25: 23.66666667 | L25: 2780.035549 | M25: 2251.553611 | N25: 5031.58916 | O25: 29.77647617
B26: LA25 | C26: All causes of disease and injury | D26: 3 | E26: 1 - Under15 | F26: LA25All causes of disease and injury31 - Under15 | H26: 769.8506924 | I26: 488.21 | J26: 1258.060692 | K26: 6.333333333 | L26: 2781.969442 | M26: 1677.8844 | N26: 4459.853841 | O26: 21.79983033
B27: LA26 | C27: All causes of disease and injury | D27: 3 | E27: 1 - Under15 | F27: LA26All causes of disease and injury31 - Under15 | H27: 401.1849024 | I27: 328.2566667 | J27: 729.441569 | K27: 4.333333333 | L27: 2749.981875 | M27: 2148.515264 | N27: 4898.497138 | O27: 28.46780358
B28: LA27 | C28: All causes of disease and injury | D28: 3 | E28: 1 - Under15 | F28: LA27All causes of disease and injury31 - Under15 | H28: 922.5392281 | I28: 563.46 | J28: 1485.999228 | K28: 7.333333333 | L28: 2806.903516 | M28: 1668.478953 | N28: 4475.382469 | O28: 21.72637426
B29: LA28 | C29: All causes of disease and injury | D29: 3 | E29: 1 - Under15 | F29: LA28All causes of disease and injury31 - Under15 | H29: 516.8620318 | I29: 370.1866667 | J29: 887.0486985 | K29: 4.666666667 | L29: 2860.929966 | M29: 1997.29512 | N29: 4858.225085 | O29: 25.178407
B30: LA29 | C30: All causes of disease and injury | D30: 3 | E30: 1 - Under15 | F30: LA29All causes of disease and injury31 - Under15 | H30: 597.9449481 | I30: 1062.633333 | J30: 1660.578281 | K30: 13.66666667 | L30: 2736.006596 | M30: 4270.721068 | N30: 7006.727664 | O30: 55.10452611
B31: LA30 | C31: All causes of disease and injury | D31: 3 | E31: 1 - Under15 | F31: LA30All causes of disease and injury31 - Under15 | H31: 1643.742442 | I31: 1168.616667 | J31: 2812.359109 | K31: 15.33333333 | L31: 2788.011305 | M31: 1934.465016 | N31: 4722.476321 | O31: 25.41074952
B32: LA31 | C32: All causes of disease and injury | D32: 3 | E32: 1 - Under15 | F32: LA31All causes of disease and injury31 - Under15 | H32: 484.2326927 | I32: 177.9733333 | J32: 662.2060261 | K32: 2.333333333 | L32: 2754.64434 | M32: 1017.332821 | N32: 3771.977161 | O32: 13.33673367
B33: LA32 | C33: All causes of disease and injury | D33: 3 | E33: 1 - Under15 | F33: LA32All causes of disease and injury31 - Under15 | H33: 2427.673755 | I33: 2989.06 | J33: 5416.733755 | K33: 38.66666667 | L33: 2732.593778 | M33: 2805.567957 | N33: 5538.161735 | O33: 36.50311906
B34: Scot | C34: All causes of disease and injury | D34: 3 | E34: 1 - Under15 | F34: ScotAll causes of disease and injury31 - Under15 | H34: 23725.12731 | I34: 18951.62 | J34: 42676.74731 | K34: 246.6666667 | L34: 2803.630133 | M34: 2100.360542 | N34: 4903.990675 | O34: 27.40169942
B35: LA1 | C35: All causes of disease and injury | D35: 3 | E35: 2 - 15-24 | F35: LA1All causes of disease and injury32 - 15-24 | H35: 444.7672566 | I35: 196.9266667 | J35: 641.6939233 | K35: 3.333333333 | L35: 7509.452412 | M35: 3303.763169 | N35: 10813.21558 | O35: 55.99574712
B36: LA2 | C36: All causes of disease and injury | D36: 3 | E36: 2 - 15-24 | F36: LA2All causes of disease and injury32 - 15-24 | H36: 1124.333317 | I36: 474.5866667 | J36: 1598.919984 | K36: 8 | L36: 7272.051362 | M36: 3062.627183 | N36: 10334.67855 | O36: 51.70041876
B37: LA3 | C37: All causes of disease and injury | D37: 3 | E37: 2 - 15-24 | F37: LA3All causes of disease and injury32 - 15-24 | H37: 1070.665639 | I37: 400.93 | J37: 1471.595639 | K37: 7 | L37: 7685.225173 | M37: 2894.175975 | N37: 10579.40115 | O37: 50.53658524
B38: LA4 | C38: All causes of disease and injury | D38: 3 | E38: 2 - 15-24 | F38: LA4All causes of disease and injury32 - 15-24 | H38: 813.1028895 | I38: 256.4733333 | J38: 1069.576223 | K38: 4.333333333 | L38: 6847.927327 | M38: 2161.989702 | N38: 9009.91703 | O38: 36.53484163
B39: LA5 | C39: All causes of disease and injury | D39: 3 | E39: 2 - 15-24 | F39: LA5All causes of disease and injury32 - 15-24 | H39: 704.8692754 | I39: 136.05 | J39: 840.9192754 | K39: 2.333333333 | L39: 6334.217928 | M39: 1268.415818 | N39: 7602.633746 | O39: 21.76870559
B40: LA6 | C40: All causes of disease and injury | D40: 3 | E40: 2 - 15-24 | F40: LA6All causes of disease and injury32 - 15-24 | H40: 180.8574945 | I40: 74.85666667 | J40: 255.7141612 | K40: 1.333333333 | L40: 7158.535107 | M40: 3090.512582 | N40: 10249.04769 | O40: 55.1501085
B41: LA7 | C41: All causes of disease and injury | D41: 3 | E41: 2 - 15-24 | F41: LA7All causes of disease and injury32 - 15-24 | H41: 1276.712372 | I41: 408.41 | J41: 1685.122372 | K41: 7 | L41: 7178.839336 | M41: 2294.258386 | N41: 9473.097722 | O41: 39.35645197
B42: LA8 | C42: All causes of disease and injury | D42: 3 | E42: 2 - 15-24 | F42: LA8All causes of disease and injury32 - 15-24 | H42: 3223.629645 | I42: 880.0433333 | J42: 4103.672979 | K42: 15 | L42: 7067.154697 | M42: 1916.406043 | N42: 8983.56074 | O42: 32.6462511
B43: LA9 | C43: All causes of disease and injury | D43: 3 | E43: 2 - 15-24 | F43: LA9All causes of disease and injury32 - 15-24 | H43: 1694.076595 | I43: 739.48 | J43: 2433.556595 | K43: 12.66666667 | L43: 6935.051887 | M43: 3041.95102 | N43: 9977.002908 | O43: 52.27810508
B44: LA10 | C44: All causes of disease and injury | D44: 3 | E44: 2 - 15-24 | F44: LA10All causes of disease and injury32 - 15-24 | H44: 717.1986317 | I44: 211.2433333 | J44: 928.441965 | K44: 3.666666667 | L44: 7805.491002 | M44: 2298.875906 | N44: 10104.36691 | O44: 39.90261723
B45: LA11 | C45: All causes of disease and injury | D45: 3 | E45: 2 - 15-24 | F45: LA11All causes of disease and injury32 - 15-24 | H45: 719.3694767 | I45: 194.6833333 | J45: 914.0528101 | K45: 3.333333333 | L45: 7254.77397 | M45: 1965.628723 | N45: 9220.402694 | O45: 33.74140478
B46: LA12 | C46: All causes of disease and injury | D46: 3 | E46: 2 - 15-24 | F46: LA12All causes of disease and injury32 - 15-24 | H46: 714.6001545 | I46: 328.67 | J46: 1043.270155 | K46: 5.666666667 | L46: 6496.673616 | M46: 3008.818171 | N46: 9505.491787 | O46: 51.93840844
B47: LA13 | C47: All causes of disease and injury | D47: 3 | E47: 2 - 15-24 | F47: LA13All causes of disease and injury32 - 15-24 | H47: 1240.006391 | I47: 426.1366667 | J47: 1666.143058 | K47: 7.333333333 | L47: 7823.94055 | M47: 2703.333553 | N47: 10527.2741 | O47: 46.5701121
B48: LA14 | C48: All causes of disease and injury | D48: 3 | E48: 2 - 15-24 | F48: LA14All causes of disease and injury32 - 15-24 | H48: 144.5433612 | I48: 62.54 | J48: 207.0833612 | K48: 1 | L48: 6561.07508 | M48: 2791.126773 | N48: 9352.201853 | O48: 44.66562097
B49: LA15 | C49: All causes of disease and injury | D49: 3 | E49: 2 - 15-24 | F49: LA15All causes of disease and injury32 - 15-24 | H49: 1104.772163 | I49: 424.4966667 | J49: 1529.26883 | K49: 7 | L49: 6638.949587 | M49: 2526.619707 | N49: 9165.569293 | O49: 41.74678594
B50: LA16 | C50: All causes of disease and injury | D50: 3 | E50: 2 - 15-24 | F50: LA16All causes of disease and injury32 - 15-24 | H50: 791.6887311 | I50: 272.13 | J50: 1063.818731 | K50: 4.666666667 | L50: 6871.384384 | M50: 2401.596777 | N50: 9272.981161 | O50: 41.29409868
B51: LA17 | C51: All causes of disease and injury | D51: 3 | E51: 2 - 15-24 | F51: LA17All causes of disease and injury32 - 15-24 | H51: 164.7135742 | I51: 55.32666667 | J51: 220.0402409 | K51: 1 | L51: 6347.055799 | M51: 2251.644848 | N51: 8598.700647 | O51: 40.69728007
B52: LA18 | C52: All causes of disease and injury | D52: 3 | E52: 2 - 15-24 | F52: LA18All causes of disease and injury32 - 15-24 | H52: 887.6172964 | I52: 290.6533333 | J52: 1178.27063 | K52: 5 | L52: 7421.105856 | M52: 2486.008128 | N52: 9907.113983 | O52: 42.8104864
B53: LA19 | C53: All causes of disease and injury | D53: 3 | E53: 2 - 15-24 | F53: LA19All causes of disease and injury32 - 15-24 | H53: 2658.750331 | I53: 773.9233333 | J53: 3432.673664 | K53: 13.33333333 | L53: 7386.752575 | M53: 2157.949517 | N53: 9544.702092 | O53: 37.20901371
B54: LA20 | C54: All causes of disease and injury | D54: 3 | E54: 2 - 15-24 | F54: LA20All causes of disease and injury32 - 15-24 | H54: 975.2501538 | I54: 314.74 | J54: 1289.990154 | K54: 5.333333333 | L54: 6721.092911 | M54: 2166.985715 | N54: 8888.078625 | O54: 36.66616196
B55: LA21 | C55: All causes of disease and injury | D55: 3 | E55: 2 - 15-24 | F55: LA21All causes of disease and injury32 - 15-24 | H55: 2260.263734 | I55: 590.99 | J55: 2851.253734 | K55: 10.33333333 | L55: 6719.330582 | M55: 1690.902201 | N55: 8410.232784 | O55: 29.31712369
B56: LA22 | C56: All causes of disease and injury | D56: 3 | E56: 2 - 15-24 | F56: LA22All causes of disease and injury32 - 15-24 | H56: 1742.327277 | I56: 574.1366667 | J56: 2316.463944 | K56: 9.666666667 | L56: 6308.108947 | M56: 2029.009457 | N56: 8337.118404 | O56: 34.27141289
B57: LA23 | C57: All causes of disease and injury | D57: 3 | E57: 2 - 15-24 | F57: LA23All causes of disease and injury32 - 15-24 | H57: 643.9845427 | I57: 193.9333333 | J57: 837.917876 | K57: 3.333333333 | L57: 6720.011088 | M57: 2015.471095 | N57: 8735.482183 | O57: 34.69580971
B58: LA24 | C58: All causes of disease and injury | D58: 3 | E58: 2 - 15-24 | F58: LA24All causes of disease and injury32 - 15-24 | H58: 4888.870884 | I58: 875.4366667 | J58: 5764.307551 | K58: 15 | L58: 6745.906278 | M58: 1203.167403 | N58: 7949.07368 | O58: 20.46754898
B59: LA25 | C59: All causes of disease and injury | D59: 3 | E59: 2 - 15-24 | F59: LA25All causes of disease and injury32 - 15-24 | H59: 1558.417364 | I59: 456.33 | J59: 2014.747364 | K59: 7.666666667 | L59: 7479.989407 | M59: 2193.361192 | N59: 9673.350599 | O59: 36.84364212
B60: LA26 | C60: All causes of disease and injury | D60: 3 | E60: 2 - 15-24 | F60: LA26All causes of disease and injury32 - 15-24 | H60: 846.4273877 | I60: 380.1933333 | J60: 1226.620721 | K60: 6.333333333 | L60: 7970.878468 | M60: 3607.552445 | N60: 11578.43091 | O60: 60.01728615
B61: LA27 | C61: All causes of disease and injury | D61: 3 | E61: 2 - 15-24 | F61: LA27All causes of disease and injury32 - 15-24 | H61: 1512.510086 | I61: 535.4933333 | J61: 2048.00342 | K61: 9 | L61: 7229.142378 | M61: 2561.606126 | N61: 9790.748504 | O61: 43.12016751
B62: LA28 | C62: All causes of disease and injury | D62: 3 | E62: 2 - 15-24 | F62: LA28All causes of disease and injury32 - 15-24 | H62: 877.5664859 | I62: 233.3566667 | J62: 1110.923153 | K62: 4 | L62: 6887.896227 | M62: 1889.669697 | N62: 8777.565924 | O62: 32.42841458
B63: LA29 | C63: All causes of disease and injury | D63: 3 | E63: 2 - 15-24 | F63: LA29All causes of disease and injury32 - 15-24 | H63: 1782.956904 | I63: 357.33 | J63: 2140.286904 | K63: 6.333333333 | L63: 7541.756206 | M63: 1448.535355 | N63: 8990.291561 | O63: 25.55493713
B64: LA30 | C64: All causes of disease and injury | D64: 3 | E64: 2 - 15-24 | F64: LA30All causes of disease and injury32 - 15-24 | H64: 3153.942869 | I64: 898.56 | J64: 4052.502869 | K64: 15.33333333 | L64: 7693.454597 | M64: 2178.706048 | N64: 9872.160646 | O64: 37.2273626
B65: LA31 | C65: All causes of disease and injury | D65: 3 | E65: 2 - 15-24 | F65: LA31All causes of disease and injury32 - 15-24 | H65: 786.5369019 | I65: 346.3166667 | J65: 1132.853569 | K65: 6 | L65: 6390.167815 | M65: 2851.961198 | N65: 9242.129013 | O65: 49.46780936
B66: LA32 | C66: All causes of disease and injury | D66: 3 | E66: 2 - 15-24 | F66: LA32All causes of disease and injury32 - 15-24 | H66: 7155.704968 | I66: 1204.403333 | J66: 8360.108302 | K66: 20.66666667 | L66: 7827.979702 | M66: 1381.647109 | N66: 9209.626811 | O66: 23.52095051
B67: Scot | C67: All causes of disease and injury | D67: 3 | E67: 2 - 15-24 | F67: ScotAll causes of disease and injury32 - 15-24 | H67: 47861.03415 | I67: 13568.78 | J67: 61429.81415 | K67: 232 | L67: 7177.023332 | M67: 2033.510714 | N67: 9210.534047 | O67: 34.70045491
B68: LA1 | C68: All causes of disease and injury | D68: 3 | E68: 3 - 25-44 | F68: LA1All causes of disease and injury33 - 25-44 | H68: 1399.561666 | I68: 812.54 | J68: 2212.101666 | K68: 18.66666667 | L68: 11765.62097 | M68: 6876.049935 | N68: 18641.6709 | O68: 157.5492453
B69: LA2 | C69: All causes of disease and injury | D69: 3 | E69: 3 - 25-44 | F69: LA2All causes of disease and injury33 - 25-44 | H69: 3397.90164 | I69: 1494.643333 | J69: 4892.544973 | K69: 35 | L69: 11464.68563 | M69: 5063.65917 | N69: 16528.3448 | O69: 118.8380662
B70: LA3 | C70: All causes of disease and injury | D70: 3 | E70: 3 - 25-44 | F70: LA3All causes of disease and injury33 - 25-44 | H70: 3403.531438 | I70: 2009.203333 | J70: 5412.734772 | K70: 48 | L70: 11913.36005 | M70: 6986.132803 | N70: 18899.49285 | O70: 167.1969526
B71: LA4 | C71: All causes of disease and injury | D71: 3 | E71: 3 - 25-44 | F71: LA4All causes of disease and injury33 - 25-44 | H71: 2520.074294 | I71: 1194.936667 | J71: 3715.01096 | K71: 27.66666667 | L71: 10636.08567 | M71: 5032.169129 | N71: 15668.2548 | O71: 115.8900259
B72: LA5 | C72: All causes of disease and injury | D72: 3 | E72: 3 - 25-44 | F72: LA5All causes of disease and injury33 - 25-44 | H72: 1891.227262 | I72: 820.1766667 | J72: 2711.403929 | K72: 19.33333333 | L72: 9407.455646 | M72: 4096.321961 | N72: 13503.77761 | O72: 95.39654119
B73: LA6 | C73: All causes of disease and injury | D73: 3 | E73: 3 - 25-44 | F73: LA6All causes of disease and injury33 - 25-44 | H73: 660.809985 | I73: 319.1266667 | J73: 979.9366517 | K73: 7.666666667 | L73: 11726.64784 | M73: 5529.392219 | N73: 17256.04006 | O73: 131.9196702
B74: LA7 | C74: All causes of disease and injury | D74: 3 | E74: 3 - 25-44 | F74: LA7All causes of disease and injury33 - 25-44 | H74: 4494.295388 | I74: 2312.023333 | J74: 6806.318722 | K74: 54.33333333 | L74: 11114.87924 | M74: 5691.098219 | N74: 16805.97746 | O74: 133.4311169
B75: LA8 | C75: All causes of disease and injury | D75: 3 | E75: 3 - 25-44 | F75: LA8All causes of disease and injury33 - 25-44 | H75: 9694.996207 | I75: 4768.29 | J75: 14463.28621 | K75: 110 | L75: 11218.21734 | M75: 5545.304163 | N75: 16763.52151 | O75: 128.2246039
B76: LA9 | C76: All causes of disease and injury | D76: 3 | E76: 3 - 25-44 | F76: LA9All causes of disease and injury33 - 25-44 | H76: 5711.186558 | I76: 2555.983333 | J76: 8267.169891 | K76: 59.33333333 | L76: 10806.09093 | M76: 4842.110314 | N76: 15648.20124 | O76: 112.502465
B77: LA10 | C77: All causes of disease and injury | D77: 3 | E77: 3 - 25-44 | F77: LA10All causes of disease and injury33 - 25-44 | H77: 2169.172493 | I77: 1389.92 | J77: 3559.092493 | K77: 32.66666667 | L77: 12245.01031 | M77: 7976.086064 | N77: 20221.09638 | O77: 188.0981558
B78: LA11 | C78: All causes of disease and injury | D78: 3 | E78: 3 - 25-44 | F78: LA11All causes of disease and injury33 - 25-44 | H78: 2414.616107 | I78: 837.03 | J78: 3251.646107 | K78: 19.33333333 | L78: 11220.6749 | M78: 3896.525582 | N78: 15117.20049 | O78: 90.25322673
B79: LA12 | C79: All causes of disease and injury | D79: 3 | E79: 3 - 25-44 | F79: LA12All causes of disease and injury33 - 25-44 | H79: 2279.364565 | I79: 984.8333333 | J79: 3264.197898 | K79: 22.33333333 | L79: 10147.72433 | M79: 4326.438343 | N79: 14474.16267 | O79: 98.37134316
B80: LA13 | C80: All causes of disease and injury | D80: 3 | E80: 3 - 25-44 | F80: LA13All causes of disease and injury33 - 25-44 | H80: 3616.457483 | I80: 2147.326667 | J80: 5763.78415 | K80: 50.66666667 | L80: 12416.35426 | M80: 7386.727014 | N80: 19803.08128 | O80: 174.2458083
B81: LA14 | C81: All causes of disease and injury | D81: 3 | E81: 3 - 25-44 | F81: LA14All causes of disease and injury33 - 25-44 | H81: 482.977804 | I81: 179.2566667 | J81: 662.2344707 | K81: 4 | L81: 10176.95554 | M81: 3738.224091 | N81: 13915.17963 | O81: 83.69273782
B82: LA15 | C82: All causes of disease and injury | D82: 3 | E82: 3 - 25-44 | F82: LA15All causes of disease and injury33 - 25-44 | H82: 3435.629694 | I82: 1388.366667 | J82: 4823.99636 | K82: 32.33333333 | L82: 10303.77861 | M82: 4179.970621 | N82: 14483.74923 | O82: 97.59915808
B83: LA16 | C83: All causes of disease and injury | D83: 3 | E83: 3 - 25-44 | F83: LA16All causes of disease and injury33 - 25-44 | H83: 2460.210284 | I83: 1035.82 | J83: 3496.030284 | K83: 24.33333333 | L83: 10788.5586 | M83: 4529.948547 | N83: 15318.50714 | O83: 105.5409471
B84: LA17 | C84: All causes of disease and injury | D84: 3 | E84: 3 - 25-44 | F84: LA17All causes of disease and injury33 - 25-44 | H84: 551.6041382 | I84: 271.9366667 | J84: 823.5408049 | K84: 6.666666667 | L84: 9817.476671 | M84: 4910.571165 | N84: 14728.04784 | O84: 120.3660895
B85: LA18 | C85: All causes of disease and injury | D85: 3 | E85: 3 - 25-44 | F85: LA18All causes of disease and injury33 - 25-44 | H85: 2688.635725 | I85: 1827.083333 | J85: 4515.719059 | K85: 42.33333333 | L85: 11630.79912 | M85: 7892.461379 | N85: 19523.2605 | O85: 182.6085306
B86: LA19 | C86: All causes of disease and injury | D86: 3 | E86: 3 - 25-44 | F86: LA19All causes of disease and injury33 - 25-44 | H86: 8776.415745 | I86: 4734.28 | J86: 13510.69575 | K86: 110.3333333 | L86: 11497.30474 | M86: 6211.553232 | N86: 17708.85797 | O86: 144.7069491
B87: LA20 | C87: All causes of disease and injury | D87: 3 | E87: 3 - 25-44 | F87: LA20All causes of disease and injury33 - 25-44 | H87: 2238.325576 | I87: 795.4833333 | J87: 3033.808909 | K87: 18.66666667 | L87: 10460.47147 | M87: 3710.890052 | N87: 14171.36152 | O87: 87.79189655
B88: LA21 | C88: All causes of disease and injury | D88: 3 | E88: 3 - 25-44 | F88: LA21All causes of disease and injury33 - 25-44 | H88: 7230.921596 | I88: 3672.586667 | J88: 10903.50826 | K88: 86.66666667 | L88: 10054.06525 | M88: 5697.4498 | N88: 15751.51505 | O88: 137.5694139
B89: LA22 | C89: All causes of disease and injury | D89: 3 | E89: 3 - 25-44 | F89: LA22All causes of disease and injury33 - 25-44 | H89: 6140.720962 | I89: 2732.463333 | J89: 8873.184295 | K89: 65 | L89: 9424.948318 | M89: 4152.172917 | N89: 13577.12124 | O89: 98.28335192
B90: LA23 | C90: All causes of disease and injury | D90: 3 | E90: 3 - 25-44 | F90: LA23All causes of disease and injury33 - 25-44 | H90: 1887.93451 | I90: 816.6533333 | J90: 2704.587843 | K90: 19.33333333 | L90: 10826.61939 | M90: 4632.372848 | N90: 15458.99224 | O90: 109.4466715
B91: LA24 | C91: All causes of disease and injury | D91: 3 | E91: 3 - 25-44 | F91: LA24All causes of disease and injury33 - 25-44 | H91: 16772.41567 | I91: 6170.77 | J91: 22943.18567 | K91: 144.3333333 | L91: 10325.82401 | M91: 4088.698858 | N91: 14414.52287 | O91: 97.81679069
B92: LA25 | C92: All causes of disease and injury | D92: 3 | E92: 3 - 25-44 | F92: LA25All causes of disease and injury33 - 25-44 | H92: 4998.037336 | I92: 2753.4 | J92: 7751.437336 | K92: 63.33333333 | L92: 11733.68033 | M92: 6478.485572 | N92: 18212.16591 | O92: 150.3141802
B93: LA26 | C93: All causes of disease and injury | D93: 3 | E93: 3 - 25-44 | F93: LA26All causes of disease and injury33 - 25-44 | H93: 2683.090462 | I93: 1798.74 | J93: 4481.830462 | K93: 42 | L93: 12605.52179 | M93: 8528.531421 | N93: 21134.05321 | O93: 201.0956991
B94: LA27 | C94: All causes of disease and injury | D94: 3 | E94: 3 - 25-44 | F94: LA27All causes of disease and injury33 - 25-44 | H94: 5228.781489 | I94: 2030.28 | J94: 7259.061489 | K94: 46.66666667 | L94: 11184.23408 | M94: 4342.549382 | N94: 15526.78346 | O94: 99.79987109
B95: LA28 | C95: All causes of disease and injury | D95: 3 | E95: 3 - 25-44 | F95: LA28All causes of disease and injury33 - 25-44 | H95: 2757.322091 | I95: 1272.263333 | J95: 4029.585425 | K95: 30 | L95: 10779.20697 | M95: 4974.604582 | N95: 15753.81156 | O95: 117.1535067
B96: LA29 | C96: All causes of disease and injury | D96: 3 | E96: 3 - 25-44 | F96: LA29All causes of disease and injury33 - 25-44 | H96: 4664.158087 | I96: 3001.906667 | J96: 7666.064753 | K96: 69 | L96: 12170.32418 | M96: 8165.311239 | N96: 20335.63542 | O96: 193.5833485
B97: LA30 | C97: All causes of disease and injury | D97: 3 | E97: 3 - 25-44 | F97: LA30All causes of disease and injury33 - 25-44 | H97: 10457.2278 | I97: 5802.643333 | J97: 16259.87114 | K97: 136.3333333 | L97: 12137.50283 | M97: 6729.221076 | N97: 18866.72391 | O97: 158.5279138
B98: LA31 | C98: All causes of disease and injury | D98: 3 | E98: 3 - 25-44 | F98: LA31All causes of disease and injury33 - 25-44 | H98: 2138.742483 | I98: 984.32 | J98: 3123.062483 | K98: 23.66666667 | L98: 9578.067745 | M98: 4347.716645 | N98: 13925.78439 | O98: 103.8810758
B99: LA32 | C99: All causes of disease and injury | D99: 3 | E99: 3 - 25-44 | F99: LA32All causes of disease and injury33 - 25-44 | H99: 23851.94618 | I99: 11719.29 | J99: 35571.23618 | K99: 278.3333333 | L99: 12668.24293 | M99: 6875.094836 | N99: 19543.33777 | O99: 167.2932503
B100: Scot | C100: All causes of disease and injury | D100: 3 | E100: 3 - 25-44 | F100: ScotAll causes of disease and injury33 - 25-44 | H100: 153098.2927 | I100: 74633.57667 | J100: 227731.8694 | K100: 1748.333333 | L100: 11195.32433 | M100: 5538.235165 | N100: 16733.5595 | O100: 130.9127426
B101: LA1 | C101: All causes of disease and injury | D101: 3 | E101: 4 - 45-64 | F101: LA1All causes of disease and injury34 - 45-64 | H101: 2171.679634 | I101: 2071.476667 | J101: 4243.156301 | K101: 82.33333333 | L101: 14306.17313 | M101: 13802.88183 | N101: 28109.05496 | O101: 552.4259668
B102: LA2 | C102: All causes of disease and injury | D102: 3 | E102: 4 - 45-64 | F102: LA2All causes of disease and injury34 - 45-64 | H102: 6255.827273 | I102: 5008.823333 | J102: 11264.65061 | K102: 198 | L102: 13829.49319 | M102: 11008.37832 | N102: 24837.87151 | O102: 430.8660723
B103: LA3 | C103: All causes of disease and injury | D103: 3 | E103: 4 - 45-64 | F103: LA3All causes of disease and injury34 - 45-64 | H103: 5205.109075 | I103: 4901.93 | J103: 10107.03907 | K103: 191.6666667 | L103: 14632.04541 | M103: 13834.08634 | N103: 28466.13175 | O103: 543.4085455
B104: LA4 | C104: All causes of disease and injury | D104: 3 | E104: 4 - 45-64 | F104: LA4All causes of disease and injury34 - 45-64 | H104: 3919.056038 | I104: 3147.52 | J104: 7066.576038 | K104: 124.3333333 | L104: 12926.9121 | M104: 10470.40795 | N104: 23397.32005 | O104: 416.5883101
B105: LA5 | C105: All causes of disease and injury | D105: 3 | E105: 4 - 45-64 | F105: LA5All causes of disease and injury34 - 45-64 | H105: 3123.793858 | I105: 2564.793333 | J105: 5688.587191 | K105: 100.6666667 | L105: 11661.76437 | M105: 9587.453004 | N105: 21249.21737 | O105: 377.7396808
B106: LA6 | C106: All causes of disease and injury | D106: 3 | E106: 4 - 45-64 | F106: LA6All causes of disease and injury34 - 45-64 | H106: 1139.097209 | I106: 1141.4 | J106: 2280.497209 | K106: 47.33333333 | L106: 14051.81079 | M106: 13858.40511 | N106: 27910.2159 | O106: 570.3485008
B107: LA7 | C107: All causes of disease and injury | D107: 3 | E107: 4 - 45-64 | F107: LA7All causes of disease and injury34 - 45-64 | H107: 6212.551505 | I107: 5767.26 | J107: 11979.8115 | K107: 230.6666667 | L107: 13747.2205 | M107: 13017.9802 | N107: 26765.2007 | O107: 526.6358088
B108: LA8 | C108: All causes of disease and injury | D108: 3 | E108: 4 - 45-64 | F108: LA8All causes of disease and injury34 - 45-64 | H108: 14309.00176 | I108: 13303.3 | J108: 27612.30176 | K108: 523.6666667 | L108: 13793.08049 | M108: 12843.04192 | N108: 26636.12241 | O108: 506.8939768
B109: LA9 | C109: All causes of disease and injury | D109: 3 | E109: 4 - 45-64 | F109: LA9All causes of disease and injury34 - 45-64 | H109: 9223.544683 | I109: 8086.166667 | J109: 17309.71135 | K109: 327 | L109: 13208.84935 | M109: 11471.42862 | N109: 24680.27797 | O109: 461.6691898
B110: LA10 | C110: All causes of disease and injury | D110: 3 | E110: 4 - 45-64 | F110: LA10All causes of disease and injury34 - 45-64 | H110: 3586.42729 | I110: 3889.643333 | J110: 7476.070623 | K110: 152 | L110: 15052.61744 | M110: 16370.22483 | N110: 31422.84227 | O110: 641.7339653
B111: LA11 | C111: All causes of disease and injury | D111: 3 | E111: 4 - 45-64 | F111: LA11All causes of disease and injury34 - 45-64 | H111: 3424.316889 | I111: 3092.186667 | J111: 6516.503555 | K111: 124 | L111: 13843.54242 | M111: 12594.37801 | N111: 26437.92043 | O111: 507.6134571
B112: LA12 | C112: All causes of disease and injury | D112: 3 | E112: 4 - 45-64 | F112: LA12All causes of disease and injury34 - 45-64 | H112: 3417.93114 | I112: 2698.71 | J112: 6116.64114 | K112: 109 | L112: 12543.24377 | M112: 9948.524388 | N112: 22491.76816 | O112: 402.7341975
B113: LA13 | C113: All causes of disease and injury | D113: 3 | E113: 4 - 45-64 | F113: LA13All causes of disease and injury34 - 45-64 | H113: 5995.440816 | I113: 6193.8 | J113: 12189.24082 | K113: 245.6666667 | L113: 15012.63716 | M113: 15462.99726 | N113: 30475.63442 | O113: 611.8684356
B114: LA14 | C114: All causes of disease and injury | D114: 3 | E114: 4 - 45-64 | F114: LA14All causes of disease and injury34 - 45-64 | H114: 827.8397521 | I114: 738.9 | J114: 1566.739752 | K114: 29.66666667 | L114: 12514.57264 | M114: 11083.12399 | N114: 23597.69663 | O114: 443.546797
B115: LA15 | C115: All causes of disease and injury | D115: 3 | E115: 4 - 45-64 | F115: LA15All causes of disease and injury34 - 45-64 | H115: 5445.116713 | I115: 4486.833333 | J115: 9931.950047 | K115: 176 | L115: 12441.45017 | M115: 10231.61777 | N115: 22673.06795 | O115: 400.2016335
B116: LA16 | C116: All causes of disease and injury | D116: 3 | E116: 4 - 45-64 | F116: LA16All causes of disease and injury34 - 45-64 | H116: 4613.182799 | I116: 3694.026667 | J116: 8307.209466 | K116: 148 | L116: 13059.77584 | M116: 10386.45137 | N116: 23446.22721 | O116: 414.6820289
B117: LA17 | C117: All causes of disease and injury | D117: 3 | E117: 4 - 45-64 | F117: LA17All causes of disease and injury34 - 45-64 | H117: 804.9461702 | I117: 831.3733333 | J117: 1636.319504 | K117: 33 | L117: 12238.39198 | M117: 12555.79814 | N117: 24794.19012 | O117: 497.6163176
B118: LA18 | C118: All causes of disease and injury | D118: 3 | E118: 4 - 45-64 | F118: LA18All causes of disease and injury34 - 45-64 | H118: 4661.101376 | I118: 4175.833333 | J118: 8836.934709 | K118: 165.3333333 | L118: 13915.46731 | M118: 12341.92122 | N118: 26257.38853 | O118: 484.4042698
B119: LA19 | C119: All causes of disease and injury | D119: 3 | E119: 4 - 45-64 | F119: LA19All causes of disease and injury34 - 45-64 | H119: 13253.28071 | I119: 12629.95 | J119: 25883.23071 | K119: 499 | L119: 14144.77056 | M119: 13515.77169 | N119: 27660.54225 | O119: 535.5969507
B120: LA20 | C120: All causes of disease and injury | D120: 3 | E120: 4 - 45-64 | F120: LA20All causes of disease and injury34 - 45-64 | H120: 3262.993143 | I120: 2998.536667 | J120: 6261.52981 | K120: 119.3333333 | L120: 12679.8752 | M120: 11815.94357 | N120: 24495.81877 | O120: 474.3541322
B121: LA21 | C121: All causes of disease and injury | D121: 3 | E121: 4 - 45-64 | F121: LA21All causes of disease and injury34 - 45-64 | H121: 6811.641806 | I121: 7769.283333 | J121: 14580.92514 | K121: 306 | L121: 12485.60295 | M121: 14275.88246 | N121: 26761.4854 | O121: 564.1698093
B122: LA22 | C122: All causes of disease and injury | D122: 3 | E122: 4 - 45-64 | F122: LA22All causes of disease and injury34 - 45-64 | H122: 8893.742763 | I122: 7326.4 | J122: 16220.14276 | K122: 292.3333333 | L122: 11762.3875 | M122: 9753.987956 | N122: 21516.37546 | O122: 390.9021976
B123: LA23 | C123: All causes of disease and injury | D123: 3 | E123: 4 - 45-64 | F123: LA23All causes of disease and injury34 - 45-64 | H123: 3515.014987 | I123: 3359.903333 | J123: 6874.91832 | K123: 137.3333333 | L123: 13409.60983 | M123: 12557.96554 | N123: 25967.57538 | O123: 509.322482
B124: LA24 | C124: All causes of disease and injury | D124: 3 | E124: 4 - 45-64 | F124: LA24All causes of disease and injury34 - 45-64 | H124: 14814.45397 | I124: 15093.51333 | J124: 29907.9673 | K124: 587 | L124: 12569.32125 | M124: 12891.0192 | N124: 25460.34045 | O124: 506.1173201
B125: LA25 | C125: All causes of disease and injury | D125: 3 | E125: 4 - 45-64 | F125: LA25All causes of disease and injury34 - 45-64 | H125: 7227.472851 | I125: 7146.883333 | J125: 14374.35618 | K125: 283.3333333 | L125: 14148.82818 | M125: 14155.23872 | N125: 28304.0669 | O125: 565.8953812
B126: LA26 | C126: All causes of disease and injury | D126: 3 | E126: 4 - 45-64 | F126: LA26All causes of disease and injury34 - 45-64 | H126: 4063.363489 | I126: 4456.996667 | J126: 8520.360155 | K126: 176 | L126: 15336.52133 | M126: 16897.87382 | N126: 32234.39515 | O126: 669.1526987
B127: LA27 | C127: All causes of disease and injury | D127: 3 | E127: 4 - 45-64 | F127: LA27All causes of disease and injury34 - 45-64 | H127: 6897.960906 | I127: 5742.723333 | J127: 12640.68424 | K127: 226.6666667 | L127: 13744.05054 | M127: 11763.92083 | N127: 25507.97136 | O127: 472.27989
B128: LA28 | C128: All causes of disease and injury | D128: 3 | E128: 4 - 45-64 | F128: LA28All causes of disease and injury34 - 45-64 | H128: 4347.493483 | I128: 4164.203333 | J128: 8511.696816 | K128: 166.3333333 | L128: 12969.12415 | M128: 12339.52603 | N128: 25308.65017 | O128: 491.5750651
B129: LA29 | C129: All causes of disease and injury | D129: 3 | E129: 4 - 45-64 | F129: LA29All causes of disease and injury34 - 45-64 | H129: 5384.219096 | I129: 6676.046667 | J129: 12060.26576 | K129: 263.6666667 | L129: 14874.83777 | M129: 18447.05714 | N129: 33321.89491 | O129: 731.0824978
B130: LA30 | C130: All causes of disease and injury | D130: 3 | E130: 4 - 45-64 | F130: LA30All causes of disease and injury34 - 45-64 | H130: 14249.03559 | I130: 14935.52 | J130: 29184.55559 | K130: 585.6666667 | L130: 14934.16735 | M130: 15852.19979 | N130: 30786.36714 | O130: 627.8719308
B131: LA31 | C131: All causes of disease and injury | D131: 3 | E131: 4 - 45-64 | F131: LA31All causes of disease and injury34 - 45-64 | H131: 3811.13883 | I131: 3014.556667 | J131: 6825.695497 | K131: 121.6666667 | L131: 11929.99606 | M131: 9429.868983 | N131: 21359.86505 | O131: 380.7580675
B132: LA32 | C132: All causes of disease and injury | D132: 3 | E132: 4 - 45-64 | F132: LA32All causes of disease and injury34 - 45-64 | H132: 23954.52407 | I132: 29151.17667 | J132: 53105.70073 | K132: 1135 | L132: 16028.20466 | M132: 19764.46443 | N132: 35792.66909 | O132: 779.5932458
B133: Scot | C133: All causes of disease and injury | D133: 3 | E133: 4 - 45-64 | F133: ScotAll causes of disease and injury34 - 45-64 | H133: 204822.2997 | I133: 200259.67 | J133: 405081.9697 | K133: 7907.666667 | L133: 13750.03823 | M133: 13497.55479 | N133: 27247.59302 | O133: 535.2063964
B134: LA1 | C134: All causes of disease and injury | D134: 3 | E134: 5 - 65 and over | F134: LA1All causes of disease and injury35 - 65 and over | H134: 1885.1884 | I134: 3670.403333 | J134: 5555.591733 | K134: 419 | L134: 19554.93969 | M134: 39253.50912 | N134: 58808.4488 | O134: 4854.35901
B135: LA2 | C135: All causes of disease and injury | D135: 3 | E135: 5 - 65 and over | F135: LA2All causes of disease and injury35 - 65 and over | H135: 7105.844953 | I135: 13055.94 | J135: 20161.78495 | K135: 1616.333333 | L135: 19373.95626 | M135: 35965.4365 | N135: 55339.39276 | O135: 4603.262417
B136: LA3 | C136: All causes of disease and injury | D136: 3 | E136: 5 - 65 and over | F136: LA3All causes of disease and injury35 - 65 and over | H136: 4699.636427 | I136: 9981.74 | J136: 14681.37643 | K136: 1160 | L136: 19934.46993 | M136: 43022.32911 | N136: 62956.79903 | O136: 5285.78596
B137: LA4 | C137: All causes of disease and injury | D137: 3 | E137: 5 - 65 and over | F137: LA4All causes of disease and injury35 - 65 and over | H137: 3808.495392 | I137: 6842.833333 | J137: 10651.32873 | K137: 868.6666667 | L137: 18797.64453 | M137: 34111.75503 | N137: 52909.39957 | O137: 4458.327283
B138: LA5 | C138: All causes of disease and injury | D138: 3 | E138: 5 - 65 and over | F138: LA5All causes of disease and injury35 - 65 and over | H138: 3291.666965 | I138: 5861.233333 | J138: 9152.900298 | K138: 768.3333333 | L138: 17785.25782 | M138: 31514.47796 | N138: 49299.73579 | O138: 4048.490201
B139: LA6 | C139: All causes of disease and injury | D139: 3 | E139: 5 - 65 and over | F139: LA6All causes of disease and injury35 - 65 and over | H139: 1307.238723 | I139: 2391.09 | J139: 3698.328723 | K139: 292.3333333 | L139: 19733.86192 | M139: 36229.14891 | N139: 55963.01083 | O139: 4455.972729
B140: LA7 | C140: All causes of disease and injury | D140: 3 | E140: 5 - 65 and over | F140: LA7All causes of disease and injury35 - 65 and over | H140: 5586.79065 | I140: 11124.51667 | J140: 16711.30732 | K140: 1312.333333 | L140: 19442.17134 | M140: 39465.82865 | N140: 58907.99999 | O140: 4877.153134
B141: LA8 | C141: All causes of disease and injury | D141: 3 | E141: 5 - 65 and over | F141: LA8All causes of disease and injury35 - 65 and over | H141: 13999.96306 | I141: 26638.23667 | J141: 40638.19973 | K141: 3223.333333 | L141: 19258.95746 | M141: 37110.4772 | N141: 56369.43465 | O141: 4665.051145
B142: LA9 | C142: All causes of disease and injury | D142: 3 | E142: 5 - 65 and over | F142: LA9All causes of disease and injury35 - 65 and over | H142: 9367.385829 | I142: 16096.71 | J142: 25464.09583 | K142: 1986 | L142: 18942.72383 | M142: 33105.66861 | N142: 52048.39244 | O142: 4265.733417
B143: LA10 | C143: All causes of disease and injury | D143: 3 | E143: 5 - 65 and over | F143: LA10All causes of disease and injury35 - 65 and over | H143: 3201.407708 | I143: 6711.043333 | J143: 9912.451042 | K143: 800.3333333 | L143: 19870.60322 | M143: 41898.00264 | N143: 61768.60586 | O143: 5066.535303
B144: LA11 | C144: All causes of disease and injury | D144: 3 | E144: 5 - 65 and over | F144: LA11All causes of disease and injury35 - 65 and over | H144: 3117.577134 | I144: 5912.166667 | J144: 9029.743801 | K144: 706 | L144: 19389.36339 | M144: 37635.58632 | N144: 57024.94971 | O144: 4786.469651
B145: LA12 | C145: All causes of disease and injury | D145: 3 | E145: 5 - 65 and over | F145: LA12All causes of disease and injury35 - 65 and over | H145: 3622.899725 | I145: 6902.73 | J145: 10525.62973 | K145: 842.3333333 | L145: 18486.25516 | M145: 35523.42257 | N145: 54009.67773 | O145: 4482.082504
B146: LA13 | C146: All causes of disease and injury | D146: 3 | E146: 5 - 65 and over | F146: LA13All causes of disease and injury35 - 65 and over | H146: 5728.236883 | I146: 11462.93333 | J146: 17191.17022 | K146: 1331.666667 | L146: 19849.22708 | M146: 40447.84079 | N146: 60297.06787 | O146: 4954.597087
B147: LA14 | C147: All causes of disease and injury | D147: 3 | E147: 5 - 65 and over | F147: LA14All causes of disease and injury35 - 65 and over | H147: 909.048011 | I147: 1389.863333 | J147: 2298.911344 | K147: 177.3333333 | L147: 18537.43404 | M147: 29043.42811 | N147: 47580.86215 | O147: 3876.344523
B148: LA15 | C148: All causes of disease and injury | D148: 3 | E148: 5 - 65 and over | F148: LA15All causes of disease and injury35 - 65 and over | H148: 6185.055517 | I148: 10665.61667 | J148: 16850.67218 | K148: 1356.666667 | L148: 18247.63341 | M148: 31436.73921 | N148: 49684.37262 | O148: 3996.78658
B149: LA16 | C149: All causes of disease and injury | D149: 3 | E149: 5 - 65 and over | F149: LA16All causes of disease and injury35 - 65 and over | H149: 5055.062782 | I149: 8923.073333 | J149: 13978.13612 | K149: 1121.333333 | L149: 18786.29264 | M149: 33775.54538 | N149: 52561.83802 | O149: 4429.280506
B150: LA17 | C150: All causes of disease and injury | D150: 3 | E150: 5 - 65 and over | F150: LA17All causes of disease and injury35 - 65 and over | H150: 790.1503954 | I150: 1560.566667 | J150: 2350.717062 | K150: 195.6666667 | L150: 18292.28917 | M150: 37068.29395 | N150: 55360.58312 | O150: 4909.028415
B151: LA18 | C151: All causes of disease and injury | D151: 3 | E151: 5 - 65 and over | F151: LA18All causes of disease and injury35 - 65 and over | H151: 5219.344763 | I151: 9847.253333 | J151: 15066.5981 | K151: 1224 | L151: 19256.326 | M151: 36589.00338 | N151: 55845.32938 | O151: 4626.226167
B152: LA19 | C152: All causes of disease and injury | D152: 3 | E152: 5 - 65 and over | F152: LA19All causes of disease and injury35 - 65 and over | H152: 11558.37514 | I152: 23488.41667 | J152: 35046.79181 | K152: 2806.666667 | L152: 19652.46273 | M152: 40569.33484 | N152: 60221.79757 | O152: 5049.1374
B153: LA20 | C153: All causes of disease and injury | D153: 3 | E153: 5 - 65 and over | F153: LA20All causes of disease and injury35 - 65 and over | H153: 3192.542908 | I153: 6156.573333 | J153: 9349.116242 | K153: 759.6666667 | L153: 18476.64198 | M153: 36017.97466 | N153: 54494.61664 | O153: 4606.82703
B154: LA21 | C154: All causes of disease and injury | D154: 3 | E154: 5 - 65 and over | F154: LA21All causes of disease and injury35 - 65 and over | H154: 6408.187836 | I154: 13900.00333 | J154: 20308.19117 | K154: 1717.333333 | L154: 18433.46468 | M154: 39756.58803 | N154: 58190.05271 | O154: 4932.725243
B155: LA22 | C155: All causes of disease and injury | D155: 3 | E155: 5 - 65 and over | F155: LA22All causes of disease and injury35 - 65 and over | H155: 8468.756566 | I155: 15860.01 | J155: 24328.76657 | K155: 1982.666667 | L155: 18086.72838 | M155: 34678.01606 | N155: 52764.74444 | O155: 4544.704897
B156: LA23 | C156: All causes of disease and injury | D156: 3 | E156: 5 - 65 and over | F156: LA23All causes of disease and injury35 - 65 and over | H156: 4066.881448 | I156: 7481.46 | J156: 11548.34145 | K156: 934.6666667 | L156: 19092.46186 | M156: 35759.80635 | N156: 54852.2682 | O156: 4658.605035
B157: LA24 | C157: All causes of disease and injury | D157: 3 | E157: 5 - 65 and over | F157: LA24All causes of disease and injury35 - 65 and over | H157: 13888.66527 | I157: 26724.59 | J157: 40613.25527 | K157: 3458 | L157: 18246.08286 | M157: 34897.89737 | N157: 53143.98023 | O157: 4412.694411
B158: LA25 | C158: All causes of disease and injury | D158: 3 | E158: 5 - 65 and over | F158: LA25All causes of disease and injury35 - 65 and over | H158: 6307.059825 | I158: 13700.68333 | J158: 20007.74316 | K158: 1631.666667 | L158: 19454.74403 | M158: 42701.29092 | N158: 62156.03495 | O158: 5244.785678
B159: LA26 | C159: All causes of disease and injury | D159: 3 | E159: 5 - 65 and over | F159: LA26All causes of disease and injury35 - 65 and over | H159: 3242.08635 | I159: 7177.923333 | J159: 10420.00968 | K159: 833.3333333 | L159: 20241.2612 | M159: 45448.43215 | N159: 65689.69335 | O159: 5502.772361
B160: LA27 | C160: All causes of disease and injury | D160: 3 | E160: 5 - 65 and over | F160: LA27All causes of disease and injury35 - 65 and over | H160: 5465.16765 | I160: 10628.57667 | J160: 16093.74432 | K160: 1204 | L160: 19539.53901 | M160: 39146.93272 | N160: 58686.47174 | O160: 4836.395404
B161: LA28 | C161: All causes of disease and injury | D161: 3 | E161: 5 - 65 and over | F161: LA28All causes of disease and injury35 - 65 and over | H161: 4927.678048 | I161: 9253.506667 | J161: 14181.18471 | K161: 1160 | L161: 18738.89885 | M161: 35331.67643 | N161: 54070.57529 | O161: 4480.533727
B162: LA29 | C162: All causes of disease and injury | D162: 3 | E162: 5 - 65 and over | F162: LA29All causes of disease and injury35 - 65 and over | H162: 5136.495415 | I162: 10919.29333 | J162: 16055.78875 | K162: 1327 | L162: 19693.65764 | M162: 41758.30634 | N162: 61451.96398 | O162: 5031.616408
B163: LA30 | C163: All causes of disease and injury | D163: 3 | E163: 5 - 65 and over | F163: LA30All causes of disease and injury35 - 65 and over | H163: 11233.65703 | I163: 24649.19667 | J163: 35882.8537 | K163: 2756.666667 | L163: 20201.80749 | M163: 45289.24709 | N163: 65491.05458 | O163: 5480.6417
B164: LA31 | C164: All causes of disease and injury | D164: 3 | E164: 5 - 65 and over | F164: LA31All causes of disease and injury35 - 65 and over | H164: 4203.471985 | I164: 7167.146667 | J164: 11370.61865 | K164: 923.3333333 | L164: 17921.26718 | M164: 30611.18266 | N164: 48532.44984 | O164: 3967.334418
B165: LA32 | C165: All causes of disease and injury | D165: 3 | E165: 5 - 65 and over | F165: LA32All causes of disease and injury35 - 65 and over | H165: 17140.3415 | I165: 41817.93333 | J165: 58958.27483 | K165: 4835.666667 | L165: 20459.99037 | M165: 50051.93458 | N165: 70511.92495 | O165: 5818.048093
B166: Scot | C166: All causes of disease and injury | D166: 3 | E166: 5 - 65 and over | F166: ScotAll causes of disease and injury35 - 65 and over | H166: 190120.3603 | I166: 377963.2633 | J166: 568083.6236 | K166: 45732.33333 | L166: 19192.81872 | M166: 38522.79068 | N166: 57715.6094 | O166: 4797.362245
B167: LA1 | C167: HIV/AIDS and tuberculosis | D167: 3 | E167: 1 - Under15 | F167: LA1HIV/AIDS and tuberculosis31 - Under15 | H167: 0.08603423484 | I167: 0 | J167: 0.08603423484 | K167: 0 | L167: 0.999249224 | M167: 0 | N167: 0.999249224 | O167: 0
B168: LA2 | C168: HIV/AIDS and tuberculosis | D168: 3 | E168: 1 - Under15 | F168: LA2HIV/AIDS and tuberculosis31 - Under15 | H168: 0.2396020051 | I168: 0 | J168: 0.2396020051 | K168: 0 | L168: 1.089095807 | M168: 0 | N168: 1.089095807 | O168: 0
B169: LA3 | C169: HIV/AIDS and tuberculosis | D169: 3 | E169: 1 - Under15 | F169: LA3HIV/AIDS and tuberculosis31 - Under15 | H169: 0.209619779 | I169: 0 | J169: 0.209619779 | K169: 0 | L169: 1.032341839 | M169: 0 | N169: 1.032341839 | O169: 0
B170: LA4 | C170: HIV/AIDS and tuberculosis | D170: 3 | E170: 1 - Under15 | F170: LA4HIV/AIDS and tuberculosis31 - Under15 | H170: 0.1757128354 | I170: 0 | J170: 0.1757128354 | K170: 0 | L170: 0.9773290514 | M170: 0 | N170: 0.9773290514 | O170: 0
B171: LA5 | C171: HIV/AIDS and tuberculosis | D171: 3 | E171: 1 - Under15 | F171: LA5HIV/AIDS and tuberculosis31 - Under15 | H171: 0.1341948488 | I171: 0 | J171: 0.1341948488 | K171: 0 | L171: 0.7747257064 | M171: 0 | N171: 0.7747257064 | O171: 0
B172: LA6 | C172: HIV/AIDS and tuberculosis | D172: 3 | E172: 1 - Under15 | F172: LA6HIV/AIDS and tuberculosis31 - Under15 | H172: 0.05182608504 | I172: 0 | J172: 0.05182608504 | K172: 0 | L172: 1.290680945 | M172: 0 | N172: 1.290680945 | O172: 0
B173: LA7 | C173: HIV/AIDS and tuberculosis | D173: 3 | E173: 1 - Under15 | F173: LA7HIV/AIDS and tuberculosis31 - Under15 | H173: 0.2598119131 | I173: 0 | J173: 0.2598119131 | K173: 0 | L173: 0.9649058555 | M173: 0 | N173: 0.9649058555 | O173: 0
B174: LA8 | C174: HIV/AIDS and tuberculosis | D174: 3 | E174: 1 - Under15 | F174: LA8HIV/AIDS and tuberculosis31 - Under15 | H174: 0.6116401469 | I174: 24.22672862 | J174: 24.83836877 | K174: 0.3345724907 | L174: 1.000459275 | M174: 39.08031116 | N174: 40.08077044 | O174: 0.539703099
B175: LA9 | C175: HIV/AIDS and tuberculosis | D175: 3 | E175: 1 - Under15 | F175: LA9HIV/AIDS and tuberculosis31 - Under15 | H175: 0.3976371231 | I175: 0.0933952912 | J175: 0.4910324143 | K175: 0.001239157373 | L175: 1.063672055 | M175: 0.2494106008 | N175: 1.313082655 | O175: 0.003309149539
B176: LA10 | C176: HIV/AIDS and tuberculosis | D176: 3 | E176: 1 - Under15 | F176: LA10HIV/AIDS and tuberculosis31 - Under15 | H176: 0.1235870688 | I176: 0 | J176: 0.1235870688 | K176: 0 | L176: 1.025281523 | M176: 0 | N176: 1.025281523 | O176: 0
B177: LA11 | C177: HIV/AIDS and tuberculosis | D177: 3 | E177: 1 - Under15 | F177: LA11HIV/AIDS and tuberculosis31 - Under15 | H177: 0.1611576263 | I177: 0 | J177: 0.1611576263 | K177: 0 | L177: 0.9812383087 | M177: 0 | N177: 0.9812383087 | O177: 0
B178: LA12 | C178: HIV/AIDS and tuberculosis | D178: 3 | E178: 1 - Under15 | F178: LA12HIV/AIDS and tuberculosis31 - Under15 | H178: 0.1559244065 | I178: 0 | J178: 0.1559244065 | K178: 0 | L178: 1.012835567 | M178: 0 | N178: 1.012835567 | O178: 0
B179: LA13 | C179: HIV/AIDS and tuberculosis | D179: 3 | E179: 1 - Under15 | F179: LA13HIV/AIDS and tuberculosis31 - Under15 | H179: 0.2249781435 | I179: 0 | J179: 0.2249781435 | K179: 0 | L179: 1.040039264 | M179: 0 | N179: 1.040039264 | O179: 0
B180: LA14 | C180: HIV/AIDS and tuberculosis | D180: 3 | E180: 1 - Under15 | F180: LA14HIV/AIDS and tuberculosis31 - Under15 | H180: 0.03461080915 | I180: 0 | J180: 0.03461080915 | K180: 0 | L180: 1.060153767 | M180: 0 | N180: 1.060153767 | O180: 0
B181: LA15 | C181: HIV/AIDS and tuberculosis | D181: 3 | E181: 1 - Under15 | F181: LA15HIV/AIDS and tuberculosis31 - Under15 | H181: 0.2282927854 | I181: 0 | J181: 0.2282927854 | K181: 0 | L181: 0.9997506529 | M181: 0 | N181: 0.9997506529 | O181: 0
B182: LA16 | C182: HIV/AIDS and tuberculosis | D182: 3 | E182: 1 - Under15 | F182: LA16HIV/AIDS and tuberculosis31 - Under15 | H182: 0.1952255641 | I182: 0 | J182: 0.1952255641 | K182: 0 | L182: 1.085223561 | M182: 0 | N182: 1.085223561 | O182: 0
B183: LA17 | C183: HIV/AIDS and tuberculosis | D183: 3 | E183: 1 - Under15 | F183: LA17HIV/AIDS and tuberculosis31 - Under15 | H183: 0.04510437971 | I183: 0 | J183: 0.04510437971 | K183: 0 | L183: 1.121599674 | M183: 0 | N183: 1.121599674 | O183: 0
B184: LA18 | C184: HIV/AIDS and tuberculosis | D184: 3 | E184: 1 - Under15 | F184: LA18HIV/AIDS and tuberculosis31 - Under15 | H184: 0.1699650859 | I184: 0 | J184: 0.1699650859 | K184: 0 | L184: 1.022642224 | M184: 0 | N184: 1.022642224 | O184: 0
B185: LA19 | C185: HIV/AIDS and tuberculosis | D185: 3 | E185: 1 - Under15 | F185: LA19HIV/AIDS and tuberculosis31 - Under15 | H185: 0.527015787 | I185: 0 | J185: 0.527015787 | K185: 0 | L185: 1.009837608 | M185: 0 | N185: 1.009837608 | O185: 0
B186: LA20 | C186: HIV/AIDS and tuberculosis | D186: 3 | E186: 1 - Under15 | F186: LA20HIV/AIDS and tuberculosis31 - Under15 | H186: 0.1353954701 | I186: 0 | J186: 0.1353954701 | K186: 0 | L186: 0.9423570701 | M186: 0 | N186: 0.9423570701 | O186: 0
B187: LA21 | C187: HIV/AIDS and tuberculosis | D187: 3 | E187: 1 - Under15 | F187: LA21HIV/AIDS and tuberculosis31 - Under15 | H187: 0.2995614319 | I187: 0 | J187: 0.2995614319 | K187: 0 | L187: 0.8773071697 | M187: 0 | N187: 0.8773071697 | O187: 0
B188: LA22 | C188: HIV/AIDS and tuberculosis | D188: 3 | E188: 1 - Under15 | F188: LA22HIV/AIDS and tuberculosis31 - Under15 | H188: 0.4190477503 | I188: 0.0933952912 | J188: 0.5124430415 | K188: 0.001239157373 | L188: 0.9008939697 | M188: 0.1950155586 | N188: 1.095909528 | O188: 0.002587442731
B189: LA23 | C189: HIV/AIDS and tuberculosis | D189: 3 | E189: 1 - Under15 | F189: LA23HIV/AIDS and tuberculosis31 - Under15 | H189: 0.1365562229 | I189: 0 | J189: 0.1365562229 | K189: 0 | L189: 1.10461656 | M189: 0 | N189: 1.10461656 | O189: 0
B190: LA24 | C190: HIV/AIDS and tuberculosis | D190: 3 | E190: 1 - Under15 | F190: LA24HIV/AIDS and tuberculosis31 - Under15 | H190: 0.6718645477 | I190: 2.362576321 | J190: 3.034440869 | K190: 0.03154218768 | L190: 0.8804152009 | M190: 2.820809664 | N190: 3.701224865 | O190: 0.03774613717
B191: LA25 | C191: HIV/AIDS and tuberculosis | D191: 3 | E191: 1 - Under15 | F191: LA25HIV/AIDS and tuberculosis31 - Under15 | H191: 0.2826109154 | I191: 0 | J191: 0.2826109154 | K191: 0 | L191: 0.9939457481 | M191: 0 | N191: 0.9939457481 | O191: 0
B192: LA26 | C192: HIV/AIDS and tuberculosis | D192: 3 | E192: 1 - Under15 | F192: LA26HIV/AIDS and tuberculosis31 - Under15 | H192: 0.1581038375 | I192: 0 | J192: 0.1581038375 | K192: 0 | L192: 1.049071606 | M192: 0 | N192: 1.049071606 | O192: 0
B193: LA27 | C193: HIV/AIDS and tuberculosis | D193: 3 | E193: 1 - Under15 | F193: LA27HIV/AIDS and tuberculosis31 - Under15 | H193: 0.3307438203 | I193: 0 | J193: 0.3307438203 | K193: 0 | L193: 0.9916831545 | M193: 0 | N193: 0.9916831545 | O193: 0
B194: LA28 | C194: HIV/AIDS and tuberculosis | D194: 3 | E194: 1 - Under15 | F194: LA28HIV/AIDS and tuberculosis31 - Under15 | H194: 0.1884922835 | I194: 0 | J194: 0.1884922835 | K194: 0 | L194: 1.033608041 | M194: 0 | N194: 1.033608041 | O194: 0
B195: LA29 | C195: HIV/AIDS and tuberculosis | D195: 3 | E195: 1 - Under15 | F195: LA29HIV/AIDS and tuberculosis31 - Under15 | H195: 0.2298577778 | I195: 0 | J195: 0.2298577778 | K195: 0 | L195: 0.9907352381 | M195: 0 | N195: 0.9907352381 | O195: 0
B196: LA30 | C196: HIV/AIDS and tuberculosis | D196: 3 | E196: 1 - Under15 | F196: LA30HIV/AIDS and tuberculosis31 - Under15 | H196: 0.6195471225 | I196: 0 | J196: 0.6195471225 | K196: 0 | L196: 1.037228723 | M196: 0 | N196: 1.037228723 | O196: 0
B197: LA31 | C197: HIV/AIDS and tuberculosis | D197: 3 | E197: 1 - Under15 | F197: LA31HIV/AIDS and tuberculosis31 - Under15 | H197: 0.1363399228 | I197: 0 | J197: 0.1363399228 | K197: 0 | L197: 0.7770196753 | M197: 0 | N197: 0.7770196753 | O197: 0
B198: LA32 | C198: HIV/AIDS and tuberculosis | D198: 3 | E198: 1 - Under15 | F198: LA32HIV/AIDS and tuberculosis31 - Under15 | H198: 1.006527207 | I198: 0 | J198: 1.006527207 | K198: 0 | L198: 1.039096141 | M198: 0 | N198: 1.039096141 | O198: 0
B199: Scot | C199: HIV/AIDS and tuberculosis | D199: 3 | E199: 1 - Under15 | F199: ScotHIV/AIDS and tuberculosis31 - Under15 | H199: 8.646588937 | I199: 26.77609553 | J199: 35.42268446 | K199: 0.3685929931 | L199: 0.9888958669 | M199: 3.064622728 | N199: 4.053518595 | O199: 0.04219637987
B200: LA1 | C200: HIV/AIDS and tuberculosis | D200: 3 | E200: 2 - 15-24 | F200: LA1HIV/AIDS and tuberculosis32 - 15-24 | H200: 0.2081954608 | I200: 0 | J200: 0.2081954608 | K200: 0 | L200: 3.48881251 | M200: 0 | N200: 3.48881251 | O200: 0
... 4300 more rows

Sheet Lookups (hidden)
B1: No comparator area chosen
B2: Scotland | C2: Scot | D2: Scotland | E2: Scotland | J2: AL | K2: All causes of disease and injury | Q2: Both sexes | R2: 3
A3: LA21 | B3: Aberdeen City | C3: LA21 | D3: S12000005 | E3: LA1 | G3: 1 - Under15 | J3: 8 | K3: Cancer | L3: 8 | N3: DALYs | O3: 5 | Q3: Men | R3: 1 | U3: Age-standardised rate per 100,000 population
A4: LA22 | B4: Aberdeenshire | C4: LA22 | D4: S12000006 | E4: LA2 | G4: 2 - 15-24 | J4: 9 | K4: Cardiovascular diseases | L4: 9 | N4: YLD | O4: 3 | Q4: Women | R4: 2 | U4: Number
A5: LA28 | B5: Angus | C5: LA28 | D5: S12000008 | E5: LA3 | G5: 3 - 25-44 | J5: 13 | K5: Neurological disorders | L5: 13 | N5: YLL | O5: 4
A6: LA23 | B6: Argyll and Bute | C6: LA23 | D6: S12000010 | E6: LA4 | G6: 4 - 45-64 | J6: 14 | K6: Mental health disorders | L6: 14 | N6: Deaths | O6: 6
A7: LA24 | B7: City of Edinburgh | C7: LA24 | D7: S12000011 | E7: LA5 | G7: 5 - 65 and over | J7: 16 | K7: Musculoskeletal disorders | L7: 16 | N7: DALYs | O7: 9
A8: LA1 | B8: Clackmannanshire | C8: LA1 | D8: S12000013 | E8: LA6 | J8: 17 | K8: Other non-communicable diseases | L8: 17 | N8: YLD | O8: 7
A9: LA2 | B9: Dumfries and Galloway | C9: LA2 | D9: S12000014 | E9: LA7 | J9: 15 | K9: Diabetes, urogenital, blood, and endocrine diseases | L9: 15 | N9: YLL | O9: 8
A10: LA29 | B10: Dundee City | C10: LA29 | D10: S12000015 | E10: LA8 | J10: XX | K10: Substance use disorders | L10: XX | N10: Deaths | O10: 10
A11: LA3 | B11: East Ayrshire | C11: LA3 | D11: S12000017 | E11: LA9 | J11: 10 | K11: Chronic respiratory diseases | L11: 10
A12: LA31 | B12: East Dunbartonshire | C12: LA31 | D12: S12000018 | E12: LA10 | J12: 12 | K12: Digestive diseases | L12: 12
A13: LA4 | B13: East Lothian | C13: LA4 | D13: S12000019 | E13: LA11 | J13: 2 | K13: Diarrhoea, lower respiratory, and other common infectious diseases | L13: 2 | Q13: 2 | R13: 1 - Under15 | S13: =Q13&R13 -> 21 - Under15 | T13: 420278
A14: LA5 | B14: East Renfrewshire | C14: LA5 | D14: S12000020 | E14: LA12 | J14: 20 | K14: Suicide, self-harm and interpersonal violence injuries | L14: 20 | Q14: 2 | R14: 2 - 15-24 | S14: =Q14&R14 -> 22 - 15-24 | T14: 328325
A15: LA7 | B15: Falkirk | C15: LA7 | D15: S12000021 | E15: LA13 | J15: 11 | K15: Cirrhosis and other chronic liver diseases | L15: 11 | Q15: 2 | R15: 3 - 25-44 | S15: 23 - 25-44 | T15: 706777
A16: LA8 | B16: Fife | C16: LA8 | D16: S12000023 | E16: LA14 | J16: 19 | K16: Unintentional injuries | L16: 19 | Q16: 2 | R16: 4 - 45-64 | S16: 24 - 45-64 | T16: 767321
A17: LA32 | B17: Glasgow City | C17: LA32 | D17: S12000024 | E17: LA15 | J17: 18 | K17: Transport injuries | L17: 18 | Q17: 2 | R17: 5 - 65 and over | S17: 25 - 65 and over | T17: 554496
A18: LA9 | B18: Highland | C18: LA9 | D18: S12000026 | E18: LA16 | J18: 5 | K18: Neonatal disorders | L18: 5 | Q18: 1 | R18: 1 - Under15 | S18: 11 - Under15 | T18: 440200
A19: LA10 | B19: Inverclyde | C19: LA10 | D19: S12000027 | E19: LA17 | J19: 6 | K19: Nutritional deficiencies | L19: 6 | Q19: 1 | R19: 2 - 15-24 | S19: 12 - 15-24 | T19: 334302
A20: LA11 | B20: Midlothian | C20: LA11 | D20: S12000028 | E20: LA18 | J20: 22 | K20: Unknown and other causes of injury | L20: 22 | Q20: 1 | R20: 3 - 25-44 | S20: 13 - 25-44 | T20: 684651
A21: LA12 | B21: Moray | C21: LA12 | D21: S12000029 | E21: LA19 | J21: 1 | K21: HIV/AIDS and tuberculosis | L21: 1 | Q21: 1 | R21: 4 - 45-64 | S21: 14 - 45-64 | T21: 723994
A22: LA6 | B22: Na h-Eileanan Siar | C22: LA6 | D22: S12000030 | E22: LA20 | J22: 7 | K22: Other communicable, maternal, neonatal, and nutritional diseases | L22: 7 | Q22: 1 | R22: 5 - 65 and over | S22: 15 - 65 and over | T22: 444356
A23: LA13 | B23: North Ayrshire | C23: LA13 | D23: S12000033 | E23: LA21 | J23: 4 | K23: Maternal disorders | L23: 4 | Q23: 3 | R23: 1 - Under15 | S23: 31 - Under15 | T23: 860478
A24: LA30 | B24: North Lanarkshire | C24: LA30 | D24: S12000034 | E24: LA22 | Q24: 3 | R24: 2 - 15-24 | S24: 32 - 15-24 | T24: 662627
A25: LA14 | B25: Orkney Islands | C25: LA14 | D25: S12000035 | E25: LA23 | Q25: 3 | R25: 3 - 25-44 | S25: 33 - 25-44 | T25: 1391428
A26: LA15 | B26: Perth and Kinross | C26: LA15 | D26: S12000036 | E26: LA24 | Q26: 3 | R26: 4 - 45-64 | S26: 34 - 45-64 | T26: 1491315
A27: LA25 | B27: Renfrewshire | C27: LA25 | D27: S12000038 | E27: LA25 | Q27: 3 | R27: 5 - 65 and over | S27: 35 - 65 and over | T27: 998852
A28: LA16 | B28: Scottish Borders | C28: LA16 | D28: S12000039 | E28: LA26 | Q28: 2 | R28: ALL | S28: 2ALL | T28: 2777197
A29: LA17 | B29: Shetland Islands | C29: LA17 | D29: S12000040 | E29: LA27 | Q29: 1 | R29: ALL | S29: 1ALL | T29: 2627503
A30: LA18 | B30: South Ayrshire | C30: LA18 | D30: S12000041 | E30: LA28 | Q30: 3 | R30: ALL | S30: 3ALL | T30: 5404700
A31: LA19 | B31: South Lanarkshire | C31: LA19 | D31: S12000042 | E31: LA29
A32: LA20 | B32: Stirling | C32: LA20 | D32: S12000044 | E32: LA30
A33: LA26 | B33: West Dunbartonshire | C33: LA26 | D33: S12000045 | E33: LA31
A34: LA27 | B34: West Lothian | C34: LA27 | D34: S12000046 | E34: LA32

Sheet LE (hidden)
A3: Men | B3: Scotland | C3: 77.08914633 | D3: [77.0 - 77.2] | E3: 81.14095243 | F3: [81.1 - 81.2]
A4: Men | B4: Aberdeen City | C4: 76.40306606 | D4: [75.9 - 76.9] | E4: 80.84108776 | F4: [80.4 - 81.3] | I4: Glasgow City | J4: =ROUND(VLOOKUP($I4,$B$4:$F$35,2,FALSE),1) -> 73.4 | K4: =VLOOKUP($I4,$B$4:$F$35,3,FALSE) -> [73.1 - 73.7] | L4: =ROUND(VLOOKUP($I4,$B$4:$F$35,4,FALSE),1) -> 78.9 | M4: =VLOOKUP($I4,$B$4:$F$35,5,FALSE) -> [78.7 - 79.2]
A5: Men | B5: Aberdeenshire | C5: 79.24279131 | D5: [78.8 - 79.7] | E5: 82.4475262 | F5: [82.1 - 82.8] | I5: West Dunbartonshire | J5: =ROUND(VLOOKUP($I5,$B$4:$F$35,2,FALSE),1) -> 74.7 | K5: =VLOOKUP($I5,$B$4:$F$35,3,FALSE) -> [74.0 - 75.5] | L5: =ROUND(VLOOKUP($I5,$B$4:$F$35,4,FALSE),1) -> 78.8 | M5: =VLOOKUP($I5,$B$4:$F$35,5,FALSE) -> [78.2 - 79.5]
A6: Men | B6: Angus | C6: 78.51353913 | D6: [77.9 - 79.1] | E6: 81.78156178 | F6: [81.2 - 82.4] | I6: Dundee City | J6: 74.5 | K6: [73.9 - 75.1] | L6: 79.6 | M6: [79.0 - 80.2]
A7: Men | B7: Argyll and Bute | C7: 77.36690672 | D7: [76.6 - 78.1] | E7: 82.45337281 | F7: [81.8 - 83.1] | I7: North Lanarkshire | J7: 75.4 | K7: [75.0 - 75.8] | L7: 79.6 | M7: [79.3 - 79.9]
A8: Men | B8: City of Edinburgh | C8: 77.98575285 | D8: [77.7 - 78.3] | E8: 82.24300111 | F8: [81.9 - 82.5] | I8: Inverclyde | J8: 75.6 | K8: [74.9 - 76.4] | L8: 80.1 | M8: [79.4 - 80.8]
A9: Men | B9: Clackmannanshire | C9: 76.72489859 | D9: [75.7 - 77.7] | E9: 80.58934504 | F9: [79.7 - 81.5] | I9: North Ayrshire | J9: 75.9 | K9: [75.3 - 76.5] | L9: 80.5 | M9: [80.0 - 81.1]
A10: Men | B10: Dumfries and Galloway | C10: 77.8416113 | D10: [77.3 - 78.4] | E10: 81.81943443 | F10: [81.3 - 82.3] | I10: East Ayrshire | J10: 76.5 | K10: [75.8 - 77.1] | L10: 79.8 | M10: [79.3 - 80.4]
A11: Men | B11: Dundee City | C11: 74.4968017 | D11: [73.9 - 75.1] | E11: 79.62916785 | F11: [79.0 - 80.2] | I11: Renfrewshire | J11: 76.4 | K11: [75.9 - 76.9] | L11: 80.2 | M11: [79.7 - 80.7]
A12: Men | B12: East Ayrshire | C12: 76.46933321 | D12: [75.8 - 77.1] | E12: 79.83536043 | F12: [79.3 - 80.4] | I12: Clackmannanshire | J12: 76.7 | K12: [75.7 - 77.7] | L12: 80.6 | M12: [79.7 - 81.5]
A13: Men | B13: East Dunbartonshire | C13: 80.08276899 | D13: [79.4 - 80.7] | E13: 83.48194019 | F13: [82.9 - 84.1] | I13: South Lanarkshire | J13: 76.8 | K13: [76.4 - 77.2] | L13: 80.7 | M13: [80.3 - 81.0]
A14: Men | B14: East Lothian | C14: 78.25698248 | D14: [77.5 - 79.0] | E14: 82.69136344 | F14: [82.1 - 83.3] | I14: South Ayrshire | J14: 77.5 | K14: [76.9 - 78.2] | L14: 80.8 | M14: [80.1 - 81.4]
A15: Men | B15: East Renfrewshire | C15: 80.11645588 | D15: [79.4 - 80.8] | E15: 83.53983753 | F15: [82.9 - 84.2] | I15: Falkirk | J15: 77.3 | K15: [76.7 - 77.8] | L15: 80.6 | M15: [80.1 - 81.1]
A16: Men | B16: Falkirk | C16: 77.25347153 | D16: [76.7 - 77.8] | E16: 80.61369215 | F16: [80.1 - 81.1] | I16: Na h-Eileanan Siar | J16: 76.6 | K16: [75.3 - 78.0] | L16: 82.7 | M16: [81.5 - 83.9]
A17: Men | B17: Fife | C17: 77.61343265 | D17: [77.2 - 78.0] | E17: 81.20544897 | F17: [80.9 - 81.5] | I17: Fife | J17: 77.6 | K17: [77.2 - 78.0] | L17: 81.2 | M17: [80.9 - 81.5]
A18: Men | B18: Glasgow City | C18: 73.36860453 | D18: [73.1 - 73.7] | E18: 78.93091513 | F18: [78.7 - 79.2] | I18: Aberdeen City | J18: 76.4 | K18: [75.9 - 76.9] | L18: 80.8 | M18: [80.4 - 81.3]
A19: Men | B19: Highland | C19: 77.94106137 | D19: [77.5 - 78.4] | E19: 82.8691057 | F19: [82.5 - 83.3] | I19: West Lothian | J19: 78.3 | K19: [77.8 - 78.8] | L19: 80.8 | M19: [80.3 - 81.3]
A20: Men | B20: Inverclyde | C20: 75.63620753 | D20: [74.9 - 76.4] | E20: 80.08178193 | F20: [79.4 - 80.8] | I20: Midlothian | J20: 77.9 | K20: [77.2 - 78.6] | L20: 81.4 | M20: [80.8 - 82.1]
A21: Men | B21: Midlothian | C21: 77.86433135 | D21: [77.2 - 78.6] | E21: 81.42395253 | F21: [80.8 - 82.1] | I21: Dumfries and Galloway | J21: 77.8 | K21: [77.3 - 78.4] | L21: 81.8 | M21: [81.3 - 82.3]
A22: Men | B22: Moray | C22: 78.66704124 | D22: [78.0 - 79.4] | E22: 82.14680266 | F22: [81.5 - 82.8] | I22: Argyll and Bute | J22: 77.4 | K22: [76.6 - 78.1] | L22: 82.5 | M22: [81.8 - 83.1]
A23: Men | B23: Na h-Eileanan Siar | C23: 76.63593805 | D23: [75.3 - 78.0] | E23: 82.69479441 | F23: [81.5 - 83.9] | I23: Angus | J23: 78.5 | K23: [77.9 - 79.1] | L23: 81.8 | M23: [81.2 - 82.4]
A24: Men | B24: North Ayrshire | C24: 75.92473523 | D24: [75.3 - 76.5] | E24: 80.51834677 | F24: [80.0 - 81.1] | I24: Shetland Islands | J24: 77.6 | K24: [76.3 - 78.9] | L24: 82 | M24: [80.8 - 83.3]
A25: Men | B25: North Lanarkshire | C25: 75.37368743 | D25: [75.0 - 75.8] | E25: 79.6010988 | F25: [79.3 - 79.9] | I25: Highland | J25: 77.9 | K25: [77.5 - 78.4] | L25: 82.9 | M25: [82.5 - 83.3]
A26: Men | B26: Orkney Islands | C26: 80.34787431 | D26: [78.9 - 81.8] | E26: 82.69975832 | F26: [81.2 - 84.2] | I26: City of Edinburgh | J26: 78 | K26: [77.7 - 78.3] | L26: 82.2 | M26: [81.9 - 82.5]
A27: Men | B27: Perth and Kinross | C27: 79.89972871 | D27: [79.3 - 80.5] | E27: 82.58500924 | F27: [82.0 - 83.1] | I27: East Lothian | J27: 78.3 | K27: [77.5 - 79.0] | L27: 82.7 | M27: [82.1 - 83.3]
A28: Men | B28: Renfrewshire | C28: 76.39698001 | D28: [75.9 - 76.9] | E28: 80.17456034 | F28: [79.7 - 80.7] | I28: Stirling | J28: 78.7 | K28: [78.0 - 79.3] | L28: 82.3 | M28: [81.7 - 82.8]
A29: Men | B29: Scottish Borders | C29: 78.64463045 | D29: [78.0 - 79.3] | E29: 82.59747834 | F29: [82.0 - 83.1] | I29: Scottish Borders | J29: 78.6 | K29: [78.0 - 79.3] | L29: 82.6 | M29: [82.0 - 83.1]
A30: Men | B30: Shetland Islands | C30: 77.60178215 | D30: [76.3 - 78.9] | E30: 82.02949228 | F30: [80.8 - 83.3] | I30: Moray | J30: 78.7 | K30: [78.0 - 79.4] | L30: 82.1 | M30: [81.5 - 82.8]
A31: Men | B31: South Ayrshire | C31: 77.53879594 | D31: [76.9 - 78.2] | E31: 80.7630962 | F31: [80.1 - 81.4] | I31: Perth and Kinross | J31: 79.9 | K31: [79.3 - 80.5] | L31: 82.6 | M31: [82.0 - 83.1]
A32: Men | B32: South Lanarkshire | C32: 76.80506899 | D32: [76.4 - 77.2] | E32: 80.67348072 | F32: [80.3 - 81.0] | I32: Aberdeenshire | J32: 79.2 | K32: [78.8 - 79.7] | L32: 82.4 | M32: [82.1 - 82.8]
A33: Men | B33: Stirling | C33: 78.65166419 | D33: [78.0 - 79.3] | E33: 82.25458628 | F33: [81.7 - 82.8] | I33: Orkney Islands | J33: 80.3 | K33: [78.9 - 81.8] | L33: 82.7 | M33: [81.2 - 84.2]
A34: Men | B34: West Dunbartonshire | C34: 74.72970832 | D34: [74.0 - 75.5] | E34: 78.84958635 | F34: [78.2 - 79.5] | I34: East Dunbartonshire | J34: 80.1 | K34: [79.4 - 80.7] | L34: 83.5 | M34: [82.9 - 84.1]
A35: Men | B35: West Lothian | C35: 78.28051087 | D35: [77.8 - 78.8] | E35: 80.7777545 | F35: [80.3 - 81.3] | I35: East Renfrewshire | J35: 80.1 | K35: [79.4 - 80.8] | L35: 83.5 | M35: [82.9 - 84.2]
A36: Women | B36: Scotland | C36: 81.14095243 | D36: [81.1 - 81.2]
A37: Women | B37: Aberdeen City | C37: 80.84108776 | D37: [80.4 - 81.3]
A38: Women | B38: Aberdeenshire | C38: 82.4475262 | D38: [82.1 - 82.8]
A39: Women | B39: Angus | C39: 81.78156178 | D39: [81.2 - 82.4]
A40: Women | B40: Argyll and Bute | C40: 82.45337281 | D40: [81.8 - 83.1]
A41: Women | B41: City of Edinburgh | C41: 82.24300111 | D41: [81.9 - 82.5]
A42: Women | B42: Clackmannanshire | C42: 80.58934504 | D42: [79.7 - 81.5]
A43: Women | B43: Dumfries and Galloway | C43: 81.81943443 | D43: [81.3 - 82.3]
A44: Women | B44: Dundee City | C44: 79.62916785 | D44: [79.0 - 80.2]
A45: Women | B45: East Ayrshire | C45: 79.83536043 | D45: [79.3 - 80.4]
A46: Women | B46: East Dunbartonshire | C46: 83.48194019 | D46: [82.9 - 84.1]
A47: Women | B47: East Lothian | C47: 82.69136344 | D47: [82.1 - 83.3]
A48: Women | B48: East Renfrewshire | C48: 83.53983753 | D48: [82.9 - 84.2]
A49: Women | B49: Falkirk | C49: 80.61369215 | D49: [80.1 - 81.1]
A50: Women | B50: Fife | C50: 81.20544897 | D50: [80.9 - 81.5]
A51: Women | B51: Glasgow City | C51: 78.93091513 | D51: [78.7 - 79.2]
A52: Women | B52: Highland | C52: 82.8691057 | D52: [82.5 - 83.3]
A53: Women | B53: Inverclyde | C53: 80.08178193 | D53: [79.4 - 80.8]
A54: Women | B54: Midlothian | C54: 81.42395253 | D54: [80.8 - 82.1]
A55: Women | B55: Moray | C55: 82.14680266 | D55: [81.5 - 82.8]
A56: Women | B56: Na h-Eileanan Siar | C56: 82.69479441 | D56: [81.5 - 83.9]
A57: Women | B57: North Ayrshire | C57: 80.51834677 | D57: [80.0 - 81.1]
A58: Women | B58: North Lanarkshire | C58: 79.6010988 | D58: [79.3 - 79.9]
A59: Women | B59: Orkney Islands | C59: 82.69975832 | D59: [81.2 - 84.2]
A60: Women | B60: Perth and Kinross | C60: 82.58500924 | D60: [82.0 - 83.1]
A61: Women | B61: Renfrewshire | C61: 80.17456034 | D61: [79.7 - 80.7]
A62: Women | B62: Scottish Borders | C62: 82.59747834 | D62: [82.0 - 83.1]
A63: Women | B63: Shetland Islands | C63: 82.02949228 | D63: [80.8 - 83.3]
A64: Women | B64: South Ayrshire | C64: 80.7630962 | D64: [80.1 - 81.4]
A65: Women | B65: South Lanarkshire | C65: 80.67348072 | D65: [80.3 - 81.0]
A66: Women | B66: Stirling | C66: 82.25458628 | D66: [81.7 - 82.8]
A67: Women | B67: West Dunbartonshire | C67: 78.84958635 | D67: [78.2 - 79.5]
A68: Women | B68: West Lothian | C68: 80.7777545 | D68: [80.3 - 81.3]

Sheet Sheet11 (hidden)
